Workbook

Sheet Instructions
B2: =CONCATENATE(dms_Sector," ",dms_Segment," ", "Network Service Provider") -> Electricity Distribution Network Service Provider
B3: =IF(dms_Model="Reset","Regulatory Proposal RIN Template","Annual Reporting RIN") -> Regulatory Proposal RIN Template
B4: =CONCATENATE("This template is to be used by ",INDEX(dms_TradingNameFull_List,MATCH(dms_TradingName,dms_TradingName_List))," to fulfil its reporting obligations to the AER.") -> This template is to be used by Power and Water Corporation to fulfil its reporting obligations to the AER.
B5: INSTRUCTIONS
B6: GENERAL | C6: Complete the Business & other details worksheet before entering data or values in any other worksheets. The Business & other details worksheet is linked to other worksheets within the workbook and automatically generates certain column headings and conditional formatting.
B8: CONFIDENTIAL INFORMATION | C8: Please use the macro at the top of each worksheet to identify confidential information in the confidential workbook.
C9: -Do this by selecting the cell or cells that contain confidential information and then run the Mark selection as CONFIDENTIAL macro. This will format the cells a specific colour that is identified by the AER's database which in turn marks that information as confidential. -To reverse this, select the cell or cells and run the Return selection to NON-CONFIDENTIAL macro.
B11: RESPONSES | C11: Please return two (2) files to the AER: 1. A confidential version which must contain a complete set of all responses with confidential information marked using the Mark selection CONFIDENTIAL macro and which has been completed using the locked template file provided by the AER. 2. A public version with confidential information either removed completely or aggregated in some form together with writtten consent to disclose the public version of the response. Use the drop down box on the Business and other details worksheet to identify the file as either confidential ('consolidated') or public.
B13: AMENDMENTS | C13: If an NSP wishes to correct data previously submitted to the AER it should resubmit that data using the original completed submission as the starting point. Please make any necessary changes to the data. Data that is not being amended should be left unchanged. NSPs must identify the reason for the amendments in the Amendment Reason box on the Business and other details worksheet. NSPs may provide further details regarding any amendments in the Amendments worksheet. .
C14: NSP may use Amended Data macro to highlight cells that contain amended data. NB: if data is also CONFIDENTIAL, re-apply the Confidentiality macro after applying the Amended macro
C15: Please resubmit two (2) files - a confidential version and a public version of the amended submission to the AER
B17: UNITS OF MEASURE | C17: All amounts are to be unrounded and reported on a one for one basis: that is 1000 is to be entered as '1000'. Applicable units of measure may be identified in the table column headings or row descriptors.
B19: INPUT / NON-INPUT CELLS
D20: Yellow = Input cell (mandatory)
D21: Darker yellow = input cell (mandatory)
D22: Orange = input cell (if data available)
D23: Grey = Not applicable/No inputs required
D24: PLEASE DO NOT ENTER TEXT into cells that are to contain numbers (including 'numbers stored as text')
B27: NAVIGATION | C27: Many tables in the worksheets have been "grouped" to allow for easy navigation. To ungroup or group data use the outline symbols in the left margin (for Row groupings) or above the columns (for column groupings).

Sheet CONTENTS
C1: =IF(dms_MultiYear_ResponseFlag="Yes","REGULATORY REPORTING STATEMENT - HISTORICAL INFORMATION",INDEX(dms_Worksheet_List,MATCH(dms_Model,dms_Model_List))) -> REGULATORY REPORTING STATEMENT
C2: =INDEX(dms_TradingNameFull_List,MATCH(dms_TradingName,dms_TradingName_List)) -> Power and Water Corporation
C3: =CONCATENATE("REGULATORY PERIOD FROM ", FRCP_y1," TO ",dms_MultiYear_FinalYear_Result) -> REGULATORY PERIOD FROM 2024-25 TO 2028-29
D7: CONTENTS
D9: TEMPLATE | E9: NOVEMBER 2022
D11: SUBMISSION | E11: Business & other details
D13: EXPENDITURE | E13: 2.1 Expenditure summary
E14: 2.2 Repex
E15: 2.3 Augex (b)
E16: 2.5 Connections
E17: 2.6 Non-network
E18: 2.10 Overheads
E19: 2.11 Labour
E20: 2.14 Forecast price changes
E21: 2.16 Opex Summary
E22: 2.17 Step Changes
D24: ECONOMIC BENCHMARKING | E24: 3.1 Revenue
E25: 3.2 Operating expenditure
E26: 3.3 Assets (RAB)
E27: 3.4 Operational data
E28: 3.5 Physical assets
E29: 3.6 Quality of service
E30: 3.7 Operating Environment
D32: ALTERNATIVE CONTROL | E32: 4.1 Public lighting
D34: NETWORK | E34: 5.4 MD & utilisation-Spatial
D36: SERVICE | E36: 6.2 Reliability & Cust serv
D38: OTHER | E38: 7.1 Policies and Procedures
E39: 7.2 Contingent projects
E40: 7.3 Obligations
E41: 7.4 Shared Assets
E42: 7.7 TSS-LRMC
E43: 7.8 Export Services

Sheet Business & other details
V1: =INDEX(dms_Worksheet_List,MATCH(dms_Model,dms_Model_List)) -> REGULATORY REPORTING STATEMENT
V2: =INDEX(dms_TradingNameFull_List,MATCH(dms_TradingName,dms_TradingName_List)) -> Power and Water Corporation
V3: =CONCATENATE("REGULATORY PERIOD FROM ", FRCP_y1," TO ",dms_MultiYear_FinalYear_Result) -> REGULATORY PERIOD FROM 2024-25 TO 2028-29
V4: BUSINESS & OTHER DETAILS
V6: INSTRUCTIONS
V7: Complete the following business details regulatory template before entering data or values in any other regulatory template. This regulatory template is linked to other cells within the spreadsheet and automatically generates column headings and conditional formatting to distinguish business specific input and non-input cells.
Q9: SUBMISSION PARTICULARS INPUT SHEET
V12: ENTITY DETAILS
V14: Business Name
V16: Short name | AL16: Power and Water
V17: ACN/ABN | AL17: =INDEX(dms_ABN_List,MATCH(dms_TradingName,dms_TradingName_List)) -> 15947352360
V21: Business Address | BQ21: Postal Address
V23: Address 1 | AL23: =INDEX(dms_Addr1_List,MATCH(dms_TradingName,dms_TradingName_List)) -> GPO Box 1921 | BI23: Address 1 | BQ23: =INDEX(dms_PAddr1_List,MATCH(dms_TradingName,dms_TradingName_List)) -> GPO Box 1921
V24: Address 2 | AL24: =IF(ISBLANK(INDEX(dms_Addr2_List,MATCH(dms_TradingName,dms_TradingName_List))),"",(INDEX(dms_Addr2_List,MATCH(dms_TradingName,dms_TradingName_List)))) ->  | BI24: Address 2 | BQ24: =IF(ISBLANK(INDEX(dms_PAddr2_List,MATCH(dms_TradingName,dms_TradingName_List))),"",(INDEX(dms_PAddr2_List,MATCH(dms_TradingName,dms_TradingName_List)))) -> 
V25: Suburb | AL25: =INDEX(dms_Suburb_List,MATCH(dms_TradingName,dms_TradingName_List)) -> DARWIN | BI25: Suburb | BQ25: =INDEX(dms_PSuburb_List,MATCH(dms_TradingName,dms_TradingName_List)) -> DARWIN
V26: State | AL26: =INDEX(dms_State_List,MATCH(dms_TradingName,dms_TradingName_List)) -> NT | AV26: Post code | AX26: 801 | BI26: State | BQ26: =INDEX(dms_PState_List,MATCH(dms_TradingName,dms_TradingName_List)) -> NT | CA26: Post code | CC26: 801
BA28: `
V30: Contact Names
V32: Name | BI32: Name
V33: Phone | BI33: Phone
V34: Email | BI34: Email
Q39: REGULATORY CONTROL PERIODS
Z42: Forthcoming period | AL42: 2024-25 | AU42: =FRCP_y2 -> 2025-26 | BD42: =FRCP_y3 -> 2026-27 | BM42: =FRCP_y4 -> 2027-28 | BV42: =FRCP_y5 -> 2028-29
AL43: =FRCP_y6 -> 2029-30 | AU43: =FRCP_y7 -> 2030-31 | BD43: =FRCP_y8 -> 2031-32 | BM43: =FRCP_y9 -> 2032-33 | BV43: =FRCP_y10 -> 2033-34
AL44: =FRCP_y11 -> 2034-35 | AU44: =FRCP_y12 -> 2035-36 | BD44: =FRCP_y13 -> 2036-37 | BM44: =FRCP_y14 -> 2037-38 | BV44: =FRCP_y15 -> 2038-39
X46: RESETS | Z46: Current period | AL46: =CRCP_y1 -> 2019-20 | AU46: =CRCP_y2 -> 2020-21 | BD46: =CRCP_y3 -> 2021-22 | BM46: =CRCP_y4 -> 2022-23 | BV46: =CRCP_y5 -> 2023-24
AL47: =CRCP_y6 -> 2024-25 | AU47: =CRCP_y7 -> 2025-26 | BD47: =CRCP_y8 -> 2026-27 | BM47: =CRCP_y9 -> 2027-28 | BV47: =CRCP_y10 -> 2028-29
AL48: =CRCP_y11 -> 2029-30 | AU48: =CRCP_y12 -> 2030-31 | BD48: =CRCP_y13 -> 2031-32 | BM48: =CRCP_y14 -> 2032-33 | BV48: =CRCP_y15 -> 2033-34
Z50: Previous period | AL50: =PRCP_y1 -> 2014-15 | AU50: =PRCP_y2 -> 2015-16 | BD50: =PRCP_y3 -> 2016-17 | BM50: =PRCP_y4 -> 2017-18 | BV50: =PRCP_y5 -> 2018-19
AL51: =PRCP_y6 -> 2019-20 | AU51: =PRCP_y7 -> 2020-21 | BD51: =PRCP_y8 -> 2021-22 | BM51: =PRCP_y9 -> 2022-23 | BV51: =PRCP_y10 -> 2023-24
AL52: =PRCP_y11 -> 2024-25 | AU52: =PRCP_y12 -> 2025-26 | BD52: =PRCP_y13 -> 2026-27 | BM52: =PRCP_y14 -> 2027-28 | BV52: =PRCP_y15 -> 2028-29
Z54: Commencing year | AL54: 2022-23
X55: ANNUAL RINS
Z56: Final year | AL56: 2028-29
Q60: SUBMISSION DETAILS
Z62: RIN type | AL62: =INDIRECT(dms_Model) -> Regulatory Reporting (Reset)
Z64: Source | AL64: Regulatory proposal
X66: THIS FILE | Z66: Data Quality | AL66: Consolidated
Z68: Confidentiality Status | AL68: Public
Z70: Amended RIN Amendment Reason | AL70: .
Z74: Submission Date | AL74: 31/01/23 | BD74: Please enter date this file submitted to AER

Sheet 2.1 Expenditure summary
B1: =INDEX(dms_Worksheet_List,MATCH(dms_Model,dms_Model_List)) -> REGULATORY REPORTING STATEMENT
B2: =INDEX(dms_TradingNameFull_List,MATCH(dms_TradingName,dms_TradingName_List)) -> Power and Water Corporation
B3: =CONCATENATE("REGULATORY PERIOD FROM ", FRCP_y1," TO ",dms_MultiYear_FinalYear_Result) -> REGULATORY PERIOD FROM 2024-25 TO 2028-29
B4: 2.1 EXPENDITURE SUMMARY & RECONCILIATION
B7: 2.1.1 - STANDARD CONTROL SERVICES CAPEX (including dual function assets)
C8: =CONCATENATE("EXPENDITURE ($0's, real ", dms_DollarReal, ")") -> EXPENDITURE ($0's, real June 2024)
C9: =CRCP_y4 -> 2022-23 | D9: =CRCP_y5 -> 2023-24 | E9: =FRCP_y1 -> 2024-25 | F9: =FRCP_y2 -> 2025-26 | G9: =FRCP_y3 -> 2026-27 | H9: =FRCP_y4 -> 2027-28 | I9: =FRCP_y5 -> 2028-29
B10: Replacement expenditure | C10: =SUM('2.2 Repex'!D12:D182) -> 38592859.77 | D10: =SUM('2.2 Repex'!E12:E182) -> 47541407.36 | E10: =SUM('2.2 Repex'!F12:F182) -> 47509401.94 | F10: =SUM('2.2 Repex'!G12:G182) -> 44023794.15 | G10: =SUM('2.2 Repex'!H12:H182) -> 30431118.93 | H10: =SUM('2.2 Repex'!I12:I182) -> 27450230.71 | I10: =SUM('2.2 Repex'!J12:J182) -> 27213012.89
B11: Connections | C11: =SUM('2.5 Connections'!E123:E136) -> 3839413.962 | D11: =SUM('2.5 Connections'!F123:F136) -> 3889297.351 | E11: =SUM('2.5 Connections'!G123:G136) -> 1180559.201 | F11: =SUM('2.5 Connections'!H123:H136) -> 1198455.412 | G11: =SUM('2.5 Connections'!I123:I136) -> 1210568.065 | H11: =SUM('2.5 Connections'!J123:J136) -> 1220555.354 | I11: =SUM('2.5 Connections'!K123:K136) -> 1233291.657
B12: Augmentation Expenditure | C12: =SUM('2.3 Augex (b)'!D47:D55) -> 6380278.963 | D12: =SUM('2.3 Augex (b)'!E47:E55) -> 13453934.72 | E12: =SUM('2.3 Augex (b)'!F47:F55) -> 9485176.256 | F12: =SUM('2.3 Augex (b)'!G47:G55) -> 6067060.646 | G12: =SUM('2.3 Augex (b)'!H47:H55) -> 7288674.263 | H12: =SUM('2.3 Augex (b)'!I47:I55) -> 5401536.115 | I12: =SUM('2.3 Augex (b)'!J47:J55) -> 4972602.084
B13: Non-network | C13: =SUM('2.6 Non-network'!E32:E50) -> 23981219.87 | D13: =SUM('2.6 Non-network'!F32:F50) -> 28069911.18 | E13: =SUM('2.6 Non-network'!G32:G50) -> 21501051.68 | F13: =SUM('2.6 Non-network'!H32:H50) -> 26154043.73 | G13: =SUM('2.6 Non-network'!I32:I50) -> 24853947.28 | H13: =SUM('2.6 Non-network'!J32:J50) -> 54258332.84 | I13: =SUM('2.6 Non-network'!K32:K50) -> 73252016.97
B14: Export services | C14: =SUM('7.8 Export Services'!C23:C25) -> 0 | D14: =SUM('7.8 Export Services'!D23:D25) -> 0 | E14: =SUM('7.8 Export Services'!E23:E25) -> 637695.2037 | F14: =SUM('7.8 Export Services'!F23:F25) -> 802492.0496 | G14: =SUM('7.8 Export Services'!G23:G25) -> 5544581.561 | H14: =SUM('7.8 Export Services'!H23:H25) -> 2937732.365 | I14: =SUM('7.8 Export Services'!I23:I25) -> 3297810.239
B15: Public lighting
B16: Metering | C16: 0 | D16: 0 | E16: 0 | F16: 0 | G16: 0 | H16: 0 | I16: 0
B17: Capitalised network overheads | C17: ='2.10 Overheads'!D15 -> 13841380.01 | D17: ='2.10 Overheads'!E15 -> 13841380.01 | E17: ='2.10 Overheads'!F15 -> 16888822.31 | F17: ='2.10 Overheads'!G15 -> 16344413.23 | G17: ='2.10 Overheads'!H15 -> 14693398.93 | H17: ='2.10 Overheads'!I15 -> 19543828.31 | I17: ='2.10 Overheads'!J15 -> 23881618.21
B18: Capitalised corporate overheads | C18: ='2.10 Overheads'!D30 -> 10700855.97 | D18: ='2.10 Overheads'!E30 -> 10700855.97 | E18: ='2.10 Overheads'!F30 -> 9867722.661 | F18: ='2.10 Overheads'!G30 -> 9549637.848 | G18: ='2.10 Overheads'!H30 -> 8584990.884 | H18: ='2.10 Overheads'!I30 -> 11418977.23 | I18: ='2.10 Overheads'!J30 -> 13953440.97
B19: capcons (included in the above)
B20: Total | C20: =SUM(C10:C18) -> 97336008.54 | D20: 117496786.6 | E20: 107070429.3 | F20: 104139897.1 | G20: 92607279.91 | H20: 122231192.9 | I20: 147803793
B23: 2.1.2 - STANDARD CONTROL SERVICES OPEX BY CATEGORY
C24: =CONCATENATE("EXPENDITURE ($0's, real ", dms_DollarReal, ")") -> EXPENDITURE ($0's, real June 2024)
C25: =CRCP_y4 -> 2022-23 | D25: =CRCP_y5 -> 2023-24
B26: Vegetation management | C26: 2857092.175 | D26: 2867248.416
B27: Maintenance | C27: 16471471.19 | D27: 16530023.11
B28: Emergency response | C28: 8539015.974 | D28: 8569370.02
B29: Non-network | C29: =SUM('2.6 Non-network'!E12:E30) -> 4662997.385 | D29: =SUM('2.6 Non-network'!F12:F30) -> 4679573.164
B30: Export services | C30: =SUM('7.8 Export Services'!C13:C14) -> 0 | D30: =SUM('7.8 Export Services'!D13:D14) -> 0
B31: Metering | C31: 48559.996 | D31: 48732.61453
B32: Network overheads | C32: ='2.10 Overheads'!D12 -> 18742015.65 | D32: ='2.10 Overheads'!E12 -> 18808638.78
B33: Corporate overheads | C33: ='2.10 Overheads'!D27 -> 20775151.93 | D33: ='2.10 Overheads'!E27 -> 20849002.35
B34: Total | C34: =SUM(C26:C33) -> 72096304.3 | D34: =SUM(D26:D33) -> 72352588.46
B37: 2.1.3 - ALTERNATIVE CONTROL SERVICES CAPEX
C38: =CONCATENATE("EXPENDITURE ($0's, real ", dms_DollarReal, ")") -> EXPENDITURE ($0's, real June 2024)
C39: =CRCP_y4 -> 2022-23 | D39: =CRCP_y5 -> 2023-24 | E39: =FRCP_y1 -> 2024-25 | F39: =FRCP_y2 -> 2025-26 | G39: =FRCP_y3 -> 2026-27 | H39: =FRCP_y4 -> 2027-28 | I39: =FRCP_y5 -> 2028-29
B40: Connections | C40: 0 | D40: 0 | E40: 2750950.441 | F40: 2827734.212 | G40: 2891126.208 | H40: 2949443.441 | I40: 3014398.855
B41: Metering | C41: 9808567.2 | D41: 10938830.92 | E41: 5211730.8 | F41: 5297897.236 | G41: 7401026.184 | H41: 8882550.991 | I41: 9803780.645
B42: Public lighting | C42: ='4.1 Public lighting'!D14+'4.1 Public lighting'!D18 -> 0 | D42: ='4.1 Public lighting'!E14+'4.1 Public lighting'!E18 -> 0 | E42: ='4.1 Public lighting'!F14+'4.1 Public lighting'!F18 -> 0 | F42: ='4.1 Public lighting'!G14+'4.1 Public lighting'!G18 -> 0 | G42: ='4.1 Public lighting'!H14+'4.1 Public lighting'!H18 -> 0 | H42: ='4.1 Public lighting'!I14+'4.1 Public lighting'!I18 -> 0 | I42: ='4.1 Public lighting'!J14+'4.1 Public lighting'!J18 -> 0
B43: Fee and quoted | C43: 4309387.404 | D43: 4266608.214 | E43: 4240314.167 | F43: 4240314.167 | G43: 4240314.167 | H43: 4240314.167 | I43: 4240314.167
B44: Network overheads | C44: ='2.10 Overheads'!D16 -> 3215525.333 | D44: ='2.10 Overheads'!E16 -> 3373066.596 | E44: ='2.10 Overheads'!F16 -> 4066130.754 | F44: ='2.10 Overheads'!G16 -> 4078534.4 | G44: ='2.10 Overheads'!H16 -> 4600710.926 | H44: ='2.10 Overheads'!I16 -> 4625186.372 | I44: ='2.10 Overheads'!J16 -> 4649012.104
B45: Corporate overheads | C45: ='2.10 Overheads'!D31 -> 3727130.114 | D45: ='2.10 Overheads'!E31 -> 3836621.996 | E45: ='2.10 Overheads'!F31 -> 4388088.216 | F45: ='2.10 Overheads'!G31 -> 4397678.665 | G45: ='2.10 Overheads'!H31 -> 4801423.414 | H45: ='2.10 Overheads'!I31 -> 4820347.728 | I45: ='2.10 Overheads'!J31 -> 4838769.686
B46: Total | C46: =SUM(C40:C45) -> 21060610.05 | D46: 22415127.73 | E46: 20657214.38 | F46: 20842158.68 | G46: 23934600.9 | H46: 25517842.7 | I46: 26546275.46
B49: 2.1.4 - ALTERNATIVE CONTROL SERVICES OPEX
C50: =CONCATENATE("EXPENDITURE ($0's, real ", dms_DollarReal, ")") -> EXPENDITURE ($0's, real June 2024)
C51: =CRCP_y4 -> 2022-23 | D51: =CRCP_y5 -> 2023-24 | E51: =FRCP_y1 -> 2024-25 | F51: =FRCP_y2 -> 2025-26 | G51: =FRCP_y3 -> 2026-27 | H51: =FRCP_y4 -> 2027-28 | I51: =FRCP_y5 -> 2028-29
B52: Connections | C52: 1184977.689 | D52: 1173214.443 | E52: 2018961.198 | F52: 2018961.198 | G52: 2018961.198 | H52: 2018961.198 | I52: 2018961.198
B53: Metering | C53: ='3.2 Operating expenditure'!K71 -> 6423872.964 | D53: ='3.2 Operating expenditure'!L71 -> 6460324.339 | E53: ='3.2 Operating expenditure'!M71 -> 6687767.831 | F53: ='3.2 Operating expenditure'!N71 -> 6806745.326 | G53: ='3.2 Operating expenditure'!O71 -> 6917744.289 | H53: ='3.2 Operating expenditure'!P71 -> 6989966.511 | I53: ='3.2 Operating expenditure'!Q71 -> 7059464.882
B54: Public lighting | C54: ='3.2 Operating expenditure'!K73 -> 0 | D54: ='3.2 Operating expenditure'!L73 -> 0 | E54: ='3.2 Operating expenditure'!M73 -> 0 | F54: ='3.2 Operating expenditure'!N73 -> 0 | G54: ='3.2 Operating expenditure'!O73 -> 0 | H54: ='3.2 Operating expenditure'!P73 -> 0 | I54: ='3.2 Operating expenditure'!Q73 -> 0
B55: Fee and quoted | C55: 1240972.841 | D55: 1228653.732 | E55: 1312958.277 | F55: 1312958.277 | G55: 1312958.277 | H55: 1312958.277 | I55: 1312958.277
B56: Network overheads | C56: ='2.10 Overheads'!D13 -> 1618038.151 | D56: ='2.10 Overheads'!E13 -> 1614327.533 | E56: ='2.10 Overheads'!F13 -> 1959906.823 | F56: ='2.10 Overheads'!G13 -> 1974570.052 | G56: ='2.10 Overheads'!H13 -> 1988249.976 | H56: ='2.10 Overheads'!I13 -> 1997150.911 | I56: ='2.10 Overheads'!J13 -> 2005716.148
B57: Corporate overheads | C57: ='2.10 Overheads'!D28 -> 1872277.424 | D57: ='2.10 Overheads'!E28 -> 1863241.583 | E57: ='2.10 Overheads'!F28 -> 2369486.222 | F57: ='2.10 Overheads'!G28 -> 2380823.77 | G57: ='2.10 Overheads'!H28 -> 2391401.031 | H57: ='2.10 Overheads'!I28 -> 2398283.198 | I57: ='2.10 Overheads'!J28 -> 2404905.804
B58: Total | C58: =SUM(C52:C57) -> 12340139.07 | D58: 12339761.63 | E58: 14349080.35 | F58: 14494058.62 | G58: 14629314.77 | H58: 14717320.09 | I58: 14802006.31
B61: 2.1.5 - DUAL FUNCTION ASSETS CAPEX
C62: =CONCATENATE("EXPENDITURE ($0's, real ", dms_DollarReal, ")") -> EXPENDITURE ($0's, real June 2024)
C63: =CRCP_y4 -> 2022-23 | D63: =CRCP_y5 -> 2023-24 | E63: =FRCP_y1 -> 2024-25 | F63: =FRCP_y2 -> 2025-26 | G63: =FRCP_y3 -> 2026-27 | H63: =FRCP_y4 -> 2027-28 | I63: =FRCP_y5 -> 2028-29
B64: Replacement expenditure
B65: Connections
B66: Augmentation expenditure
B67: Non-network
B68: Export services
B69: Capitalised network overheads
B70: Capitalised corporate overheads
B71: capcons (included in the above)
B72: Total | C72: =SUM(C64:C70) -> 0 | D72: 0 | E72: 0 | F72: 0 | G72: 0 | H72: 0 | I72: 0
B75: 2.1.6 - DUAL FUNCTION ASSETS OPEX BY CATEGORY
C76: =CONCATENATE("EXPENDITURE ($0's, real ", dms_DollarReal, ")") -> EXPENDITURE ($0's, real June 2024)
C77: =CRCP_y4 -> 2022-23 | D77: =CRCP_y5 -> 2023-24
B78: Vegetation management
B79: Maintenance
B80: Emergency response
B81: Non-network
B82: Export services
B83: Metering
B84: Network overheads
B85: Corporate overheads
B86: Total | C86: =SUM(C78:C85) -> 0 | D86: =SUM(D78:D85) -> 0
B89: 2.1.7 - STANDARD CONTROL SERVICES CAPCONS
C90: =CONCATENATE("EXPENDITURE ($0's, real ", dms_DollarReal, ")") -> EXPENDITURE ($0's, real June 2024)
C91: =CRCP_y4 -> 2022-23 | D91: =CRCP_y5 -> 2023-24 | E91: =FRCP_y1 -> 2024-25 | F91: =FRCP_y2 -> 2025-26 | G91: =FRCP_y3 -> 2026-27 | H91: =FRCP_y4 -> 2027-28 | I91: =FRCP_y5 -> 2028-29
B92: Replacement expenditure | C92: 0 | D92: 0 | E92: 0 | F92: 0 | G92: 0 | H92: 0 | I92: 0
B93: Connections | C93: 6547085.844 | D93: 6552611.082 | E93: 186888.1717 | F93: 189508.9163 | G93: 191216.1108 | H93: 192590.2085 | I93: 194400.8259
B94: Augmentation Expenditure | C94: 1138516.94 | D94: 7392396.952 | E94: 3465381.619 | F94: 0 | G94: 0 | H94: 0 | I94: 0
B95: Non-network | C95: 0 | D95: 0 | E95: 0 | F95: 0 | G95: 0 | H95: 0 | I95: 0
B96: Export services | C96: 0 | D96: 0 | E96: 0 | F96: 0 | G96: 0 | H96: 0 | I96: 0
B97: Capitalised network overheads | C97: 869793.0987 | D97: 1584901.595 | E97: 791754.0926 | F97: 41082.52366 | G97: 41452.61632 | H97: 41750.49888 | I97: 42143.01198
B98: Capitalised corporate overheads | C98: 672442.3912 | D98: 1225297.165 | E98: 462602.4039 | F98: 24003.50612 | G98: 24219.74214 | H98: 24393.78757 | I98: 24623.1233
B99: Total | C99: =SUM(C92:C98) -> 9227838.274 | D99: 16755206.79 | E99: 4906626.287 | F99: 254594.9461 | G99: 256888.4693 | H99: 258734.495 | I99: 261166.9612
B102: 2.1.8 - STANDARD CONTROL SERVICES CAPITALISED OVERHEADS
C103: =CONCATENATE("EXPENDITURE ($0's, real ", dms_DollarReal, ")") -> EXPENDITURE ($0's, real June 2024)
C104: =CRCP_y4 -> 2022-23 | D104: =CRCP_y5 -> 2023-24 | E104: =FRCP_y1 -> 2024-25 | F104: =FRCP_y2 -> 2025-26 | G104: =FRCP_y3 -> 2026-27 | H104: =FRCP_y4 -> 2027-28 | I104: =FRCP_y5 -> 2028-29
B105: Replacement expenditure | C105: 12387588.12 | D105: 12075100.85 | E105: 16316901.65 | F105: 15119784.51 | G105: 10451438.12 | H105: 9427664.767 | I105: 9346193.319
B106: Connections | C106: 2409173.054 | D106: 1920442.161 | E106: 469643.9732 | F106: 476690.4341 | G106: 481436.8021 | H106: 485338.8217 | I106: 490334.8997
B107: Augmentation Expenditure | C107: 2047950.537 | D107: 3417181.516 | E107: 3257643.367 | F107: 2083706.126 | G107: 2503264.117 | H107: 1855134.562 | I107: 1707818.997
B108: Non-network | C108: 7697524.262 | D108: 7129511.452 | E108: 6493342.284 | F108: 7938257.532 | G108: 7937987.861 | H108: 18185715.73 | I108: 25158093.09
B109: Export services | C109: 0 | D109: 0 | E109: 219013.7004 | F109: 275612.4749 | G109: 1904262.911 | H109: 1008951.663 | I109: 1132618.874
B110: capcons (included in the above) | C110: 1542235.49 | D110: 2810198.76 | E110: 1254356.496 | F110: 65086.02978 | G110: 65672.35846 | H110: 66144.28645 | I110: 66766.13528
B111: Total | C111: =SUM(C105:C109) -> 24542235.97 | D111: 24542235.97 | E111: 26756544.97 | F111: 25894051.07 | G111: 23278389.81 | H111: 30962805.54 | I111: 37835059.18

Sheet 2.2 Repex
B1: =INDEX(dms_Worksheet_List,MATCH(dms_Model,dms_Model_List)) -> REGULATORY REPORTING STATEMENT
B2: =INDEX(dms_TradingNameFull_List,MATCH(dms_TradingName,dms_TradingName_List)) -> Power and Water Corporation
B3: =CONCATENATE("REGULATORY PERIOD FROM ", FRCP_y1," TO ",dms_MultiYear_FinalYear_Result) -> REGULATORY PERIOD FROM 2024-25 TO 2028-29
B4: 2.2 REPEX
B6: There are THREE sub-tables on this worksheet. The table has been sub-grouped for easy navigation. See the Instructions sheet on how to group or ungroup tables.
B8: 2.2.1 - REPLACEMENT EXPENDITURE, VOLUMES AND ASSET FAILURES BY ASSET CATEGORY
B9: EXPENDITURE
D10: =CONCATENATE("EXPENDITURE ($0's, real ", dms_DollarReal, ")") -> EXPENDITURE ($0's, real June 2024)
B11: ASSET GROUP | C11: ASSET CATEGORY | D11: =CRCP_y4 -> 2022-23 | E11: =CRCP_y5 -> 2023-24 | F11: =FRCP_y1 -> 2024-25 | G11: =FRCP_y2 -> 2025-26 | H11: =FRCP_y3 -> 2026-27 | I11: =FRCP_y4 -> 2027-28 | J11: =FRCP_y5 -> 2028-29
B12: POLES BY: HIGHEST OPERATING VOLTAGE ; MATERIAL TYPE | C12: ˂ = 1 kV; Wood | D12: 0 | E12: 0 | F12: 0 | G12: 0 | H12: 0 | I12: 0 | J12: 0
C13: > 1 kV & < = 11 kV; Wood | D13: 0 | E13: 0 | F13: 0 | G13: 0 | H13: 0 | I13: 0 | J13: 0
C14: ˃ 11 kV & < = 22 kV; Wood | D14: 0 | E14: 0 | F14: 0 | G14: 0 | H14: 0 | I14: 0 | J14: 0
C15: > 22 kV & < = 66 kV; Wood | D15: 0 | E15: 0 | F15: 0 | G15: 0 | H15: 0 | I15: 0 | J15: 0
C16: > 66 kV & < = 132 kV; Wood | D16: 0 | E16: 0 | F16: 0 | G16: 0 | H16: 0 | I16: 0 | J16: 0
C17: > 132 kV; Wood | D17: 0 | E17: 0 | F17: 0 | G17: 0 | H17: 0 | I17: 0 | J17: 0
C18: ˂ = 1 kV; Concrete | D18: 0 | E18: 0 | F18: 0 | G18: 0 | H18: 0 | I18: 0 | J18: 0
C19: > 1 kV & < = 11 kV; Concrete | D19: 0 | E19: 0 | F19: 0 | G19: 0 | H19: 0 | I19: 0 | J19: 0
C20: ˃ 11 kV & < = 22 kV; Concrete | D20: 0 | E20: 0 | F20: 0 | G20: 0 | H20: 0 | I20: 0 | J20: 0
C21: > 22 kV & < = 66 kV; Concrete | D21: 0 | E21: 0 | F21: 0 | G21: 0 | H21: 0 | I21: 0 | J21: 0
C22: > 66 kV & < = 132 kV; Concrete | D22: 0 | E22: 0 | F22: 0 | G22: 0 | H22: 0 | I22: 0 | J22: 0
C23: > 132 kV; Concrete | D23: 0 | E23: 0 | F23: 0 | G23: 0 | H23: 0 | I23: 0 | J23: 0
C24: ˂ = 1 kV; Steel | D24: 0 | E24: 0 | F24: 0 | G24: 0 | H24: 0 | I24: 0 | J24: 0
C25: > 1 kV & < = 11 kV; Steel | D25: 99979.21689 | E25: 131219.1069 | F25: 165965.2571 | G25: 179919.7698 | H25: 193693.124 | I25: 207828.6051 | J25: 223229.7731
C26: ˃ 11 kV & < = 22 kV; Steel | D26: 111149.7947 | E26: 145656.1458 | F26: 183924.5758 | G26: 199045.2429 | H26: 213893.7903 | I26: 229066.7675 | J26: 245552.4184
C27: > 22 kV & < = 66 kV; Steel | D27: 1368302.812 | E27: 574562.5524 | F27: 1213261.675 | G27: 1989186.691 | H27: 2160875.303 | I27: 302168.5711 | J27: 325814.6123
C28: > 66 kV & < = 132 kV; Steel | D28: 341940.2279 | E28: 1337701.105 | F28: 1021096.031 | G28: 2752824.529 | H28: 0 | I28: 0 | J28: 0
C29: > 132 kV; Steel | D29: 507089.3123 | E29: 632826.3062 | F29: 0 | G29: 0 | H29: 0 | I29: 0 | J29: 0
C30: Other | D30: 0 | E30: 0 | F30: 0 | G30: 0 | H30: 0 | I30: 0 | J30: 0
B31: POLE TOP STRUCTURES BY: HIGHEST OPERATING VOLTAGE | C31: ˂ = 1 kV | D31: 0 | E31: 0 | F31: 0 | G31: 0 | H31: 0 | I31: 0 | J31: 0
C32: > 1 kV & < = 11 kV | D32: 59081.44808 | E32: 77564.35566 | F32: 98132.49141 | G32: 106417.2976 | H32: 114602.1485 | I32: 123009.0234 | J32: 132173.7147
C33: ˃ 11 kV & < = 22 kV | D33: 593049.3229 | E33: 628065.9575 | F33: 192263.6548 | G33: 207243.4465 | H33: 221765.2493 | I33: 236436.0048 | J33: 252253.3422
C34: > 22 kV & < = 66 kV | D34: 1138459.835 | E34: 625302.2533 | F34: 655461.0482 | G34: 855118.3254 | H34: 926610.0361 | I34: 554206.4295 | J34: 594743.9827
C35: > 66 kV & < = 132 kV | D35: 264297.4767 | E35: 263469.1876 | F35: 164275.6911 | G35: 297290.8347 | H35: 298870.2699 | I35: 167510.7665 | J35: 168451.9962
C36: > 132 kV | D36: 274832.1714 | E36: 353274.512 | F36: 224671.5 | G36: 820152.7031 | H36: 824509.9785 | I36: 229095.948 | J36: 230383.22
C37: Other | D37: 0 | E37: 0 | F37: 0 | G37: 0 | H37: 0 | I37: 0 | J37: 0
B38: STAKING WOODEN POLES BY: HIGHEST OPERATING VOLTAGE | C38: ˂ = 1 Kv | D38: 0 | E38: 0 | F38: 0 | G38: 0 | H38: 0 | I38: 0 | J38: 0
C39: > 1 kV & < = 11 kV | D39: 0 | E39: 0 | F39: 0 | G39: 0 | H39: 0 | I39: 0 | J39: 0
C40: ˃ 11 kV & < = 22 kV | D40: 0 | E40: 0 | F40: 0 | G40: 0 | H40: 0 | I40: 0 | J40: 0
C41: > 22 kV & < = 66 kV | D41: 0 | E41: 0 | F41: 0 | G41: 0 | H41: 0 | I41: 0 | J41: 0
C42: > 66 kV & < = 132 kV | D42: 0 | E42: 0 | F42: 0 | G42: 0 | H42: 0 | I42: 0 | J42: 0
C43: > 132 kV | D43: 0 | E43: 0 | F43: 0 | G43: 0 | H43: 0 | I43: 0 | J43: 0
B44: OVERHEAD CONDUCTORS BY: Highest operating voltage; Number of phases (at HV) | C44: ˂ = 1 kV | D44: 0 | E44: 0 | F44: 0 | G44: 0 | H44: 0 | I44: 0 | J44: 0
C45: > 1 kV & < = 11 kV | D45: 10185.35872 | E45: 12583.53952 | F45: 14993.64931 | G45: 15324.66082 | H45: 15563.03365 | I45: 15758.38272 | J45: 15978.64234
C46: ˃ 11 kV & < = 22 kV ; SWER | D46: 9035.509003 | E46: 11092.51971 | F46: 13135.24083 | G46: 13343.69994 | H46: 13469.84294 | I46: 13557.09779 | J46: 13664.19032
C47: ˃ 11 kV & < = 22 kV ; Single-Phase | D47: 108.812825 | E47: 135.4266447 | F47: 162.4138055 | G47: 166.9415075 | H47: 170.3360972 | I47: 173.0949153 | J47: 175.9623206
C48: ˃ 11 kV & < = 22 kV ; Multiple-Phase | D48: 0 | E48: 0 | F48: 0 | G48: 0 | H48: 0 | I48: 0 | J48: 0
C49: > 22 kV & < = 66 kV | D49: 384803.0599 | E49: 141465.3362 | F49: 41403.7578 | G49: 49520.24746 | H49: 51698.06672 | I49: 34479.0255 | J49: 35162.50879
C50: > 66 kV & < = 132 kV | D50: 58.76450221 | E50: 218060.525 | F50: 132653.5285 | G50: 357478.4773 | H50: 97.13483807 | I50: 100.2790806 | J50: 103.6823014
C51: > 132 kV | D51: 58.77997346 | E51: 73.87012796 | F51: 89.51550028 | G51: 93.03100268 | H51: 96.0703718 | I51: 98.93859381 | J51: 102.0603014
C52: Other | D52: 0 | E52: 0 | F52: 0 | G52: 0 | H52: 0 | I52: 0 | J52: 0
B53: UNDERGROUND CABLES BY: Highest operating voltage | C53: ˂ = 1 kV | D53: 0 | E53: 0 | F53: 0 | G53: 0 | H53: 0 | I53: 0 | J53: 0
C54: > 1 kV & < = 11 kV | D54: 1433851.65 | E54: 1513858.663 | F54: 1555783.603 | G54: 1579014.211 | H54: 1593035.424 | I54: 1603180.021 | J54: 1616384.899
C55: > 11 kV & < = 22 kV | D55: 6923642.67 | E55: 5595664.457 | F55: 6812592.344 | G55: 9574919.452 | H55: 5806342.547 | I55: 5827931.159 | J55: 5863173.095
C56: > 22 kV & < = 33 kV | D56: 1259021.843 | E56: 6642675.058 | F56: 49721.27315 | G56: 51986.45743 | H56: 53924.57756 | I56: 55680.96937 | J56: 57491.15493
C57: > 33 kV & < = 66 kV | D57: 0 | E57: 0 | F57: 0 | G57: 0 | H57: 0 | I57: 0 | J57: 0
C58: > 66 kV & < = 132 kV | D58: 278.1777872 | E58: 361.8178118 | F58: 452.4186725 | G58: 483.8969168 | H58: 513.0924862 | I58: 541.4587696 | J58: 571.2969962
C59: > 132 kV | D59: 0 | E59: 0 | F59: 0 | G59: 0 | H59: 0 | I59: 0 | J59: 0
C60: Other | D60: 0 | E60: 0 | F60: 0 | G60: 0 | H60: 0 | I60: 0 | J60: 0
B61: SERVICE LINES BY: Connection voltage; Customer type; Connection complexity | C61: ˂ = 11 kV ; Residential ; Simple Type | D61: 0 | E61: 0 | F61: 0 | G61: 0 | H61: 0 | I61: 0 | J61: 0
C62: ˂ = 11 kV ; Commercial & Industrial ; Simple Type | D62: 14961.79361 | E62: 18989.1696 | F62: 1855124.777 | G62: 1876361.311 | H62: 1887197.468 | I62: 1894268.358 | J62: 1905783.35
C63: ˂ = 11 kV ; Residential ; Complex Type | D63: 0 | E63: 0 | F63: 0 | G63: 0 | H63: 0 | I63: 0 | J63: 0
C64: ˂ = 11 kV ; Commercial & Industrial ; Complex Type | D64: 0 | E64: 0 | F64: 0 | G64: 0 | H64: 0 | I64: 0 | J64: 0
C65: ˂ = 11 kV ; Subdivision ; Complex Type | D65: 0 | E65: 0 | F65: 0 | G65: 0 | H65: 0 | I65: 0 | J65: 0
C66: > 11 kV & < = 22 kV ; Commercial & Industrial | D66: 0 | E66: 0 | F66: 0 | G66: 0 | H66: 0 | I66: 0 | J66: 0
C67: > 11 kV & < = 22 kV ; Subdivision | D67: 0 | E67: 0 | F67: 0 | G67: 0 | H67: 0 | I67: 0 | J67: 0
C68: > 22 kV & < = 33 kV ; Commercial & Industrial | D68: 0 | E68: 0 | F68: 0 | G68: 0 | H68: 0 | I68: 0 | J68: 0
C69: > 22 kV & < = 33 kV ; Subdivision | D69: 0 | E69: 0 | F69: 0 | G69: 0 | H69: 0 | I69: 0 | J69: 0
C70: > 33 kV & < = 66 kV ; Commercial & Industrial | D70: 0 | E70: 0 | F70: 0 | G70: 0 | H70: 0 | I70: 0 | J70: 0
C71: > 33 kV & < = 66 kV ; Subdivision | D71: 0 | E71: 0 | F71: 0 | G71: 0 | H71: 0 | I71: 0 | J71: 0
C72: > 66 kV & < = 132 kV ; Commercial & Industrial | D72: 0 | E72: 0 | F72: 0 | G72: 0 | H72: 0 | I72: 0 | J72: 0
C73: > 66 kV & < = 132 kV ; Subdivision | D73: 0 | E73: 0 | F73: 0 | G73: 0 | H73: 0 | I73: 0 | J73: 0
C74: > 132 kV ; Commercial & Industrial | D74: 0 | E74: 0 | F74: 0 | G74: 0 | H74: 0 | I74: 0 | J74: 0
C75: > 132 kV ; Subdivision | D75: 0 | E75: 0 | F75: 0 | G75: 0 | H75: 0 | I75: 0 | J75: 0
C76: Other | D76: 0 | E76: 0 | F76: 0 | G76: 0 | H76: 0 | I76: 0 | J76: 0
B77: TRANSFORMERS BY: Mounting type; Highest operating voltage; Ampere rating; Number of phases (at LV) | C77: Pole Mounted ; < = 22kV ; < = 60 kVA ; Single Phase | D77: 0 | E77: 0 | F77: 0 | G77: 0 | H77: 0 | I77: 0 | J77: 0
C78: Pole Mounted ; < = 22kV ; > 60 kVA and < = 600 kVA ; Single Phase | D78: 15723.29206 | E78: 19600.46685 | F78: 23539.32775 | G78: 24224.97289 | H78: 24753.23105 | I78: 25193.55406 | J78: 25641.88931
C79: Pole Mounted ; < = 22kV ; > 600 kVA ; Single Phase | D79: 515.909785 | E79: 672.062881 | F79: 840.0501823 | G79: 896.6905091 | H79: 947.4950914 | I79: 994.6373958 | J79: 1041.777428
C80: Pole Mounted ; < = 22kV ; < = 60 kVA ; Multiple Phase | D80: 0 | E80: 0 | F80: 0 | G80: 0 | H80: 0 | I80: 0 | J80: 0
C81: Pole Mounted ; < = 22kV ; > 60 kVA and < = 600 kVA ; Multiple Phase | D81: 78910.55554 | E81: 99249.64153 | F81: 120260.1427 | G81: 124867.9555 | H81: 128728.3623 | I81: 132208.7361 | J81: 135831.8497
C82: Pole Mounted ; < = 22kV ; > 600 kVA ; Multiple Phase | D82: 385622.1715 | E82: 487626.001 | F82: 595901.9609 | G82: 626022.4305 | H82: 655069.3026 | I82: 685234.3542 | J82: 719619.556
C83: Kiosk Mounted ; < = 22kV ; < = 60 kVA ; Single Phase | D83: 1654.140319 | E83: 2008.291748 | F83: 2352.438117 | G83: 2364.559996 | H83: 2362.931806 | I83: 2355.088266 | J83: 2350.2798
C84: Kiosk Mounted ; < = 22kV ; > 60 kVA and < = 600 kVA ; Single Phase | D84: 800971.0186 | E84: 736369.9432 | F84: 737105.2131 | G84: 745934.6484 | H84: 750625.4482 | I84: 753808.3005 | J84: 758745.8598
C85: Kiosk Mounted ; < = 22kV ; > 600 kVA ; Single Phase | D85: 10373.18821 | E85: 14252.77928 | F85: 18635.65811 | G85: 20677.52547 | H85: 22600.77752 | I85: 24448.14898 | J85: 26308.78898
C86: Kiosk Mounted ; < = 22kV ; < = 60 kVA ; Multiple Phase | D86: 0 | E86: 0 | F86: 0 | G86: 0 | H86: 0 | I86: 0 | J86: 0
C87: Kiosk Mounted ; < = 22kV ; > 60 kVA and < = 600 kVA ; Multiple Phase | D87: 0 | E87: 0 | F87: 0 | G87: 0 | H87: 0 | I87: 0 | J87: 0
C88: Kiosk Mounted ; < = 22kV ; > 600 kVA ; Multiple Phase | D88: 1305922.022 | E88: 891707.7835 | F88: 1161439.515 | G88: 1216286.463 | H88: 1266578.488 | I88: 1316131.625 | J88: 1370477.343
C89: Ground Outdoor / Indoor Chamber Mounted; ˂ 22 kV ; < = 60 kVA ; Single Phase | D89: 180600.1696 | E89: 238656.6259 | F89: 303867.831 | G89: 331572.7843 | H89: 359254.0912 | I89: 387922.5907 | J89: 419289.8317
C90: Ground Outdoor / Indoor Chamber Mounted; ˂ 22 kV ; > 60 kVA and < = 600 kVA ; Single Phase | D90: 0 | E90: 0 | F90: 0 | G90: 0 | H90: 0 | I90: 0 | J90: 0
C91: Ground Outdoor / Indoor Chamber Mounted; ˂ 22 kV ; > 600 kVA ; Single Phase | D91: 227662.1493 | E91: 273418.9797 | F91: 317078.8873 | G91: 315808.2366 | H91: 312993.1588 | I91: 309566.3661 | J91: 306644.3969
C92: Ground Outdoor / Indoor Chamber Mounted; ˂ 22 kV ; < = 60 kVA ; Multiple Phase | D92: 0 | E92: 0 | F92: 0 | G92: 0 | H92: 0 | I92: 0 | J92: 0
C93: Ground Outdoor / Indoor Chamber Mounted; ˂ 22 kV ; > 60 kVA and < = 600 kVA ; Multiple Phase | D93: 0 | E93: 0 | F93: 0 | G93: 0 | H93: 0 | I93: 0 | J93: 0
C94: Ground Outdoor / Indoor Chamber Mounted; ˂ 22 kV ; > 600 kVA ; Multiple Phase | D94: 0 | E94: 0 | F94: 0 | G94: 0 | H94: 0 | I94: 0 | J94: 0
C95: Ground Outdoor / Indoor Chamber Mounted; > = 22 kV & < = 33 kV ; < = 15 MVA | D95: 296830.155 | E95: 377745.1303 | F95: 462479.6066 | G95: 484500.8271 | H95: 503201.4503 | I95: 520035.1431 | J95: 537149.2191
C96: Ground Outdoor / Indoor Chamber Mounted; > = 22 kV & < = 33 kV ; > 15 MVA and < = 40 MVA | D96: 42328.26464 | E96: 53307.1145 | F96: 64696.03211 | G96: 67303.16139 | H96: 69535.57867 | I96: 71602.09017 | J96: 73798.107
C97: Ground Outdoor / Indoor Chamber Mounted; > = 22 kV & < = 33 kV ; > 40 MVA | D97: 0 | E97: 0 | F97: 0 | G97: 0 | H97: 0 | I97: 0 | J97: 0
C98: Ground Outdoor / Indoor Chamber Mounted; > 33 kV & < = 66 kV ; < = 15 MVA | D98: 0 | E98: 0 | F98: 0 | G98: 0 | H98: 0 | I98: 0 | J98: 0
C99: Ground Outdoor / Indoor Chamber Mounted; > 33 kV & < = 66 kV ; > 15 MVA and < = 40 MVA | D99: 679915.1048 | E99: 905072.7306 | F99: 0 | G99: 0 | H99: 0 | I99: 0 | J99: 0
C100: Ground Outdoor / Indoor Chamber Mounted; > 33 kV & < = 66 kV ; > 40 MVA | D100: 103043.8417 | E100: 590224.7439 | F100: 828487.0213 | G100: 649075.2049 | H100: 0 | I100: 0 | J100: 0
C101: Ground Outdoor / Indoor Chamber Mounted; > 66 kV & < = 132 kV ; < = 100 MVA | D101: 0 | E101: 0 | F101: 0 | G101: 0 | H101: 0 | I101: 0 | J101: 0
C102: Ground Outdoor / Indoor Chamber Mounted; > 66 kV & < = 132 kV ; > 100 MVA | D102: 0 | E102: 0 | F102: 0 | G102: 0 | H102: 0 | I102: 0 | J102: 0
C103: Ground Outdoor / Indoor Chamber Mounted; > 132 kV ; < = 100 MVA | D103: 0 | E103: 0 | F103: 0 | G103: 0 | H103: 0 | I103: 0 | J103: 0
C104: Ground Outdoor / Indoor Chamber Mounted; > 132 kV ; > 100 MVA | D104: 0 | E104: 0 | F104: 0 | G104: 0 | H104: 0 | I104: 0 | J104: 0
C105: Other | D105: 0 | E105: 0 | F105: 0 | G105: 0 | H105: 0 | I105: 0 | J105: 0
B106: SWITCHGEAR BY: Highest operating voltage; Switch function | C106: ˂ = 11 kV ; FUSE | D106: 0 | E106: 0 | F106: 0 | G106: 0 | H106: 0 | I106: 0 | J106: 0
C107: ˂ = 11 kV ; Switch | D107: 0 | E107: 0 | F107: 0 | G107: 0 | H107: 0 | I107: 0 | J107: 0
C108: ˂ = 11 kV ; Circuit Breaker | D108: 1825199.153 | E108: 1669866.882 | F108: 2027610.247 | G108: 2071051.761 | H108: 2107604.268 | I108: 2152286.969 | J108: 2201422.393
C109: > 11 kV & < = 22 kV ; Switch | D109: 446573.0451 | E109: 755292.5985 | F109: 2104147.599 | G109: 868410.1752 | H109: 331627.8804 | I109: 341871.0688 | J109: 352664.6356
C110: > 11 kV & < = 22 kV ; Circuit Breaker | D110: 177112.2386 | E110: 223510.9788 | F110: 271880.1575 | G110: 283535.5251 | H110: 293719.6868 | I110: 303341.8087 | J110: 313690.0467
C111: > 22 kV & < = 33 kV ; Switch | D111: 259213.509 | E111: 322745.6168 | F111: 396980.7786 | G111: 419277.2063 | H111: 439450.8823 | I111: 459425.5937 | J111: 479172.5383
C112: > 22 kV & < = 33 kV ; Circuit Breaker | D112: 0 | E112: 0 | F112: 0 | G112: 0 | H112: 0 | I112: 0 | J112: 0
C113: > 33 kV & < = 66 kV ; Switch | D113: 0 | E113: 0 | F113: 0 | G113: 0 | H113: 0 | I113: 0 | J113: 0
C114: > 33 kV & < = 66 kV ; Circuit Breaker | D114: 1159.80636 | E114: 1485.201248 | F114: 1831.349981 | G114: 1934.276066 | H114: 2027.753681 | I114: 2117.823802 | J114: 2213.512916
C115: > 66 kV & < = 132 kV ; Switch | D115: 1757903.303 | E115: 833924.1855 | F115: 507890.4336 | G115: 364421.1905 | H115: 82312.04458 | I115: 82933.7087 | J115: 83919.6008
C116: > 66 kV & < = 132 kV ; Circuit Breaker | D116: 0 | E116: 0 | F116: 0 | G116: 0 | H116: 0 | I116: 0 | J116: 0
C117: > 132 kV ; Switch | D117: 194955.1293 | E117: 159175.8565 | F117: 161688.0081 | G117: 148078.7772 | H117: 137587.793 | I117: 137716.7156 | J117: 138490.5349
C118: > 132 kV ; Circuit Breaker | D118: 0 | E118: 0 | F118: 0 | G118: 0 | H118: 0 | I118: 0 | J118: 0
C119: Other | D119: 0 | E119: 0 | F119: 0 | G119: 0 | H119: 0 | I119: 0 | J119: 0
B120: PUBLIC LIGHTING BY: Asset type ; Lighting obligation | C120: Luminaires ; Major Road
C121: Luminaires ; Minor Road
C122: Brackets ; Major Road
C123: Brackets ; Minor Road
C124: Lamps ; Major Road
C125: Lamps ; Minor Road
C126: Poles / Columns ; Major Road
C127: Poles / Columns ; Minor Road
C128: Other
B129: SCADA, NETWORK CONTROL AND PROTECTION SYSTEMS BY: Function | C129: Field Devices | D129: 0 | E129: 0 | F129: 0 | G129: 0 | H129: 0 | I129: 0 | J129: 0
C130: Local Network Wiring Assets | D130: 748774.9023 | E130: 3120394.92 | F130: 4390185.384 | G130: 2623418.33 | H130: 167955.4863 | I130: 168112.8641 | J130: 169057.4769
C131: Communications Network Assets | D131: 221587.5998 | E131: 180920.5847 | F131: 183775.9168 | G131: 168307.5533 | H131: 156383.4146 | I131: 156529.9491 | J131: 157409.4785
C132: Master Station Assets | D132: 943145.1731 | E132: 1198340.728 | F132: 1840516.604 | G132: 1665530.261 | H132: 7247.099939 | I132: 7253.890624 | J132: 7294.64966
C133: Communications Site Infrastructure | D133: 5623079.296 | E133: 5670077.101 | F133: 5083408.774 | G133: 1838761.135 | H133: 3060336.755 | I133: 2729917.109 | J133: 2376715.277
C134: Communications Linear Assets | D134: 1058249.508 | E134: 1000321.401 | F134: 1718747.025 | G134: 1613645.733 | H134: 1277032.98 | I134: 1398379.741 | J134: 1165864.079
C135: AFLC | D135: 0 | E135: 0 | F135: 0 | G135: 227309.2064 | H135: 0 | I135: 229267.8929 | J135: 0
C136: Other | D136: 0 | E136: 0 | F136: 0 | G136: 0 | H136: 0 | I136: 0 | J136: 0
B137: OTHER: | C137: Other | D137: 0 | E137: 0 | F137: 0 | G137: 0 | H137: 0 | I137: 0 | J137: 0
C138: Buildings | D138: 287095.2906 | E138: 2035626.729 | F138: 1536937.591 | G138: 176074.0217 | H138: 243446.9503 | I138: 15369.47214 | J138: 15455.83198
C139: Instrument Transformers | D139: 33248.42927 | E139: 27146.48866 | F139: 27574.92105 | G139: 25253.94826 | H139: 23464.77376 | I139: 23486.76075 | J139: 23618.73099
C140: Metering Units | D140: 24902.20234 | E140: 20332.0087 | F140: 20652.89334 | G140: 18914.54554 | H140: 17574.50072 | I140: 17590.96839 | J140: 17689.81065
C141: Pillars | D141: 0 | E141: 0 | F141: 671464.5245 | G141: 678838.2132 | H141: 682444.7184 | I141: 684687.6519 | J141: 688534.8574
C142: Substation Auxiliary Plant | D142: 479854.0694 | E142: 621887.8865 | F142: 1421555.295 | G142: 709106.7996 | H142: 85091.63777 | I142: 172477.5278 | J142: 117158.5587
C143: Voltage Regulators | D143: 0 | E143: 0 | F143: 0 | G143: 0 | H143: 0 | I143: 0 | J143: 0
C144: Civil and Grounds | D144: 1086030.554 | E144: 3000645.962 | F144: 3659077.402 | G144: 1721980.819 | H144: 272995.3596 | I144: 419968.6387 | J144: 502662.6173
C145: Fire Systems | D145: 7219.759961 | E145: 0 | F145: 271656.0157 | G145: 370791.3361 | H145: 353616.0095 | I145: 0 | J145: 106492.1283
C146: Capacitor Banks | D146: 0 | E146: 0 | F146: 0 | G146: 0 | H146: 0 | I146: 0 | J146: 0
C147: Cable Tunnels | D147: 0 | E147: 0 | F147: 149066.5038 | G147: 440517.8584 | H147: 151504.1295 | I147: 152002.0653 | J147: 152856.1528
C148: Power Transformer Refurbishment | D148: 0 | E148: 0 | F148: 0 | G148: 0 | H148: 0 | I148: 0 | J148: 0
C149: Power Transformer Spares | D149: 0 | E149: 0 | F149: 0 | G149: 0 | H149: 0 | I149: 0 | J149: 0
C150: Pole Refurbishment | D150: 4493296.779 | E150: 3085198.07 | F150: 2030906.386 | G150: 2053208.788 | H150: 2064116.995 | I150: 2070900.954 | J150: 2082537.182
C151: Tower Refurbishment | D151: 0 | E151: 0 | F151: 0 | G151: 0 | H151: 0 | I151: 0 | J151: 0
C152: EDO Refurbishment | D152: 0 | E152: 0 | F152: 0 | G152: 0 | H152: 0 | I152: 0 | J152: 0
C153: Surge Arrestors | D153: 0 | E153: 0 | F153: 0 | G153: 0 | H153: 0 | I153: 0 | J153: 0
B181: ASSET REPLACEMENTS
D182: VOLUMES (0's)
B183: ASSET GROUP | C183: ASSET CATEGORY | D183: =CRCP_y4 -> 2022-23 | E183: =CRCP_y5 -> 2023-24 | F183: =FRCP_y1 -> 2024-25 | G183: =FRCP_y2 -> 2025-26 | H183: =FRCP_y3 -> 2026-27 | I183: =FRCP_y4 -> 2027-28 | J183: =FRCP_y5 -> 2028-29
B184: POLES BY: HIGHEST OPERATING VOLTAGE ; MATERIAL TYPE | C184: Staking of a wooden pole | D184: 0 | E184: 0 | F184: 0 | G184: 0 | H184: 0 | I184: 0 | J184: 0
C185: ˂ = 1 kV; Wood | D185: 0 | E185: 0 | F185: 0 | G185: 0 | H185: 0 | I185: 0 | J185: 0
C186: > 1 kV & < = 11 kV; Wood | D186: 0 | E186: 0 | F186: 0 | G186: 0 | H186: 0 | I186: 0 | J186: 0
C187: ˃ 11 kV & < = 22 kV; Wood | D187: 0 | E187: 0 | F187: 0 | G187: 0 | H187: 0 | I187: 0 | J187: 0
C188: > 22 kV & < = 66 kV; Wood | D188: 0 | E188: 0 | F188: 0 | G188: 0 | H188: 0 | I188: 0 | J188: 0
C189: > 66 kV & < = 132 kV; Wood | D189: 0 | E189: 0 | F189: 0 | G189: 0 | H189: 0 | I189: 0 | J189: 0
C190: > 132 kV; Wood | D190: 0 | E190: 0 | F190: 0 | G190: 0 | H190: 0 | I190: 0 | J190: 0
C191: ˂ = 1 kV; Concrete | D191: 0 | E191: 0 | F191: 0 | G191: 0 | H191: 0 | I191: 0 | J191: 0
C192: > 1 kV & < = 11 kV; Concrete | D192: 0 | E192: 0 | F192: 0 | G192: 0 | H192: 0 | I192: 0 | J192: 0
C193: ˃ 11 kV & < = 22 kV; Concrete | D193: 0 | E193: 0 | F193: 0 | G193: 0 | H193: 0 | I193: 0 | J193: 0
C194: > 22 kV & < = 66 kV; Concrete | D194: 0 | E194: 0 | F194: 0 | G194: 0 | H194: 0 | I194: 0 | J194: 0
C195: > 66 kV & < = 132 kV; Concrete | D195: 0 | E195: 0 | F195: 0 | G195: 0 | H195: 0 | I195: 0 | J195: 0
C196: > 132 kV; Concrete | D196: 0 | E196: 0 | F196: 0 | G196: 0 | H196: 0 | I196: 0 | J196: 0
C197: ˂ = 1 kV; Steel | D197: 10 | E197: 11 | F197: 12 | G197: 13 | H197: 14 | I197: 15 | J197: 16
C198: > 1 kV & < = 11 kV; Steel | D198: 7 | E198: 8 | F198: 8 | G198: 9 | H198: 10 | I198: 10 | J198: 11
C199: ˃ 11 kV & < = 22 kV; Steel | D199: 48 | E199: 66 | F199: 59 | G199: 96 | H199: 103 | I199: 11 | J199: 12
C200: > 22 kV & < = 66 kV; Steel | D200: 0 | E200: 15 | F200: 9 | G200: 24 | H200: 0 | I200: 0 | J200: 0
C201: > 66 kV & < = 132 kV; Steel | D201: 0 | E201: 0 | F201: 0 | G201: 0 | H201: 0 | I201: 0 | J201: 0
C202: > 132 kV; Steel | D202: 0 | E202: 0 | F202: 0 | G202: 0 | H202: 0 | I202: 0 | J202: 0
C203: Other | D203: 0 | E203: 0 | F203: 0 | G203: 0 | H203: 0 | I203: 0 | J203: 0
B204: POLE TOP STRUCTURES BY: HIGHEST OPERATING VOLTAGE | C204: ˂ = 1 kV | D204: 0 | E204: 0 | F204: 0 | G204: 0 | H204: 0 | I204: 0 | J204: 0
C205: > 1 kV & < = 11 kV | D205: 19 | E205: 19 | F205: 21 | G205: 22 | H205: 24 | I205: 26 | J205: 28
C206: ˃ 11 kV & < = 22 kV | D206: 91 | E206: 114 | F206: 109 | G206: 156 | H206: 169 | I206: 62 | J206: 65
C207: > 22 kV & < = 66 kV | D207: 37 | E207: 37 | F207: 36 | G207: 36 | H207: 36 | I207: 36 | J207: 36
C208: > 66 kV & < = 132 kV | D208: 68 | E208: 88 | F208: 40 | G208: 40 | H208: 40 | I208: 40 | J208: 40
C209: > 132 kV | D209: 0 | E209: 0 | F209: 0 | G209: 0 | H209: 0 | I209: 0 | J209: 0
C210: Other | D210: 0 | E210: 0 | F210: 0 | G210: 0 | H210: 0 | I210: 0 | J210: 0
B211: STAKING WOODEN POLES BY: HIGHEST OPERATING VOLTAGE | C211: ˂ = 1 Kv | D211: 0 | E211: 0 | F211: 0 | G211: 0 | H211: 0 | I211: 0 | J211: 0
C212: > 1 kV & < = 11 kV | D212: 0 | E212: 0 | F212: 0 | G212: 0 | H212: 0 | I212: 0 | J212: 0
C213: ˃ 11 kV & < = 22 kV | D213: 0 | E213: 0 | F213: 0 | G213: 0 | H213: 0 | I213: 0 | J213: 0
C214: > 22 kV & < = 66 kV | D214: 0 | E214: 0 | F214: 0 | G214: 0 | H214: 0 | I214: 0 | J214: 0
C215: > 66 kV & < = 132 kV | D215: 0 | E215: 0 | F215: 0 | G215: 0 | H215: 0 | I215: 0 | J215: 0
C216: > 132 kV | D216: 0 | E216: 0 | F216: 0 | G216: 0 | H216: 0 | I216: 0 | J216: 0
B217: OVERHEAD CONDUCTORS BY: Highest operating voltage; Number of phases (at HV) | C217: ˂ = 1 kV | D217: 0.112083056 | E217: 0.1134540878 | F217: 0.1147690944 | G217: 0.1160286576 | H217: 0.1172107535 | I217: 0.1182932127 | J217: 0.1192764275
C218: > 1 kV & < = 11 kV | D218: 0.04304260892 | E218: 0.043294215 | F218: 0.04352491937 | G218: 0.043735389 | H218: 0.04391552337 | I218: 0.04405520649 | J218: 0.04415511079
C219: ˃ 11 kV & < = 22 kV ; SWER | D219: 0.001170106948 | E219: 0.001193172643 | F219: 0.00121484924 | G219: 0.001235152454 | H219: 0.001253607933 | I219: 0.001269738627 | J219: 0.00128356027
C220: ˃ 11 kV & < = 22 kV ; Single-Phase | D220: 0 | E220: 0 | F220: 0 | G220: 0 | H220: 0 | I220: 0 | J220: 0
C221: ˃ 11 kV & < = 22 kV ; Multiple-Phase | D221: 7.232333564 | E221: 10.23672611 | F221: 7.040998736 | G221: 12.24515114 | H221: 13.2491399 | I221: 0.252921066 | J221: 0.2564935442
C222: > 22 kV & < = 66 kV | D222: 0.0002799374652 | E222: 3.000289128 | F222: 1.800298317 | G222: 4.800307504 | H222: 0.0003166872301 | I222: 0.0003258673553 | J222: 0.0003350438921
C223: > 66 kV & < = 132 kV | D223: 0.0002800111659 | E223: 0.0002883158459 | F223: 0.000296618462 | G223: 0.0003049189588 | H223: 0.000313216767 | I223: 0.0003215113034 | J223: 0.0003298024846
C224: > 132 kV | D224: 0 | E224: 0 | F224: 0 | G224: 0 | H224: 0 | I224: 0 | J224: 0
C225: Other | D225: 0 | E225: 0 | F225: 0 | G225: 0 | H225: 0 | I225: 0 | J225: 0
B226: UNDERGROUND CABLES BY: Highest operating voltage | C226: ˂ = 1 kV | D226: 1.730245929 | E226: 1.732028568 | F226: 1.653717623 | G226: 1.65531512 | H226: 1.65677141 | I226: 1.658036502 | J226: 1.659112016
C227: > 1 kV & < = 11 kV | D227: 9.141214432 | E227: 7.418801393 | F227: 7.519461676 | G227: 8.520118242 | H227: 7.52076995 | I227: 7.521415625 | J227: 7.522055093
C228: > 11 kV & < = 22 kV | D228: 1.512137628 | E228: 6.51260762 | F228: 0.01306620429 | G228: 0.01351307596 | H228: 0.01394278564 | I228: 0.0143497577 | J228: 0.01473348135
C229: > 22 kV & < = 33 kV | D229: 0 | E229: 0 | F229: 0 | G229: 0 | H229: 0 | I229: 0 | J229: 0
... 247 more rows

Sheet 2.3 Augex (b)
B1: =INDEX(dms_Worksheet_List,MATCH(dms_Model,dms_Model_List)) -> REGULATORY REPORTING STATEMENT
B2: =INDEX(dms_TradingNameFull_List,MATCH(dms_TradingName,dms_TradingName_List)) -> Power and Water Corporation
B3: =CONCATENATE("REGULATORY PERIOD FROM ", FRCP_y1," TO ",dms_MultiYear_FinalYear_Result) -> REGULATORY PERIOD FROM 2024-25 TO 2028-29
B4: 2.3 AUGEX PROJECT DATA
B6: There are FOUR tables on this worksheet. These tables have been 'grouped' (and sub-grouped) for easy navigation. See the Instructions sheet on how to group or ungroup tables.
B8: NOTE: DNSP must provide expenditure information on an 'as incurred' basis.
B9: 2.3.3 - AUGEX DATA - HV/LV FEEDERS AND DISTRIBUTION SUBSTATIONS
D10: VOLUMES (0's)
B11: PROJECT TYPE | C11: UNITS | D11: =CRCP_y4 -> 2022-23 | E11: =CRCP_y5 -> 2023-24 | F11: =FRCP_y1 -> 2024-25 | G11: =FRCP_y2 -> 2025-26 | H11: =FRCP_y3 -> 2026-27 | I11: =FRCP_y4 -> 2027-28 | J11: =FRCP_y5 -> 2028-29
B12: DESCRIPTOR METRICS - UNITS ADDED
B13: HV Feeder Augmentations - Overhead Lines | C13: Circuit Line Length in KM | D13: 0 | E13: 22 | F13: 0 | G13: 0 | H13: 0 | I13: 0 | J13: 0
B14: HV Feeder Augmentations - Underground Cables | C14: Circuit Line Length in KM | D14: 0 | E14: 0 | F14: 0 | G14: 0 | H14: 0 | I14: 0 | J14: 0
B15: LV Feeder Augmentations - Overhead Lines | C15: Circuit Line Length in KM | D15: 0 | E15: 0 | F15: 0 | G15: 0 | H15: 0 | I15: 0 | J15: 0
B16: LV Feeder Augmentations - Underground Cables | C16: Circuit Line Length in KM | D16: 0 | E16: 0 | F16: 0 | G16: 0 | H16: 0 | I16: 0 | J16: 0
B17: Distribution Substation Augmentations - Pole Mounted | C17: Number | D17: 0 | E17: 0 | F17: 0 | G17: 0 | H17: 0 | I17: 0 | J17: 0
B18: Distribution Substation Augmentations - Ground Mounted | C18: Number | D18: 0 | E18: 0 | F18: 0 | G18: 0 | H18: 0 | I18: 0 | J18: 0
B19: Distribution Substation Augmentations - Indoor | C19: Number | D19: 0 | E19: 0 | F19: 0 | G19: 0 | H19: 0 | I19: 0 | J19: 0
B20: DESCRIPTOR METRICS - UNITS UPGRADED
B21: HV Feeder Augmentations - Overhead Lines | C21: Circuit Line Length in KM | D21: 379 | E21: 728 | F21: 830 | G21: 830 | H21: 830 | I21: 830 | J21: 830
B22: HV Feeder Augmentations - Underground Cables | C22: Circuit Line Length in KM | D22: 57.31823002 | E22: 57.31823002 | F22: 58.11023002 | G22: 58.11023002 | H22: 58.11023002 | I22: 58.11023002 | J22: 58.11023002
B23: LV Feeder Augmentations - Overhead Lines | C23: Circuit Line Length in KM | D23: 46.8 | E23: 40.8 | F23: 44.8 | G23: 44.8 | H23: 44.8 | I23: 44.8 | J23: 44.8
B24: LV Feeder Augmentations - Underground Cables | C24: Circuit Line Length in KM | D24: 0 | E24: 0 | F24: 0 | G24: 0 | H24: 0 | I24: 0 | J24: 0
B25: Distribution Substation Augmentations - Pole Mounted | C25: Number | D25: 1 | E25: 1 | F25: 1 | G25: 1 | H25: 1 | I25: 1 | J25: 1
B26: Distribution Substation Augmentations - Ground Mounted | C26: Number | D26: 0 | E26: 0 | F26: 500 | G26: 500 | H26: 500 | I26: 500 | J26: 500
B27: Distribution Substation Augmentations - Indoor | C27: Number | D27: 0 | E27: 0 | F27: 500 | G27: 500 | H27: 500 | I27: 500 | J27: 500
B29: COST METRICS
D30: =CONCATENATE("TOTAL DIRECT EXPENDITURE ($0's, real ", dms_DollarReal,")") -> TOTAL DIRECT EXPENDITURE ($0's, real June 2024)
B31: PROJECT TYPE | D31: =CRCP_y4 -> 2022-23 | E31: =CRCP_y5 -> 2023-24 | F31: =FRCP_y1 -> 2024-25 | G31: =FRCP_y2 -> 2025-26 | H31: =FRCP_y3 -> 2026-27 | I31: =FRCP_y4 -> 2027-28 | J31: =FRCP_y5 -> 2028-29
B32: HV Feeder Augmentations - Overhead Lines | D32: 628753.1417 | E32: 4293825.235 | F32: 432702.3609 | G32: 437729.0701 | H32: 440207.2077 | I32: 441564.8238 | J32: 444009.313
B33: HV Feeder Augmentations - Underground Cables | D33: 491766.9566 | E33: 491103.3068 | F33: 884560.1933 | G33: 894836.1411 | H33: 899902.122 | I33: 902677.4551 | J33: 907674.6495
B34: HV Feeder Non-Material Projects | D34: 45656.48275 | E34: 91189.73674 | F34: 92121.65595 | G34: 93191.83449 | H34: 93719.42611 | I34: 94008.46046 | J34: 94528.88838
B35: LV Feeder Augmentations - Overhead Lines | D35: 1064002.531 | E35: 1064346.588 | F35: 1088930.058 | G35: 1101580.173 | H35: 1107816.604 | I35: 1111233.154 | J35: 1117384.906
B36: LV Feeder Augmentations - Underground Cables | D36: 0 | E36: 0 | F36: 0 | G36: 0 | H36: 0 | I36: 0 | J36: 0
B37: LV Feeder Non-Material Projects | D37: 0 | E37: 0 | F37: 0 | G37: 0 | H37: 0 | I37: 0 | J37: 0
B38: Distribution Substation Augmentations - Pole Mounted | D38: 62007.05172 | E38: 61923.3719 | F38: 114643.881 | G38: 115975.7005 | H38: 116632.2796 | I38: 116991.9781 | J38: 117639.642
B39: Distribution Substation Augmentations - Ground Mounted | D39: 0 | E39: 0 | F39: 55894.02819 | G39: 56543.34988 | H39: 56863.46159 | I39: 57038.83072 | J39: 57354.59591
B40: Distribution Substation Augmentations - Indoor | D40: 0 | E40: 0 | F40: 55894.02819 | G40: 56543.34988 | H40: 56863.46159 | I40: 57038.83072 | J40: 57354.59591
B44: 2.3.4 - AUGEX - TOTAL EXPENDITURE
D45: =CONCATENATE("TOTAL DIRECT EXPENDITURE ($0's, real ", dms_DollarReal,")") -> TOTAL DIRECT EXPENDITURE ($0's, real June 2024)
D46: =CRCP_y4 -> 2022-23 | E46: =CRCP_y5 -> 2023-24 | F46: =FRCP_y1 -> 2024-25 | G46: =FRCP_y2 -> 2025-26 | H46: =FRCP_y3 -> 2026-27 | I46: =FRCP_y4 -> 2027-28 | J46: =FRCP_y5 -> 2028-29
B47: Subtransmission Substations, Switching Stations, Zone Substations | D47: 3105690.87 | E47: 5599253.73 | F47: 5052820.149 | G47: 1718917.836 | H47: 705106.9237 | I47: 707281.5009 | J47: 711196.9893
B48: Subtransmission Lines | D48: 761298.6234 | E48: 1549200.637 | F48: 1073165.341 | G48: 1085632.318 | H48: 1091778.463 | I48: 1095145.55 | J48: 1101208.242
B49: HV Feeders | D49: 1120520.098 | E49: 4784928.542 | F49: 1317262.554 | G49: 1332565.211 | H49: 1340109.33 | I49: 1344242.279 | J49: 1351683.962
B50: HV Feeders - Land Purchases and Easements | D50: 45656.48275 | E50: 91189.73674 | F50: 92121.65595 | G50: 93191.83449 | H50: 93719.42611 | I50: 94008.46046 | J50: 94528.88838
B51: Distribution Substations | D51: 62007.05172 | E51: 61923.3719 | F51: 226431.9374 | G51: 229062.4003 | H51: 230359.2028 | I51: 231069.6395 | J51: 232348.8339
B52: Distribution Substations - Land Purchases and Easements | D52: 0 | E52: 0 | F52: 0 | G52: 0 | H52: 0 | I52: 0 | J52: 0
B53: LV Feeders | D53: 1064002.531 | E53: 1064346.588 | F53: 1088930.058 | G53: 1101580.173 | H53: 1107816.604 | I53: 1111233.154 | J53: 1117384.906
B54: LV Feeders - Land Purchases and Easements | D54: 0 | E54: 0 | F54: 0 | G54: 0 | H54: 0 | I54: 0 | J54: 0
B55: Other Assets | D55: 221103.3067 | E55: 303092.1117 | F55: 634444.561 | G55: 506110.8724 | H55: 2719784.314 | I55: 818555.5314 | J55: 364250.2622
B59: 2.3.5 - AUGEX - BY DRIVER
D60: =CONCATENATE("TOTAL DIRECT EXPENDITURE ($0's, real ", dms_DollarReal,")") -> TOTAL DIRECT EXPENDITURE ($0's, real June 2024)
D61: =CRCP_y4 -> 2022-23 | E61: =CRCP_y5 -> 2023-24 | F61: =FRCP_y1 -> 2024-25 | G61: =FRCP_y2 -> 2025-26 | H61: =FRCP_y3 -> 2026-27 | I61: =FRCP_y4 -> 2027-28 | J61: =FRCP_y5 -> 2028-29
B62: "Greenfield" driven augex (network expansion capex) | D62: 365662.1903 | E62: 3983658.78 | F62: 0 | G62: 0 | H62: 0 | I62: 0 | J62: 0
B63: Reinforcement driven augex (augmentation of the existing network) | D63: 6014616.773 | E63: 9470275.936 | F63: 9485176.256 | G63: 6067060.646 | H63: 7288674.263 | I63: 5401536.115 | J63: 4972602.084
B67: 2.3.6 - AUGEX - GREENFIELDS DRIVEN
D68: =CONCATENATE("TOTAL DIRECT EXPENDITURE ($0's, real ", dms_DollarReal,")") -> TOTAL DIRECT EXPENDITURE ($0's, real June 2024)
D69: =CRCP_y4 -> 2022-23 | E69: =CRCP_y5 -> 2023-24 | F69: =FRCP_y1 -> 2024-25 | G69: =FRCP_y2 -> 2025-26 | H69: =FRCP_y3 -> 2026-27 | I69: =FRCP_y4 -> 2027-28 | J69: =FRCP_y5 -> 2028-29
B70: Subtransmission Substations, Switching Stations, Zone Substations | D70: 0 | E70: 0 | F70: 0 | G70: 0 | H70: 0 | I70: 0 | J70: 0
B71: Subtransmission Lines | D71: 0 | E71: 0 | F71: 0 | G71: 0 | H71: 0 | I71: 0 | J71: 0
B72: HV Feeders | D72: 365662.1903 | E72: 3983658.78 | F72: 0 | G72: 0 | H72: 0 | I72: 0 | J72: 0
B73: HV Feeders - Land Purchases and Easements | D73: 0 | E73: 0 | F73: 0 | G73: 0 | H73: 0 | I73: 0 | J73: 0
B74: Distribution Substations | D74: 0 | E74: 0 | F74: 0 | G74: 0 | H74: 0 | I74: 0 | J74: 0
B75: Distribution Substations - Land Purchases and Easements | D75: 0 | E75: 0 | F75: 0 | G75: 0 | H75: 0 | I75: 0 | J75: 0
B76: LV Feeders | D76: 0 | E76: 0 | F76: 0 | G76: 0 | H76: 0 | I76: 0 | J76: 0
B77: LV Feeders - Land Purchases and Easements | D77: 0 | E77: 0 | F77: 0 | G77: 0 | H77: 0 | I77: 0 | J77: 0
B78: Other Assets | D78: 0 | E78: 0 | F78: 0 | G78: 0 | H78: 0 | I78: 0 | J78: 0

Sheet 2.5 Connections
B1: =INDEX(dms_Worksheet_List,MATCH(dms_Model,dms_Model_List)) -> REGULATORY REPORTING STATEMENT
B2: =INDEX(dms_TradingNameFull_List,MATCH(dms_TradingName,dms_TradingName_List)) -> Power and Water Corporation
B3: =CONCATENATE("REGULATORY PERIOD FROM ", FRCP_y1," TO ",dms_MultiYear_FinalYear_Result) -> REGULATORY PERIOD FROM 2024-25 TO 2028-29
B4: 2.5 CONNECTIONS
B6: There are THREE tables on this worksheet - each has been 'grouped' (and sub-grouped) for easy navigation. See the Instructions sheet on how to group or ungroup tables.
B8: 2.5.1 - DESCRIPTOR METRICS
B9: VOLUMES AND EXPENDITURE - ALL
B10: CONNECTION SUBCATEGORY | C10: DESCRIPTOR METRIC | D10: Unit of Measure | E10: =CONCATENATE("VOLUMES and EXPENDITURE (0's, real ", dms_DollarReal, ")") -> VOLUMES and EXPENDITURE (0's, real June 2024)
E11: =CRCP_y4 -> 2022-23 | F11: =CRCP_y5 -> 2023-24 | G11: =FRCP_y1 -> 2024-25 | H11: =FRCP_y2 -> 2025-26 | I11: =FRCP_y3 -> 2026-27 | J11: =FRCP_y4 -> 2027-28 | K11: =FRCP_y5 -> 2028-29
B12: RESIDENTIAL | C12: Underground connections | D12: 0's | E12: 130 | F12: 131 | G12: 132 | H12: 133 | I12: 134 | J12: 136 | K12: 137
C13: Overhead connections | D13: 0's | E13: 83.06835819 | F13: 83.99555387 | G13: 84.92274955 | H13: 85.84994523 | I13: 86.77714091 | J13: 86.70433659 | K13: 87.63153228
C14: Distribution substations installed | D14: MVA added | E14: 0.8715980445 | F14: 0.8794816176 | G14: 0.8873651907 | H14: 0.8952487639 | I14: 0.903132337 | J14: 0.9110159102 | K14: 0.9188994833
C15: Distribution substations installed | D15: 0's | E15: 2.654023924 | F15: 2.678029476 | G15: 2.702035027 | H15: 2.726040579 | I15: 2.75004613 | J15: 2.774051682 | K15: 2.798057233
C16: Distribution substations installed | D16: total spend $0s | E16: 646911.8182 | F16: 647279.2139 | G16: 246118.3426 | H16: 250910.83 | I16: 254487.5112 | J16: 257604.3112 | K16: 261287.5279
C17: Augmentation HV | D17: net circuit KM added | E17: 0.1170258674 | F17: 0.1180843622 | G17: 0.119142857 | H17: 0.1202013518 | I17: 0.1212598466 | J17: 0.1223183414 | K17: 0.1233768361
C18: Augmentation HV | D18: total spend $0s | E18: 813759.4942 | F18: 806367.4689 | G18: 364415.9135 | H18: 367996.0619 | I18: 369742.6489 | J18: 370794.8401 | K18: 372635.4618
C19: Augmentation LV | D19: net circuit KM added | E19: 3.46640406 | F19: 3.497757561 | G19: 3.529111062 | H19: 3.560464562 | I19: 3.591818063 | J19: 3.623171564 | K19: 3.654525065
C20: Augmentation LV | D20: total spend $0s | E20: 250574.9513 | F20: 248962.8391 | G20: 112812.1083 | H20: 114223.4656 | I20: 115070.0846 | J20: 115702.901 | K20: 116584.1216
C21: Mean days to connect residential customer with LV single phase connection | D21: 0's | E21: 3.273799521 | F21: 3.273799521 | G21: 3.273799521 | H21: 3.273799521 | I21: 3.273799521 | J21: 3.273799521 | K21: 3.273799521
C22: Volume of GSL breaches for residential customers | D22: 0's | E22: 2043.714286 | F22: 2043.714286 | G22: 2043.714286 | H22: 2043.714286 | I22: 2043.714286 | J22: 2043.714286 | K22: 2043.714286
C23: Volume of customer complaints relating to connection services | D23: 0's | E23: 11.71428571 | F23: 11.71428571 | G23: 11.71428571 | H23: 11.71428571 | I23: 11.71428571 | J23: 11.71428571 | K23: 11.71428571
C24: GSL payments | D24: $0's | E24: 198191.8571 | F24: 198191.8571 | G24: 198191.8571 | H24: 198191.8571 | I24: 198191.8571 | J24: 198191.8571 | K24: 198191.8571
B25: COMMERCIAL/INDUSTRIAL | C25: Underground connections | D25: 0's | E25: 40 | F25: 40 | G25: 41 | H25: 41 | I25: 41 | J25: 41 | K25: 41
C26: Overhead connections | D26: 0's | E26: 22.04997395 | F26: 22.30543062 | G26: 21.58095672 | H26: 21.87708728 | I26: 22.19437182 | J26: 22.53337475 | K26: 22.89467575
C27: Distribution substations installed | D27: MVA added | E27: 4.485952119 | F27: 4.504420562 | G27: 4.52433994 | H27: 4.545748934 | I27: 4.568687272 | J27: 4.593195758 | K27: 4.6193163
C28: Distribution substations installed | D28: 0's | E28: 6.398640461 | F28: 6.424983347 | G28: 6.453395808 | H28: 6.483933016 | I28: 6.51665164 | J28: 6.551609879 | K28: 6.588867513
C29: Distribution substations installed | D29: total spend $0s | E29: 0 | F29: 0 | G29: 0 | H29: 0 | I29: 0 | J29: 0 | K29: 0
C30: Augmentation HV | D30: net circuit KM added | E30: 1.72860114 | F30: 1.735717705 | G30: 1.743393369 | H30: 1.751643036 | I30: 1.760482015 | J30: 1.769926029 | K30: 1.779991228
C31: Augmentation HV | D31: total spend $0s | E31: 6463491.161 | F31: 6538461.472 | G31: 2461361.253 | H31: 2535299.999 | I31: 2597304.041 | J31: 2654785.132 | K31: 2718277.865
C32: Augmentation LV | D32: net circuit KM added | E32: 1.031275619 | F32: 1.035521329 | G32: 1.040100595 | H32: 1.045022309 | I32: 1.050295604 | J32: 1.055929861 | K32: 1.061934713
C33: Augmentation LV | D33: total spend $0s | E33: 314709.6431 | F33: 321017.1412 | G33: 149325.8849 | H33: 155198.0046 | I33: 160476.5877 | J33: 165607.5842 | K33: 171250.3958
B34: SUBDIVISION | C34: Underground connections | D34: 0's | E34: 283 | F34: 283 | G34: 283 | H34: 283 | I34: 283 | J34: 283 | K34: 283
C35: Overhead connections | D35: 0's | E35: 13 | F35: 13 | G35: 13 | H35: 13 | I35: 13 | J35: 13 | K35: 13
C36: Distribution substations installed | D36: MVA added | E36: 0.6508862191 | F36: 0.6508862191 | G36: 0.6508862191 | H36: 0.6508862191 | I36: 0.6508862191 | J36: 0.6508862191 | K36: 0.6508862191
C37: Distribution substations installed | D37: 0's | E37: 1.673498233 | F37: 1.673498233 | G37: 1.673498233 | H37: 1.673498233 | I37: 1.673498233 | J37: 1.673498233 | K37: 1.673498233
C38: Distribution substations installed | D38: total spend $0s | E38: 383944.3003 | F38: 380456.6286 | G38: 140352.0597 | H38: 141730.927 | I38: 142403.6119 | J38: 142808.8555 | K38: 143517.7571
C39: Augmentation HV | D39: net circuit KM added | E39: 0.3008213563 | F39: 0.3008213563 | G39: 0.3008213563 | H39: 0.3008213563 | I39: 0.3008213563 | J39: 0.3008213563 | K39: 0.3008213563
C40: Augmentation HV | D40: total spend $0s | E40: 408250.1171 | F40: 404541.6563 | G40: 149237.1282 | H40: 150703.2856 | I40: 151418.5552 | J40: 151849.453 | K40: 152603.232
C41: Augmentation LV | D41: net circuit KM added | E41: 3.906781625 | F41: 3.906781625 | G41: 3.906781625 | H41: 3.906781625 | I41: 3.906781625 | J41: 3.906781625 | K41: 3.906781625
C42: Augmentation LV | D42: total spend $0s | E42: 1104858.32 | F42: 1094822.013 | G42: 494775.1233 | H42: 499635.9658 | I42: 502007.3437 | J42: 503435.9257 | K42: 505934.9763
C43: Cost per lot | D43: $0's | E43: 41903.15724 | F43: 41903.15724 | G43: 41903.15724 | H43: 41903.15724 | I43: 41903.15724 | J43: 41903.15724 | K43: 41903.15724
B44: EMBEDDED GENERATION | C44: Underground connections | D44: 0's | E44: 1506 | F44: 1583 | G44: 1663 | H44: 1746 | I44: 1831 | J44: 1918 | K44: 2006
C45: Overhead connections | D45: 0's | E45: 1268.557628 | F45: 1332.892791 | G45: 1400.199468 | H45: 1469.799245 | I45: 1541.933545 | J45: 1615.226134 | K45: 1689.512732
C46: Distribution substations installed | D46: MVA added | E46: 0 | F46: 0 | G46: 0 | H46: 0 | I46: 0 | J46: 0 | K46: 0
C47: Distribution substations installed | D47: 0's | E47: 0 | F47: 0 | G47: 0 | H47: 0 | I47: 0 | J47: 0 | K47: 0
C48: Distribution substations installed | D48: total spend $0's | E48: 0 | F48: 0 | G48: 0 | H48: 0 | I48: 0 | J48: 0 | K48: 0
C49: Augmentation HV | D49: net circuit KM added | E49: 0 | F49: 0 | G49: 0 | H49: 0 | I49: 0 | J49: 0 | K49: 0
C50: Augmentation HV | D50: total spend $0s | E50: 0 | F50: 0 | G50: 0 | H50: 0 | I50: 0 | J50: 0 | K50: 0
C51: Augmentation LV | D51: net circuit KM added | E51: 0 | F51: 0 | G51: 0 | H51: 0 | I51: 0 | J51: 0 | K51: 0
C52: Augmentation LV | D52: total spend $0s | E52: 0 | F52: 0 | G52: 0 | H52: 0 | I52: 0 | J52: 0 | K52: 0
B54: VOLUMES AND EXPENDITURE - STANDARD CONTROL SERVICES
B55: CONNECTION SUBCATEGORY | C55: DESCRIPTOR METRIC | D55: Unit of Measure | E55: =CONCATENATE("VOLUMES and EXPENDITURE (0's, real ", dms_DollarReal, ")") -> VOLUMES and EXPENDITURE (0's, real June 2024)
E56: =CRCP_y4 -> 2022-23 | F56: =CRCP_y5 -> 2023-24 | G56: =FRCP_y1 -> 2024-25 | H56: =FRCP_y2 -> 2025-26 | I56: =FRCP_y3 -> 2026-27 | J56: =FRCP_y4 -> 2027-28 | K56: =FRCP_y5 -> 2028-29
B57: RESIDENTIAL | C57: Underground connections | D57: 0's | E57: 130 | F57: 131 | G57: 132 | H57: 133 | I57: 134 | J57: 136 | K57: 137
C58: Overhead connections | D58: 0's | E58: 83.06835819 | F58: 83.99555387 | G58: 84.92274955 | H58: 85.84994523 | I58: 86.77714091 | J58: 86.70433659 | K58: 87.63153228
C59: Distribution substations installed | D59: MVA added | E59: 0.835934598 | F59: 0.8434955965 | G59: 0.8510565951 | H59: 0.8586175936 | I59: 0.8661785922 | J59: 0.8737395907 | K59: 0.8813005893
C60: Distribution substations installed | D60: 0's | E60: 2.654023924 | F60: 2.678029476 | G60: 2.702035027 | H60: 2.726040579 | I60: 2.75004613 | J60: 2.774051682 | K60: 2.798057233
C61: Distribution substations installed | D61: total spend $0s | E61: 239133.7133 | F61: 241092.0712 | G61: 246118.3426 | H61: 250910.83 | I61: 254487.5112 | J61: 257604.3112 | K61: 261287.5279
C62: Augmentation HV | D62: net circuit KM added | E62: 0.1004382179 | F62: 0.101346678 | G62: 0.1022551381 | H62: 0.1031635982 | I62: 0.1040720583 | J62: 0.1049805183 | K62: 0.1058889784
C63: Augmentation HV | D63: total spend $0s | E63: 300809.6685 | F63: 300347.6693 | G63: 303679.9279 | H63: 306663.3849 | I63: 308118.8741 | J63: 308995.7001 | K63: 310529.5515
C64: Augmentation LV | D64: net circuit KM added | E64: 3.424934936 | F64: 3.45591335 | G64: 3.486891764 | H64: 3.517870178 | I64: 3.548848592 | J64: 3.579827006 | K64: 3.610805421
C65: Augmentation LV | D65: total spend $0s | E65: 92626.09971 | F65: 92731.18191 | G65: 94010.09027 | H65: 95186.22134 | I65: 95891.73721 | J65: 96419.08413 | K65: 97153.43463
C66: Mean days to connect residential customer with LV single phase connection | D66: 0's | E66: 3.273799521 | F66: 3.273799521 | G66: 3.273799521 | H66: 3.273799521 | I66: 3.273799521 | J66: 3.273799521 | K66: 3.273799521
C67: Volume of GSL breaches for residential customers | D67: 0's | E67: 2043.714286 | F67: 2043.714286 | G67: 2043.714286 | H67: 2043.714286 | I67: 2043.714286 | J67: 2043.714286 | K67: 2043.714286
C68: Volume of customer complaints relating to connection services | D68: 0's | E68: 11.71428571 | F68: 11.71428571 | G68: 11.71428571 | H68: 11.71428571 | I68: 11.71428571 | J68: 11.71428571 | K68: 11.71428571
C69: GSL payments | D69: $0's | E69: 198191.8571 | F69: 198191.8571 | G69: 198191.8571 | H69: 198191.8571 | I69: 198191.8571 | J69: 198191.8571 | K69: 198191.8571
B70: COMMERCIAL/INDUSTRIAL | C70: Underground connections | D70: 0's | E70: 40 | F70: 40 | G70: 18 | H70: 19 | I70: 19 | J70: 20 | K70: 20
C71: Overhead connections | D71: 0's | E71: 22.04997395 | F71: 22.30543062 | G71: 9.893703822 | H71: 9.708558343 | I71: 10.54476602 | J71: 10.40289657 | K71: 11.28353513
C72: Distribution substations installed | D72: MVA added | E72: 4.485952119 | F72: 4.504420562 | G72: 2.016597459 | H72: 2.075508013 | I72: 2.135962311 | J72: 2.19800154 | K72: 2.261668004
C73: Distribution substations installed | D73: 0's | E73: 6.482833099 | F73: 6.509522602 | G73: 2.914267563 | H73: 2.999401618 | I73: 3.086766599 | J73: 3.176422029 | K73: 3.268429043
C74: Distribution substations installed | D74: total spend $0s | E74: 0 | F74: 0 | G74: 0 | H74: 0 | I74: 0 | J74: 0 | K74: 0
C75: Augmentation HV | D75: net circuit KM added | E75: 0 | F75: 0 | G75: 0 | H75: 0 | I75: 0 | J75: 0 | K75: 0
C76: Augmentation HV | D76: total spend $0s | E76: 0 | F76: 0 | G76: 0 | H76: 0 | I76: 0 | J76: 0 | K76: 0
C77: Augmentation LV | D77: net circuit KM added | E77: 1.115468256 | F77: 1.120060584 | G77: 0.5014432591 | H77: 0.5160918446 | I77: 0.5311242944 | J77: 0.5465508502 | K77: 0.5623820311
C78: Augmentation LV | D78: total spend $0s | E78: 116333.7621 | F78: 119569.2459 | G78: 124438.2374 | H78: 129331.6705 | I78: 133730.4898 | J78: 138006.3202 | K78: 142708.6631
B79: SUBDIVISION | C79: Underground connections | D79: 0's | E79: 283 | F79: 283 | G79: 278 | H79: 278 | I79: 278 | J79: 278 | K79: 278
C80: Overhead connections | D80: 0's | E80: 13 | F80: 13 | G80: 12 | H80: 12 | I80: 12 | J80: 12 | K80: 12
C81: Distribution substations installed | D81: MVA added | E81: 0.6508862191 | F81: 0.6508862191 | G81: 0.6376925795 | H81: 0.6376925795 | I81: 0.6376925795 | J81: 0.6376925795 | K81: 0.6376925795
C82: Distribution substations installed | D82: 0's | E82: 1.673498233 | F82: 1.673498233 | G82: 1.639575972 | H82: 1.639575972 | I82: 1.639575972 | J82: 1.639575972 | K82: 1.639575972
C83: Distribution substations installed | D83: total spend $0s | E83: 141926.6485 | F83: 141708.6701 | G83: 0 | H83: 0 | I83: 0 | J83: 0 | K83: 0
C84: Augmentation HV | D84: net circuit KM added | E84: 0 | F84: 0 | G84: 0 | H84: 0 | I84: 0 | J84: 0 | K84: 0
C85: Augmentation HV | D85: total spend $0s | E85: 0 | F85: 0 | G85: 0 | H85: 0 | I85: 0 | J85: 0 | K85: 0
C86: Augmentation LV | D86: net circuit KM added | E86: 3.908873498 | F86: 3.908873498 | G86: 3.829639576 | H86: 3.829639576 | I86: 3.829639576 | J86: 3.829639576 | K86: 3.829639576
C87: Augmentation LV | D87: total spend $0s | E87: 408415.5914 | F87: 407788.3254 | G87: 412312.6028 | H87: 416363.3049 | I87: 418339.4531 | J87: 419529.9381 | K87: 421612.4803
C88: Cost per lot | D88: $0's | E88: 41903.15724 | F88: 41903.15724 | G88: 41903.15724 | H88: 41903.15724 | I88: 41903.15724 | J88: 41903.15724 | K88: 41903.15724
B89: EMBEDDED GENERATION | C89: Underground connections | D89: 0's | E89: 1506 | F89: 1583 | G89: 1663 | H89: 1746 | I89: 1831 | J89: 1918 | K89: 2006
C90: Overhead connections | D90: 0's | E90: 1268.557628 | F90: 1332.892791 | G90: 1400.199468 | H90: 1469.799245 | I90: 1541.933545 | J90: 1615.226134 | K90: 1689.512732
C91: Distribution substations installed | D91: MVA added | E91: 0 | F91: 0 | G91: 0 | H91: 0 | I91: 0 | J91: 0 | K91: 0
C92: Distribution substations installed | D92: 0's | E92: 0 | F92: 0 | G92: 0 | H92: 0 | I92: 0 | J92: 0 | K92: 0
C93: Distribution substations installed | D93: total spend $0s | E93: 0 | F93: 0 | G93: 0 | H93: 0 | I93: 0 | J93: 0 | K93: 0
C94: Augmentation HV | D94: net circuit KM added | E94: 0 | F94: 0 | G94: 0 | H94: 0 | I94: 0 | J94: 0 | K94: 0
C95: Augmentation HV | D95: total spend $0s | E95: 0 | F95: 0 | G95: 0 | H95: 0 | I95: 0 | J95: 0 | K95: 0
C96: Augmentation LV | D96: net circuit KM added | E96: 0 | F96: 0 | G96: 0 | H96: 0 | I96: 0 | J96: 0 | K96: 0
C97: Augmentation LV | D97: total spend $0s | E97: 0 | F97: 0 | G97: 0 | H97: 0 | I97: 0 | J97: 0 | K97: 0
B101: 2.5.2 - COST METRICS BY CONNECTION CLASSIFICATION
B102: EXPENDITURE - ALL
B103: CONNECTION SUBCATEGORY | C103: CONNECTION CLASSICIATION | E103: =CONCATENATE("EXPENDITURE ($0's, real ", dms_DollarReal, ")") -> EXPENDITURE ($0's, real June 2024)
E104: =CRCP_y4 -> 2022-23 | F104: =CRCP_y5 -> 2023-24 | G104: =FRCP_y1 -> 2024-25 | H104: =FRCP_y2 -> 2025-26 | I104: =FRCP_y3 -> 2026-27 | J104: =FRCP_y4 -> 2027-28 | K104: =FRCP_y5 -> 2028-29
B105: RESIDENTIAL | C105: Simple connection LV | E105: 646911.8182 | F105: 647279.2139 | G105: 246118.3426 | H105: 250910.83 | I105: 254487.5112 | J105: 257604.3112 | K105: 261287.5279
C106: Complex connection LV | E106: 250574.9513 | F106: 248962.8391 | G106: 112812.1083 | H106: 114223.4656 | I106: 115070.0846 | J106: 115702.901 | K106: 116584.1216
C107: Complex connection HV | E107: 813759.4942 | F107: 806367.4689 | G107: 364415.9135 | H107: 367996.0619 | I107: 369742.6489 | J107: 370794.8401 | K107: 372635.4618
B108: COMMERCIAL/INDUSTRIAL | C108: Simple connection LV | E108: 314709.6431 | F108: 321017.1412 | G108: 149325.8849 | H108: 155198.0046 | I108: 160476.5877 | J108: 165607.5842 | K108: 171250.3958
C109: Complex connection HV (customer connected at LV, minor HV works) | E109: 3895069.611 | F109: 3736074.783 | G109: 1332652.503 | H109: 1299695.651 | I109: 1259596.43 | J109: 1216781.396 | K109: 1176191.642
C110: Complex connection HV (customer connected at LV, upstream asset works) | E110: 814471.5486 | F110: 804878.6642 | G110: 296092.4301 | H110: 298140.4975 | I110: 298667.9367 | J110: 298604.4069 | K110: 299144.6026
C111: Complex connection HV (customer connected at HV) | E111: 1753950.001 | F111: 1997508.025 | G111: 832616.3208 | H111: 937463.8501 | I111: 1039039.674 | J111: 1139399.329 | K111: 1242941.621
C112: Complex connection sub-transmission | E112: 0 | F112: 0 | G112: 0 | H112: 0 | I112: 0 | J112: 0 | K112: 0
B113: SUBDIVISION | C113: Complex connection LV | E113: 1104858.32 | F113: 1094822.013 | G113: 494775.1233 | H113: 499635.9658 | I113: 502007.3437 | J113: 503435.9257 | K113: 505934.9763
C114: Complex connection HV (no upstream asset works) | E114: 408250.1171 | F114: 404541.6563 | G114: 149237.1282 | H114: 150703.2856 | I114: 151418.5552 | J114: 151849.453 | K114: 152603.232
C115: Complex connection HV (with upstream asset works) | E115: 383944.3003 | F115: 380456.6286 | G115: 140352.0597 | H115: 141730.927 | I115: 142403.6119 | J115: 142808.8555 | K115: 143517.7571
B116: EMBEDDED GENERATION | C116: Simple connection LV | E116: 0 | F116: 0 | G116: 0 | H116: 0 | I116: 0 | J116: 0 | K116: 0
C117: Complex connection HV (small capacity) | E117: 0 | F117: 0 | G117: 0 | H117: 0 | I117: 0 | J117: 0 | K117: 0
C118: Complex connection HV (large capacity) | E118: 0 | F118: 0 | G118: 0 | H118: 0 | I118: 0 | J118: 0 | K118: 0
B120: EXPENDITURE - STANDARD CONTROL SERVICES
E121: =CONCATENATE("EXPENDITURE ($0's, real ", dms_DollarReal, ")") -> EXPENDITURE ($0's, real June 2024)
E122: =CRCP_y4 -> 2022-23 | F122: =CRCP_y5 -> 2023-24 | G122: =FRCP_y1 -> 2024-25 | H122: =FRCP_y2 -> 2025-26 | I122: =FRCP_y3 -> 2026-27 | J122: =FRCP_y4 -> 2027-28 | K122: =FRCP_y5 -> 2028-29
B123: RESIDENTIAL | C123: Simple connection LV | E123: 239133.7133 | F123: 241092.0712 | G123: 246118.3426 | H123: 250910.83 | I123: 254487.5112 | J123: 257604.3112 | K123: 261287.5279
C124: Complex connection LV | E124: 92626.09971 | F124: 92731.18191 | G124: 94010.09027 | H124: 95186.22134 | I124: 95891.73721 | J124: 96419.08413 | K124: 97153.43463
C125: Complex connection HV | E125: 300809.6685 | F125: 300347.6693 | G125: 303679.9279 | H125: 306663.3849 | I125: 308118.8741 | J125: 308995.7001 | K125: 310529.5515
B126: COMMERCIAL/INDUSTRIAL | C126: Simple connection LV | E126: 116333.7621 | F126: 119569.2459 | G126: 124438.2374 | H126: 129331.6705 | I126: 133730.4898 | J126: 138006.3202 | K126: 142708.6631
C127: Complex connection HV (customer connected at LV, minor HV works) | E127: 1439829.098 | F127: 1391575.673 | G127: 0 | H127: 0 | I127: 0 | J127: 0 | K127: 0
C128: Complex connection HV (customer connected at LV, upstream asset works) | E128: 301072.8825 | F128: 299793.1342 | G128: 0 | H128: 0 | I128: 0 | J128: 0 | K128: 0
C129: Complex connection HV (customer connected at HV) | E129: 648355.1 | F129: 744011.7598 | G129: 0 | H129: 0 | I129: 0 | J129: 0 | K129: 0
C130: Complex connection sub-transmission | E130: 0 | F130: 0 | G130: 0 | H130: 0 | I130: 0 | J130: 0 | K130: 0
B131: SUBDIVISION | C131: Complex connection LV | E131: 408415.5914 | F131: 407788.3254 | G131: 412312.6028 | H131: 416363.3049 | I131: 418339.4531 | J131: 419529.9381 | K131: 421612.4803
C132: Complex connection HV (no upstream asset works) | E132: 150911.3974 | F132: 150679.6198 | G132: 0 | H132: 0 | I132: 0 | J132: 0 | K132: 0
C133: Complex connection HV (with upstream asset works) | E133: 141926.6485 | F133: 141708.6701 | G133: 0 | H133: 0 | I133: 0 | J133: 0 | K133: 0
B134: EMBEDDED GENERATION | C134: Simple connection LV | E134: 0 | F134: 0 | G134: 0 | H134: 0 | I134: 0 | J134: 0 | K134: 0
C135: Complex connection HV (small capacity) | E135: 0 | F135: 0 | G135: 0 | H135: 0 | I135: 0 | J135: 0 | K135: 0
C136: Complex connection HV (large capacity) | E136: 0 | F136: 0 | G136: 0 | H136: 0 | I136: 0 | J136: 0 | K136: 0
B138: EXPENDITURE - STANDARD CONTROL SERVICES - CAPITAL CONTRIBUTIONS
E139: =CONCATENATE("EXPENDITURE ($0's, real ", dms_DollarReal, ")") -> EXPENDITURE ($0's, real June 2024)
E140: =CRCP_y4 -> 2022-23 | F140: =CRCP_y5 -> 2023-24 | G140: =FRCP_y1 -> 2024-25 | H140: =FRCP_y2 -> 2025-26 | I140: =FRCP_y3 -> 2026-27 | J140: =FRCP_y4 -> 2027-28 | K140: =FRCP_y5 -> 2028-29
B141: RESIDENTIAL | C141: Simple connection LV | E141: 407778.1049 | F141: 406187.1426 | G141: 0 | H141: 0 | I141: 0 | J141: 0 | K141: 0
C142: Complex connection LV | E142: 157948.8516 | F142: 156231.6571 | G142: 18802.01805 | H142: 19037.24427 | I142: 19178.34744 | J142: 19283.81683 | K142: 19430.68693
C143: Complex connection HV | E143: 512949.8256 | F143: 506019.7996 | G143: 60735.98558 | H143: 61332.67698 | I143: 61623.77482 | J143: 61799.14002 | K143: 62105.9103
B144: COMMERCIAL/INDUSTRIAL | C144: Simple connection LV | E144: 198375.881 | F144: 201447.8953 | G144: 24887.64748 | H144: 25866.3341 | I144: 26746.09796 | J144: 27601.26404 | K144: 28541.73263
C145: Complex connection HV (customer connected at LV, minor HV works) | E145: 2455240.513 | F145: 2344499.11 | G145: 0 | H145: 0 | I145: 0 | J145: 0 | K145: 0
C146: Complex connection HV (customer connected at LV, upstream asset works) | E146: 513398.6662 | F146: 505085.5299 | G146: 0 | H146: 0 | I146: 0 | J146: 0 | K146: 0
C147: Complex connection HV (customer connected at HV) | E147: 1105594.901 | F147: 1253496.265 | G147: 0 | H147: 0 | I147: 0 | J147: 0 | K147: 0
C148: Complex connection sub-transmission | E148: 0 | F148: 0 | G148: 0 | H148: 0 | I148: 0 | J148: 0 | K148: 0
B149: SUBDIVISION | C149: Complex connection LV | E149: 696442.7289 | F149: 687033.6874 | G149: 82462.52056 | H149: 83272.66097 | I149: 83667.89061 | J149: 83905.98762 | K149: 84322.49605
C150: Complex connection HV (no upstream asset works) | E150: 257338.7197 | F150: 253862.0365 | G150: 0 | H150: 0 | I150: 0 | J150: 0 | K150: 0
C151: Complex connection HV (with upstream asset works) | E151: 242017.6518 | F151: 238747.9585 | G151: 0 | H151: 0 | I151: 0 | J151: 0 | K151: 0
B152: EMBEDDED GENERATION | C152: Simple connection LV | E152: 0 | F152: 0 | G152: 0 | H152: 0 | I152: 0 | J152: 0 | K152: 0
C153: Complex connection HV (small capacity) | E153: 0 | F153: 0 | G153: 0 | H153: 0 | I153: 0 | J153: 0 | K153: 0
C154: Complex connection HV (large capacity) | E154: 0 | F154: 0 | G154: 0 | H154: 0 | I154: 0 | J154: 0 | K154: 0
B158: 2.5.3 - VOLUMES BY CONNECTION CLASSIFICATION
B159: NEW CONNECTIONS - ALL
E160: VOLUMES (0's)
E161: =CRCP_y4 -> 2022-23 | F161: =CRCP_y5 -> 2023-24 | G161: =FRCP_y1 -> 2024-25 | H161: =FRCP_y2 -> 2025-26 | I161: =FRCP_y3 -> 2026-27 | J161: =FRCP_y4 -> 2027-28 | K161: =FRCP_y5 -> 2028-29
B162: RESIDENTIAL | C162: Simple connection LV | E162: 196.6456796 | F162: 198.5610471 | G162: 200.4764146 | H162: 202.3917821 | I162: 204.3071496 | J162: 206.2225171 | K162: 208.1378846
C163: Complex connection LV | E163: 4.422678633 | F163: 4.434506808 | G163: 4.446334984 | H163: 4.45816316 | I163: 4.469991335 | J163: 4.481819511 | K163: 4.493647687
C164: Complex connection HV | E164: 12 | F164: 12 | G164: 12 | H164: 12 | I164: 12 | J164: 12 | K164: 12
B165: COMMERCIAL/INDUSTRIAL | C165: Simple connection LV | E165: 26.32585009 | F165: 27.09964776 | G165: 27.89370382 | H165: 28.70855834 | I165: 29.54476602 | J165: 30.40289657 | K165: 31.28353513
C166: Complex connection HV (customer connected at LV, minor HV works) | E166: 30.0475251 | F166: 29.08520395 | G166: 28.12288279 | H166: 27.16056163 | I166: 26.19824047 | J166: 25.23591931 | K166: 24.27359816
C167: Complex connection HV (customer connected at LV, upstream asset works) | E167: 2.654563331 | F167: 2.647345707 | G167: 2.639939122 | H167: 2.632338538 | I167: 2.624538782 | J167: 2.61653454 | K167: 2.608320354
C168: Complex connection HV (customer connected at HV) | E168: 3.022035423 | F168: 3.473233204 | G168: 3.924430984 | H168: 4.375628765 | I168: 4.826826546 | J168: 5.278024327 | K168: 5.729222107
C169: Complex connection sub-transmission | E169: 0 | F169: 0 | G169: 0 | H169: 0 | I169: 0 | J169: 0 | K169: 0
B170: SUBDIVISION | C170: Complex connection LV | E170: 290 | F170: 290 | G170: 290 | H170: 290 | I170: 290 | J170: 290 | K170: 290
C171: Complex connection HV (no upstream asset works) | E171: 3 | F171: 3 | G171: 3 | H171: 3 | I171: 3 | J171: 3 | K171: 3
C172: Complex connection HV (with upstream asset works) | E172: 3 | F172: 3 | G172: 3 | H172: 3 | I172: 3 | J172: 3 | K172: 3
B173: EMBEDDED GENERATION | C173: Simple connection LV | E173: 2774.557628 | F173: 2915.892791 | G173: 3063.199468 | H173: 3215.799245 | I173: 3372.933545 | J173: 3533.226134 | K173: 3695.512732
C174: Complex connection HV (small capacity) | E174: 0 | F174: 0 | G174: 0 | H174: 0 | I174: 0 | J174: 0 | K174: 0
C175: Complex connection HV (large capacity) | E175: 0 | F175: 0 | G175: 0 | H175: 0 | I175: 0 | J175: 0 | K175: 0
B177: NEW CONNECTIONS - STANDARD CONTROL SERVICES
E178: VOLUMES (0's)
E179: =CRCP_y4 -> 2022-23 | F179: =CRCP_y5 -> 2023-24 | G179: =FRCP_y1 -> 2024-25 | H179: =FRCP_y2 -> 2025-26 | I179: =FRCP_y3 -> 2026-27 | J179: =FRCP_y4 -> 2027-28 | K179: =FRCP_y5 -> 2028-29
B180: RESIDENTIAL | C180: Simple connection LV | E180: 196.6456796 | F180: 198.5610471 | G180: 200.4764146 | H180: 202.3917821 | I180: 204.3071496 | J180: 206.2225171 | K180: 208.1378846
C181: Complex connection LV | E181: 4.422678633 | F181: 4.434506808 | G181: 4.446334984 | H181: 4.45816316 | I181: 4.469991335 | J181: 4.481819511 | K181: 4.493647687
C182: Complex connection HV | E182: 12 | F182: 12 | G182: 12 | H182: 12 | I182: 12 | J182: 12 | K182: 12
B183: COMMERCIAL/INDUSTRIAL | C183: Simple connection LV | E183: 26.32585009 | F183: 27.09964776 | G183: 27.89370382 | H183: 28.70855834 | I183: 29.54476602 | J183: 30.40289657 | K183: 31.28353513
C184: Complex connection HV (customer connected at LV, minor HV works) | E184: 30.0475251 | F184: 29.08520395 | G184: 0 | H184: 0 | I184: 0 | J184: 0 | K184: 0
C185: Complex connection HV (customer connected at LV, upstream asset works) | E185: 2.654563331 | F185: 2.647345707 | G185: 0 | H185: 0 | I185: 0 | J185: 0 | K185: 0
C186: Complex connection HV (customer connected at HV) | E186: 3.022035423 | F186: 3.473233204 | G186: 0 | H186: 0 | I186: 0 | J186: 0 | K186: 0
C187: Complex connection sub-transmission | E187: 0 | F187: 0 | G187: 0 | H187: 0 | I187: 0 | J187: 0 | K187: 0
B188: SUBDIVISION | C188: Complex connection LV | E188: 290 | F188: 290 | G188: 290 | H188: 290 | I188: 290 | J188: 290 | K188: 290
C189: Complex connection HV (no upstream asset works) | E189: 3 | F189: 3 | G189: 0 | H189: 0 | I189: 0 | J189: 0 | K189: 0
C190: Complex connection HV (with upstream asset works) | E190: 3 | F190: 3 | G190: 0 | H190: 0 | I190: 0 | J190: 0 | K190: 0
B191: EMBEDDED GENERATION | C191: Simple connection LV | E191: 2774.557628 | F191: 2915.892791 | G191: 3063.199468 | H191: 3215.799245 | I191: 3372.933545 | J191: 3533.226134 | K191: 3695.512732
C192: Complex connection HV (small capacity) | E192: 0 | F192: 0 | G192: 0 | H192: 0 | I192: 0 | J192: 0 | K192: 0
C193: Complex connection HV (large capacity) | E193: 0 | F193: 0 | G193: 0 | H193: 0 | I193: 0 | J193: 0 | K193: 0
B195: EXISTING CONNECTIONS
E196: VOLUMES (0's)
E197: =CRCP_y4 -> 2022-23 | F197: =CRCP_y5 -> 2023-24 | G197: =FRCP_y1 -> 2024-25 | H197: =FRCP_y2 -> 2025-26 | I197: =FRCP_y3 -> 2026-27 | J197: =FRCP_y4 -> 2027-28 | K197: =FRCP_y5 -> 2028-29
B198: RESIDENTIAL | C198: Simple connection LV | E198: 59536.46308 | F198: 59999.92616 | G198: 60463.38925 | H198: 60926.85233 | I198: 61390.31541 | J198: 61853.77849 | K198: 62317.24157
C199: Complex connection LV | E199: 205.7441736 | F199: 207.4883473 | G199: 209.2325209 | H199: 210.9766946 | I199: 212.7208682 | J199: 214.4650419 | K199: 216.2092155
C200: Complex connection HV | E200: 0 | F200: 0 | G200: 0 | H200: 0 | I200: 0 | J200: 0 | K200: 0
B201: COMMERCIAL/INDUSTRIAL | C201: Simple connection LV | E201: 9892.694619 | F201: 9914.635881 | G201: 9937.151576 | H201: 9960.257018 | I201: 9983.967934 | J201: 10008.30048 | K201: 10033.27125
C202: Complex connection HV (customer connected at LV, minor HV works) | E202: 1161.7 | F202: 1197.4 | G202: 1233.1 | H202: 1268.8 | I202: 1304.5 | J202: 1340.2 | K202: 1375.9
C203: Complex connection HV (customer connected at LV, upstream asset works) | E203: 532.3677213 | F203: 533.3783263 | G203: 534.4153895 | H203: 535.4796161 | I203: 536.5717306 | J203: 537.6924772 | K203: 538.8426199
C204: Complex connection HV (customer connected at HV) | E204: 66.79398482 | F204: 70.58796963 | G204: 74.38195445 | H204: 78.17593927 | I204: 81.96992409 | J204: 85.7639089 | K204: 89.55789372
C205: Complex connection sub-transmission | E205: 0 | F205: 0 | G205: 0 | H205: 0 | I205: 0 | J205: 0 | K205: 0
B206: SUBDIVISION | C206: Complex connection LV | E206: 0 | F206: 0 | G206: 0 | H206: 0 | I206: 0 | J206: 0 | K206: 0
C207: Complex connection HV (no upstream asset works) | E207: 0 | F207: 0 | G207: 0 | H207: 0 | I207: 0 | J207: 0 | K207: 0
C208: Complex connection HV (with upstream asset works) | E208: 0 | F208: 0 | G208: 0 | H208: 0 | I208: 0 | J208: 0 | K208: 0
B209: EMBEDDED GENERATION | C209: Simple connection LV | E209: 19678.53138 | F209: 21780.69095 | G209: 23971.66831 | H209: 26241.373 | I209: 28578.52227 | J209: 30962.64661 | K209: 33376.42898
C210: Complex connection HV (small capacity) | E210: 8 | F210: 8 | G210: 8 | H210: 8 | I210: 8 | J210: 8 | K210: 8
C211: Complex connection HV (large capacity) | E211: 0 | F211: 0 | G211: 0 | H211: 0 | I211: 0 | J211: 0 | K211: 0

Sheet 2.6 Non-network
B1: =INDEX(dms_Worksheet_List,MATCH(dms_Model,dms_Model_List)) -> REGULATORY REPORTING STATEMENT
B2: =INDEX(dms_TradingNameFull_List,MATCH(dms_TradingName,dms_TradingName_List)) -> Power and Water Corporation
B3: =CONCATENATE("REGULATORY PERIOD FROM ", FRCP_y1," TO ",dms_MultiYear_FinalYear_Result) -> REGULATORY PERIOD FROM 2024-25 TO 2028-29
B4: 2.6 NON-NETWORK EXPENDITURE
B6: There are THREE tables on this worksheet - each has been 'grouped' (and sub-grouped) for easy navigation. See the Instructions sheet on how to group or ungroup tables.
B8: 2.6.1 - NON-NETWORK EXPENDITURE
E9: =CONCATENATE("EXPENDITURE ($0's, real ", dms_DollarReal, ")") -> EXPENDITURE ($0's, real June 2024)
B10: SERVICE SUBCATEGORY | C10: ASSET CATEGORY | E10: =CRCP_y4 -> 2022-23 | F10: =CRCP_y5 -> 2023-24 | G10: =FRCP_y1 -> 2024-25 | H10: =FRCP_y2 -> 2025-26 | I10: =FRCP_y3 -> 2026-27 | J10: =FRCP_y4 -> 2027-28 | K10: =FRCP_y5 -> 2028-29
B11: OPEX
B12: IT & COMMUNICATIONS | C12: Total IT and communications | E12: 1837591.452 | F12: 1844123.625 | G12: 1833868.298 | H12: 1848046.291 | I12: 1853986.114 | J12: 1856433.923 | K12: 1862599.617
B13: MOTOR VEHICLES | C13: Car | E13: 271200.2795 | F13: 272164.3281 | G13: 270650.7992 | H13: 272743.2533 | I13: 273619.8798 | J13: 273981.1389 | K13: 274891.1006
C14: Light commercial vehicle | E14: 775066.669 | F14: 777821.8353 | G14: 773496.3022 | H14: 779476.353 | I14: 781981.6749 | J14: 783014.1217 | K14: 785614.7127
C15: Elevated work platform (LCV) | E15: 0 | F15: 0 | G15: 0 | H15: 0 | I15: 0 | J15: 0 | K15: 0
C16: Elevated work platform (HCV) | E16: 491439.6365 | F16: 493186.5803 | G16: 490443.928 | H16: 494235.6457 | I16: 495824.1729 | J16: 496478.8073 | K16: 498127.7409
C17: Heavy commercial vehicle | E17: 391249.3526 | F17: 392640.1452 | G17: 390456.6401 | H17: 393475.3365 | I17: 394740.0092 | J17: 395261.1826 | K17: 396573.9465
B18: BUILDINGS AND PROPERTY | C18: Total buildings and property expenditure | E18: 838528.6553 | F18: 841509.4129 | G18: 836829.7078 | H18: 843299.4015 | I18: 846009.8577 | J18: 847126.8406 | K18: 849940.3664
B19: OTHER | C19: Other expenditure | E19: 0 | F19: 0 | G19: 0 | H19: 0 | I19: 0 | J19: 0 | K19: 0
B20: OTHER - DNSP nominated | C20: Non Motor Vehicle fleet costs | E20: 57921.34061 | F20: 58127.23634 | G20: 57803.98586 | H20: 58250.87975 | I20: 58438.10443 | J20: 58515.25999 | K20: 58709.60419
B31: CAPEX
B32: IT & COMMUNICATIONS | C32: Total IT and communications | E32: 17677483.7 | F32: 19558509.04 | G32: 16967968.28 | H32: 19835191.58 | I32: 11293498.64 | J32: 10963570.42 | K32: 11590727.24
B33: MOTOR VEHICLES | C33: Car | E33: 205904.288 | F33: 152371.2316 | G33: 333519.3119 | H33: 287456.4353 | I33: 206395.0433 | J33: 156346.7439 | K33: 329487.5356
C34: Light commercial vehicle | E34: 690542.4514 | F34: 907916.9778 | G34: 893036.8017 | H34: 2031462.995 | I34: 1442944.062 | J34: 574544.4252 | K34: 1065511.428
C35: Elevated work platform (LCV) | E35: 0 | F35: 0 | G35: 0 | H35: 0 | I35: 0 | J35: 0 | K35: 0
C36: Elevated work platform (HCV) | E36: 1791173.912 | F36: 731033.2774 | G36: 0 | H36: 383709.2471 | I36: 1554818.69 | J36: 2110416.185 | K36: 1021900.719
C37: Heavy commercial vehicle | E37: 155298.8056 | F37: 8441.257933 | G37: 431095.6604 | H37: 709305.5277 | I37: 213046.9635 | J37: 254153.0551 | K37: 0
B38: BUILDINGS AND PROPERTY | C38: Total buildings and property expenditure | E38: 2104425.642 | F38: 5455089.318 | G38: 1054023.648 | H38: 816075.6848 | I38: 8447037.768 | J38: 38689605.98 | K38: 57651979.84
B39: OTHER | C39: Other expenditure | E39: 1356391.073 | F39: 1256550.08 | G39: 1821407.981 | H39: 2090842.257 | I39: 1696206.116 | J39: 1509696.034 | K39: 1592410.204
B40: OTHER - DNSP nominated
B54: 2.6.2 - ANNUAL DESCRIPTOR METRICS
B55: IT & COMMUNICATIONS
E56: VOLUMES (0's)
E57: =CRCP_y4 -> 2022-23 | F57: =CRCP_y5 -> 2023-24 | G57: =FRCP_y1 -> 2024-25 | H57: =FRCP_y2 -> 2025-26 | I57: =FRCP_y3 -> 2026-27 | J57: =FRCP_y4 -> 2027-28 | K57: =FRCP_y5 -> 2028-29
B58: Employee numbers | E58: 359.7237727 | F58: 363.5096777 | G58: 363.7477788 | H58: 363.7477788 | I58: 363.7477788 | J58: 363.7477788 | K58: 363.7477788
B59: User numbers | E59: 679.46 | F59: 679.46 | G59: 679.46 | H59: 679.46 | I59: 679.46 | J59: 679.46 | K59: 679.46
B60: Number of devices | E60: 1100.88 | F60: 1100.88 | G60: 1100.88 | H60: 1100.88 | I60: 1100.88 | J60: 1100.88 | K60: 1100.88
B62: MOTOR VEHICLES
E63: VOLUMES (0's or %)
B64: ASSET CATEGORY | C64: DESCRIPTOR METRIC | D64: UNITS | E64: =CRCP_y4 -> 2022-23 | F64: =CRCP_y5 -> 2023-24 | G64: =FRCP_y1 -> 2024-25 | H64: =FRCP_y2 -> 2025-26 | I64: =FRCP_y3 -> 2026-27 | J64: =FRCP_y4 -> 2027-28 | K64: =FRCP_y5 -> 2028-29
B65: CAR | C65: Average kilometres travelled | D65: 0's | E65: 12612.45283 | F65: 12612.45283 | G65: 12612.45283 | H65: 12612.45283 | I65: 12612.45283 | J65: 12612.45283 | K65: 12612.45283
C66: Number purchased | D66: 0's | E66: 0 | F66: 0 | G66: 0 | H66: 0 | I66: 0 | J66: 0 | K66: 0
C67: Number leased | D67: 0's | E67: 27.69687165 | F67: 27.69687165 | G67: 27.69687165 | H67: 27.69687165 | I67: 27.69687165 | J67: 27.69687165 | K67: 27.69687165
C68: Number in fleet | D68: 0's | E68: 27.69687165 | F68: 27.69687165 | G68: 27.69687165 | H68: 27.69687165 | I68: 27.69687165 | J68: 27.69687165 | K68: 27.69687165
C69: Proportion of total fleet expenditure allocated as regulatory expenditure | D69: % | E69: 0.8385 | F69: 0.8385 | G69: 0.8385 | H69: 0.8385 | I69: 0.8385 | J69: 0.8385 | K69: 0.8385
B70: LIGHT COMMERCIAL VEHICLE | C70: Average kilometres travelled | D70: 0's | E70: 14564.56098 | F70: 14564.56098 | G70: 14564.56098 | H70: 14564.56098 | I70: 14564.56098 | J70: 14564.56098 | K70: 14564.56098
C71: Number purchased | D71: 0's | E71: 0 | F71: 0 | G71: 0 | H71: 0 | I71: 0 | J71: 0 | K71: 0
C72: Number leased | D72: 0's | E72: 116.3849954 | F72: 116.3849954 | G72: 116.3849954 | H72: 116.3849954 | I72: 116.3849954 | J72: 116.3849954 | K72: 116.3849954
C73: Number in fleet | D73: 0's | E73: 116.3849954 | F73: 116.3849954 | G73: 116.3849954 | H73: 116.3849954 | I73: 116.3849954 | J73: 116.3849954 | K73: 116.3849954
C74: Proportion of total fleet expenditure allocated as regulatory expenditure | D74: % | E74: 0.4966 | F74: 0.4966 | G74: 0.4966 | H74: 0.4966 | I74: 0.4966 | J74: 0.4966 | K74: 0.4966
B75: ELEVATED WORK PLATFORM (LCV) | C75: Average kilometres travelled | D75: 0's | E75: 0 | F75: 0 | G75: 0 | H75: 0 | I75: 0 | J75: 0 | K75: 0
C76: Number purchased | D76: 0's | E76: 0 | F76: 0 | G76: 0 | H76: 0 | I76: 0 | J76: 0 | K76: 0
C77: Number leased | D77: 0's | E77: 0 | F77: 0 | G77: 0 | H77: 0 | I77: 0 | J77: 0 | K77: 0
C78: Number in fleet | D78: 0's | E78: 0 | F78: 0 | G78: 0 | H78: 0 | I78: 0 | J78: 0 | K78: 0
C79: Proportion of total fleet expenditure allocated as regulatory expenditure | D79: % | E79: 0 | F79: 0 | G79: 0 | H79: 0 | I79: 0 | J79: 0 | K79: 0
B80: ELEVATED WORK PLATFORM (HCV) | C80: Average kilometres travelled | D80: 0's | E80: 15954.31579 | F80: 15954.31579 | G80: 15954.31579 | H80: 15954.31579 | I80: 15954.31579 | J80: 15954.31579 | K80: 15954.31579
C81: Number purchased | D81: 0's | E81: 0 | F81: 0 | G81: 0 | H81: 0 | I81: 0 | J81: 0 | K81: 0
C82: Number leased | D82: 0's | E82: 16.96964243 | F82: 16.96964243 | G82: 16.96964243 | H82: 16.96964243 | I82: 16.96964243 | J82: 16.96964243 | K82: 16.96964243
C83: Number in fleet | D83: 0's | E83: 16.96964243 | F83: 16.96964243 | G83: 16.96964243 | H83: 16.96964243 | I83: 16.96964243 | J83: 16.96964243 | K83: 16.96964243
C84: Proportion of total fleet expenditure allocated as regulatory expenditure | D84: % | E84: 1 | F84: 1 | G84: 1 | H84: 1 | I84: 1 | J84: 1 | K84: 1
B85: HEAVY COMMERCIAL VEHICLE | C85: Average kilometres travelled | D85: 0's | E85: 8856.375 | F85: 8856.375 | G85: 8856.375 | H85: 8856.375 | I85: 8856.375 | J85: 8856.375 | K85: 8856.375
C86: Number purchased | D86: 0's | E86: 1.284342484 | F86: 1.284342484 | G86: 1.284342484 | H86: 1.284342484 | I86: 1.284342484 | J86: 1.284342484 | K86: 1.284342484
C87: Number leased | D87: 0's | E87: 25.90103319 | F87: 25.90103319 | G87: 25.90103319 | H87: 25.90103319 | I87: 25.90103319 | J87: 25.90103319 | K87: 25.90103319
C88: Number in fleet | D88: 0's | E88: 27.18537567 | F88: 27.18537567 | G88: 27.18537567 | H88: 27.18537567 | I88: 27.18537567 | J88: 27.18537567 | K88: 27.18537567
C89: Proportion of total fleet expenditure allocated as regulatory expenditure | D89: % | E89: 0.8192666667 | F89: 0.8192666667 | G89: 0.8192666667 | H89: 0.8192666667 | I89: 0.8192666667 | J89: 0.8192666667 | K89: 0.8192666667
B92: Table 2.6.4 intentionally omitted
B94: 2.6.5 - INFORMATION & COMMUNICATIONS TECHNOLOGY - CAPEX
E95: =CONCATENATE("EXPENDITURE ($0's, real ", dms_DollarReal, ")") -> EXPENDITURE ($0's, real June 2024)
E96: =CRCP_y4 -> 2022-23 | F96: =CRCP_y5 -> 2023-24 | G96: =FRCP_y1 -> 2024-25 | H96: =FRCP_y2 -> 2025-26 | I96: =FRCP_y3 -> 2026-27 | J96: =FRCP_y4 -> 2027-28 | K96: =FRCP_y5 -> 2028-29
B97: RECURRENT
B98: IT & Communication | E98: 4061005.28 | F98: 6419429.618 | G98: 2408559.791 | H98: 4236879.868 | I98: 2300989.299 | J98: 3229843.466 | K98: 5474554.32
B108: NON-RECURRENT
B109: IT & Communication | E109: 13616478.42 | F109: 13139079.42 | G109: 14559408.49 | H109: 15598311.72 | I109: 8992509.338 | J109: 7733726.951 | K109: 6116172.923

Sheet 2.10 Overheads
B1: =INDEX(dms_Worksheet_List,MATCH(dms_Model,dms_Model_List)) -> REGULATORY REPORTING STATEMENT
B2: =INDEX(dms_TradingNameFull_List,MATCH(dms_TradingName,dms_TradingName_List)) -> Power and Water Corporation
B3: =CONCATENATE("REGULATORY PERIOD FROM ", FRCP_y1," TO ",dms_MultiYear_FinalYear_Result) -> REGULATORY PERIOD FROM 2024-25 TO 2028-29
B4: 2.10 OVERHEADS
B6: There are TWO tables on this worksheet. Each table has been 'grouped' (and sub-grouped) for easy navigation. See the Instructions sheet on how to group or ungroup data.
B8: 2.10.1 - NETWORK OVERHEADS EXPENDITURE
D9: =CONCATENATE("EXPENDITURE ($0's, real ", dms_DollarReal, ")") -> EXPENDITURE ($0's, real June 2024)
D10: =CRCP_y4 -> 2022-23 | E10: =CRCP_y5 -> 2023-24 | F10: =FRCP_y1 -> 2024-25 | G10: =FRCP_y2 -> 2025-26 | H10: =FRCP_y3 -> 2026-27 | I10: =FRCP_y4 -> 2027-28 | J10: =FRCP_y5 -> 2028-29
B11: OPEX
B12: Standard Control Services | C12: Total | D12: 18742015.65 | E12: 18808638.78 | F12: 26125500.81 | G12: 26270105.41 | H12: 26041402 | I12: 27475027.41 | J12: 27429073.67
B13: Alternative Control Services | C13: Total | D13: 1618038.151 | E13: 1614327.533 | F13: 1959906.823 | G13: 1974570.052 | H13: 1988249.976 | I13: 1997150.911 | J13: 2005716.148
B14: CAPEX
B15: Standard Control Services | C15: Total | D15: 13841380.01 | E15: 13841380.01 | F15: 16888822.31 | G15: 16344413.23 | H15: 14693398.93 | I15: 19543828.31 | J15: 23881618.21
B16: Alternative Control Services | C16: Total | D16: 3215525.333 | E16: 3373066.596 | F16: 4066130.754 | G16: 4078534.4 | H16: 4600710.926 | I16: 4625186.372 | J16: 4649012.104
B17: OTHER DISTRIBUTION SERVICES
B18: Negotiated Services | C18: Total | D18: 0 | E18: 0 | F18: 0 | G18: 0 | H18: 0 | I18: 0 | J18: 0
B19: Unregulated Distribution Services | C19: Total | D19: 913879.6834 | E19: 912205.1788 | F19: 908858.6203 | G19: 915735.2157 | H19: 918488.9817 | I19: 919587.7227 | J19: 922388.1229
B23: 2.10.2 - CORPORATE OVERHEADS EXPENDITURE
D24: =CONCATENATE("EXPENDITURE ($0's, real ", dms_DollarReal, ")") -> EXPENDITURE ($0's, real June 2024)
D25: =CRCP_y4 -> 2022-23 | E25: =CRCP_y5 -> 2023-24 | F25: =FRCP_y1 -> 2024-25 | G25: =FRCP_y2 -> 2025-26 | H25: =FRCP_y3 -> 2026-27 | I25: =FRCP_y4 -> 2027-28 | J25: =FRCP_y5 -> 2028-29
B26: OPEX
B27: Standard Control Services | C27: Total | D27: 20775151.93 | E27: 20849002.35 | F27: 22968962.27 | G27: 23441853.72 | H27: 23646518.24 | I27: 23818304.19 | J27: 24039054.12
B28: Alternative Control Services | C28: Total | D28: 1872277.424 | E28: 1863241.583 | F28: 2369486.222 | G28: 2380823.77 | H28: 2391401.031 | I28: 2398283.198 | J28: 2404905.804
B29: CAPEX
B30: Standard Control Services | C30: Total | D30: 10700855.97 | E30: 10700855.97 | F30: 9867722.661 | G30: 9549637.848 | H30: 8584990.884 | I30: 11418977.23 | J30: 13953440.97
B31: Alternative Control Services | C31: Total | D31: 3727130.114 | E31: 3836621.996 | F31: 4388088.216 | G31: 4397678.665 | H31: 4801423.414 | I31: 4820347.728 | J31: 4838769.686
B32: OTHER DISTRIBUTION SERVICES
B33: Negotiated Services | C33: Total | D33: 0 | E33: 0 | F33: 0 | G33: 0 | H33: 0 | I33: 0 | J33: 0
B34: Unregulated Distribution Services | C34: Total | D34: 1427483.715 | E34: 1424868.132 | F34: 1419640.795 | G34: 1430382.064 | H34: 1434683.458 | I34: 1436399.695 | J34: 1440773.932

Sheet 2.11 Labour
B1: =INDEX(dms_Worksheet_List,MATCH(dms_Model,dms_Model_List)) -> REGULATORY REPORTING STATEMENT
B2: =INDEX(dms_TradingNameFull_List,MATCH(dms_TradingName,dms_TradingName_List)) -> Power and Water Corporation
B3: =CONCATENATE("REGULATORY PERIOD FROM ", FRCP_y1," TO ",dms_MultiYear_FinalYear_Result) -> REGULATORY PERIOD FROM 2024-25 TO 2028-29
B4: 2.11 LABOUR
B6: Table numbering on this worksheet starts at 2.11.3.
B8: 2.11.3 - LABOUR / NON-LABOUR EXPENDITURE SPLIT - STANDARD CONTROL SERVICES
C9: =CONCATENATE("EXPENDITURE ($0's, real ", dms_DollarReal, ")") -> EXPENDITURE ($0's, real June 2024)
C10: =CRCP_y4 -> 2022-23 | D10: =CRCP_y5 -> 2023-24 | E10: =FRCP_y1 -> 2024-25 | F10: =FRCP_y2 -> 2025-26 | G10: =FRCP_y3 -> 2026-27 | H10: =FRCP_y4 -> 2027-28 | I10: =FRCP_y5 -> 2028-29
B11: OPEX
B12: In-house labour expenditure | C12: 38368506.55 | D12: 38504896.9 | E12: 43092013.9 | F12: 43545530.62 | G12: 43579751.89 | H12: 44451993.91 | I12: 44591394.42
B13: Labour expenditure outsourced to related parties | C13: 0 | D13: 0 | E13: 0 | F13: 0 | G13: 0 | H13: 0 | I13: 0
B14: Labour expenditure outsourced to unrelated parties | C14: 16817246 | D14: 16877027.06 | E14: 18887599.84 | F14: 19086380.12 | G14: 19101379.6 | H14: 19483690.77 | I14: 19544791.21
B15: Controllable non-labour expenditure | C15: 16715711.03 | D15: 16775131.16 | E15: 18773565.01 | F15: 18971145.14 | G15: 18986054.06 | H15: 19366057.01 | I15: 19426788.55
B16: Uncontrollable non-labour expenditure | C16: 194840.7244 | D16: 195533.3339 | E16: 218827.3654 | F16: 221130.3877 | G16: 221304.1682 | H16: 225733.537 | I16: 226441.4326
B17: Total | C17: =SUM(C12:C16) -> 72096304.3 | D17: 72352588.46 | E17: 80972006.12 | F17: 81824186.27 | G17: 81888489.71 | H17: 83527475.22 | I17: 83789415.62
B18: CAPEX
B19: In-house labour expenditure | C19: 27641162.23 | D19: 31634126.81 | E19: 27463776.76 | F19: 25179234.16 | G19: 22572404.65 | H19: 20850689.67 | I19: 21153463.36
B20: Labour expenditure outsourced to related parties | C20: 0 | D20: 0 | E20: 0 | F20: 0 | G20: 0 | H20: 0 | I20: 0
B21: Labour expenditure outsourced to unrelated parties | C21: 33527940.46 | D21: 41152262.7 | E21: 39621125.02 | F21: 36447530.11 | G21: 28973867.52 | H21: 46759347.12 | I21: 58362482.81
B22: Controllable non-labour expenditure | C22: 39833140.04 | D22: 48382156.5 | E22: 40172415.65 | F22: 42702641.7 | G22: 41252223.84 | H22: 54813746.35 | I22: 68482247.69
B23: Uncontrollable non-labour expenditure | C23: 0 | D23: 0 | E23: 0 | F23: 0 | G23: 0 | H23: 0 | I23: 0
B24: Total | C24: =SUM(C19:C23) -> 101002242.7 | D24: 121168546 | E24: 107257317.4 | F24: 104329406 | G24: 92798496.02 | H24: 122423783.1 | I24: 147998193.9

Sheet 2.14 Forecast price changes
B1: =INDEX(dms_Worksheet_List,MATCH(dms_Model,dms_Model_List)) -> REGULATORY REPORTING STATEMENT
B2: =INDEX(dms_TradingNameFull_List,MATCH(dms_TradingName,dms_TradingName_List)) -> Power and Water Corporation
B3: =CONCATENATE("REGULATORY PERIOD FROM ", FRCP_y1," TO ",dms_MultiYear_FinalYear_Result) -> REGULATORY PERIOD FROM 2024-25 TO 2028-29
B4: 2.14 FORECAST PRICE CHANGES
B6: There is ONE table on this worksheet.
B8: Instructions
B9: =CONCATENATE(dms_TradingName, " must provide all forecast price changes used to forecast opex and capex, including forecast changes in CPI. Forecast price changes must be expressed in real terms, except for CPI. "&"If the same escalators are not used for capex and opex, report capex and opex escalators separately. Add additional rows as required. If price changes for a given year were not used to forecast either opex or capex enter '0' for that year.") -> Power and Water must provide all forecast price changes used to forecast opex and capex, including forecast changes in CPI. Forecast price changes must be expressed in real terms, except for CPI. If the same escalators are not used for capex and opex, report capex and opex escalators separately. Add additional rows as required. If price changes for a given year were not used to forecast either opex or capex enter '0' for that year.
B11: 2.14.2 - FORECAST CAPEX AND OPEX PRICE CHANGES
C12: Price changes (% YoY real) Current regulatory period | E12: Price changes (%YoY real) Forthcoming regulatory period
C13: Forecast
B14: DESCRIPTION | C14: =CRCP_y4 -> 2022-23 | D14: =CRCP_y5 -> 2023-24 | E14: =FRCP_y1 -> 2024-25 | F14: =FRCP_y2 -> 2025-26 | G14: =FRCP_y3 -> 2026-27 | H14: =FRCP_y4 -> 2027-28 | I14: =FRCP_y5 -> 2028-29
B15: OPEX
B16: Labour | C16: -0.03668948189 | D16: -0.002350513339 | E16: 0.01699347492 | F16: 0.01496046561 | G16: 0.007190932198 | H16: 0.004301082918 | I16: 0.007491758121
B17: Non Labour | C17: 0 | D17: 0 | E17: 0 | F17: 0 | G17: 0 | H17: 0 | I17: 0
B19: CAPEX
B20: Labour | C20: -0.03668948189 | D20: -0.002350513339 | E20: 0.01699347492 | F20: 0.01496046561 | G20: 0.007190932198 | H20: 0.004301082918 | I20: 0.007491758121
B21: Non Labour | C21: 0 | D21: 0 | E21: 0 | F21: 0 | G21: 0 | H21: 0 | I21: 0

Sheet 2.16 Opex Summary
B1: =INDEX(dms_Worksheet_List,MATCH(dms_Model,dms_Model_List)) -> REGULATORY REPORTING STATEMENT
B2: =INDEX(dms_TradingNameFull_List,MATCH(dms_TradingName,dms_TradingName_List)) -> Power and Water Corporation
B3: =CONCATENATE("REGULATORY PERIOD FROM ", FRCP_y1," TO ",dms_MultiYear_FinalYear_Result) -> REGULATORY PERIOD FROM 2024-25 TO 2028-29
B4: 2.16 OPEX SUMMARY
B6: There are FOUR tables on this worksheet. Each table has been 'grouped' (and 'sub-grouped') for easy navigation. See the Instructions sheet on how to group or ungroup data.
B8: Instructions | J8: IMPORTANT!
B9: =CONCATENATE("Complete the tables below in accordance with the regulatory information notice. ",dms_TradingName,"'s total forecast opex must reconcile to Table 2.16.1 (and if ",dms_TradingName," owns any dual function assets Table 2.16.3). If ",dms_TradingName," did not forecast its total opex using a Base Year approach, total forecast opex must reconcile to Table 2.16.2 (and if ",dms_TradingName," owns any dual function assets Table 2.16.4).") -> Complete the tables below in accordance with the regulatory information notice. Power and Water's total forecast opex must reconcile to Table 2.16.1 (and if Power and Water owns any dual function assets Table 2.16.3). If Power and Water did not forecast its total opex using a Base Year approach, total forecast opex must reconcile to Table 2.16.2 (and if Power and Water owns any dual function assets Table 2.16.4). | J9: =CONCATENATE("Has ",dms_TradingName," used a base-step-trend model to derive its opex forecast? ") -> Has Power and Water used a base-step-trend model to derive its opex forecast? | L9: Yes
B10: =CONCATENATE("If ",dms_TradingName," does not own any dual function assets,Table 2.16.3 and 2.16.4 may be left blank.") -> If Power and Water does not own any dual function assets,Table 2.16.3 and 2.16.4 may be left blank. | J10: Yes / No
B11: The total step changes in Table 2.16.1 and Table 2.16.3 must "&"reconcile (in each year) to the total step changes for each year in Table 2.17.1 and Table 2.17.3 of worksheet '2.17 Step Changes', respectively.") | J11: Please nominate the base year. | L11: 2021-22
B14: 2.16.1 - STANDARD CONTROL SERVICES - OPEX BY DRIVER
C15: =CONCATENATE("EXPENDITURE ($0's, real ", dms_DollarReal, ")") -> EXPENDITURE ($0's, real June 2024)
C16: =CRCP_y1 -> 2019-20 | D16: =CRCP_y2 -> 2020-21 | E16: =CRCP_y3 -> 2021-22 | F16: =CRCP_y4 -> 2022-23 | G16: =CRCP_y5 -> 2023-24 | H16: =FRCP_y1 -> 2024-25 | I16: =FRCP_y2 -> 2025-26 | J16: =FRCP_y3 -> 2026-27 | K16: =FRCP_y4 -> 2027-28 | L16: =FRCP_y5 -> 2028-29
B17: Base year total opex, excluding category specific | E17: 73316067.87 | F17: 72096304.3 | G17: 72352588.46 | H17: 73349889.59 | I17: 73349889.59 | J17: 73349889.59 | K17: 73349889.59 | L17: 73349889.59
B18: Increment from base year to final year | G18: 0 | H18: 0 | I18: 0 | J18: 0 | K18: 0 | L18: 0
B19: Price growth | H19: -972144.1485 | I19: -331123.7235 | J19: -20280.51072 | K19: 166434.3529 | L19: 492488.1309
B20: Output growth | H20: 17405.90833 | I20: 290688.0909 | J20: 569795.4578 | K20: 843280.6589 | L20: 1118476.821
B21: Productivity growth | H21: -1080506.683 | I21: -1455229.27 | J21: -1829102.406 | K21: -2203088.49 | L21: -2584601.779
B22: Step changes | H22: 9657361.448 | I22: 9969961.576 | J22: 9818187.575 | K22: 11370959.1 | L22: 11413162.85
B23: Category specific | E23: 0 | F23: 0 | G23: 0 | H23: 635584.9221 | I23: 652266.1569 | J23: 669232.477 | K23: 679056.1715 | L23: 701225.1548
B24: Total opex | C24: =SUM(C17:C23) -> 0 | D24: 0 | E24: 73316067.87 | F24: 72096304.3 | G24: 72352588.46 | H24: 81607591.04 | I24: 82476452.42 | J24: 82557722.19 | K24: 84206531.39 | L24: 84490640.77
B27: 2.16.2 - STANDARD CONTROL SERVICES - OPEX BY CATEGORY
C28: =CONCATENATE("EXPENDITURE ($0's, real ", dms_DollarReal, ")") -> EXPENDITURE ($0's, real June 2024)
C29: =CRCP_y1 -> 2019-20 | D29: =CRCP_y2 -> 2020-21 | E29: =CRCP_y3 -> 2021-22 | F29: =CRCP_y4 -> 2022-23 | G29: =CRCP_y5 -> 2023-24 | H29: =FRCP_y1 -> 2024-25 | I29: =FRCP_y2 -> 2025-26 | J29: =FRCP_y3 -> 2026-27 | K29: =FRCP_y4 -> 2027-28 | L29: =FRCP_y5 -> 2028-29
B30: Vegetation management
B31: Maintenance
B32: Emergency response
B33: Non-network
B34: Metering
B35: Network overheads
B36: Corporate overheads
B37: Total opex | C37: =SUM(C30:C36) -> 0 | D37: 0 | E37: 0 | F37: 0 | G37: 0 | H37: 0 | I37: 0 | J37: 0 | K37: 0 | L37: 0
B40: 2.16.3 - DUAL FUNCTION ASSETS - OPEX BY DRIVER
C41: =CONCATENATE("EXPENDITURE ($0's, real ", dms_DollarReal, ")") -> EXPENDITURE ($0's, real June 2024)
C42: 2017 | D42: 2018 | E42: 2019 | F42: 2020 | G42: 2021 | H42: =FRCP_y1 -> 2024-25 | I42: =FRCP_y2 -> 2025-26 | J42: =FRCP_y3 -> 2026-27 | K42: =FRCP_y4 -> 2027-28 | L42: =FRCP_y5 -> 2028-29
B43: Base year total opex, excluding category specific
B44: Increment from base year to final year
B45: Price growth | G45: .
B46: Output growth
B47: Productivity growth
B48: Step changes
B49: Category specific
B50: Total opex | C50: =SUM(C43:C49) -> 0 | D50: 0 | E50: 0 | F50: 0 | G50: 0 | H50: 0 | I50: 0 | J50: 0 | K50: 0 | L50: 0
B53: 2.16.4 - DUAL FUNCTION ASSETS - OPEX BY CATEGORY
C54: =CONCATENATE("EXPENDITURE ($0's, real ", dms_DollarReal, ")") -> EXPENDITURE ($0's, real June 2024)
C55: =CRCP_y1 -> 2019-20 | D55: =CRCP_y2 -> 2020-21 | E55: =CRCP_y3 -> 2021-22 | F55: =CRCP_y4 -> 2022-23 | G55: =CRCP_y5 -> 2023-24 | H55: =FRCP_y1 -> 2024-25 | I55: =FRCP_y2 -> 2025-26 | J55: =FRCP_y3 -> 2026-27 | K55: =FRCP_y4 -> 2027-28 | L55: =FRCP_y5 -> 2028-29
B56: Vegetation management
B57: Maintenance
B58: Emergency response
B59: Non-network
B60: Metering
B61: Network overheads
B62: Corporate overheads
B63: Total opex | C63: =SUM(C56:C62) -> 0 | D63: 0 | E63: 0 | F63: 0 | G63: 0 | H63: 0 | I63: 0 | J63: 0 | K63: 0 | L63: 0

Sheet 2.17 Step Changes
B1: =INDEX(dms_Worksheet_List,MATCH(dms_Model,dms_Model_List)) -> REGULATORY REPORTING STATEMENT
B2: =INDEX(dms_TradingNameFull_List,MATCH(dms_TradingName,dms_TradingName_List)) -> Power and Water Corporation
B3: =CONCATENATE("REGULATORY PERIOD FROM ", FRCP_y1," TO ",dms_MultiYear_FinalYear_Result) -> REGULATORY PERIOD FROM 2024-25 TO 2028-29
B4: 2.17 STEP CHANGES
B6: There are FIVE tables on this worksheet. Each table has been 'grouped' (and 'sub-grouped') for easy navigation. See the Instructions sheet on how to group or ungroup data.
B8: 2.17.1 - STEP CHANGES FOR STANDARD CONTROL SERVICES - FORECAST OPEX
E9: =CONCATENATE("EXPENDITURE ($0's, real ", dms_DollarReal, ")") -> EXPENDITURE ($0's, real June 2024)
B10: STEP CHANGE | C10: DESCRIPTION | E10: =CRCP_y4 -> 2022-23 | F10: =CRCP_y5 -> 2023-24 | G10: =FRCP_y1 -> 2024-25 | H10: =FRCP_y2 -> 2025-26 | I10: =FRCP_y3 -> 2026-27 | J10: =FRCP_y4 -> 2027-28 | K10: =FRCP_y5 -> 2028-29
B11: Cyber security | E11: 0 | F11: 0 | G11: 743397.8422 | H11: 924773.5049 | I11: 924773.5049 | J11: 924773.5049 | K11: 924773.5049
B12: Insurance premiums | E12: 0 | F12: 0 | G12: 712423.1206 | H12: 838154.0511 | I12: 970171.5281 | J12: 1108789.879 | K12: 1254339.147
B13: Cloud migration | E13: 0 | F13: 0 | G13: 780082.0234 | H13: 785575.5588 | I13: 791069.0942 | J13: 796562.6296 | K13: 802056.1649
B14: Future Network | E14: 0 | F14: 0 | G14: 2289334.546 | H14: 2038258.889 | I14: 3163077.833 | J14: 3258063.782 | K14: 3400300.382
B15: Regulatory obligations | E15: 0 | F15: 0 | G15: 1132676.333 | H15: 1383751.99 | I15: 1132676.333 | J15: 1283321.728 | K15: 1032246.071
B16: OT capability uplift | E16: 0 | F16: 0 | G16: 3999447.582 | H16: 3999447.582 | I16: 2836419.282 | J16: 3999447.582 | K16: 3999447.582
B21: Total | E21: =SUM(E11:E20) -> 0 | F21: 0 | G21: 9657361.448 | H21: 9969961.576 | I21: 9818187.575 | J21: 11370959.1 | K21: 11413162.85
B22: Check | G22: =IF(ROUND(G$21,0)-ROUND('2.16 Opex Summary'!H$22,0)=0,"OK","Error") -> OK | H22: =IF(ROUND(H$21,0)-ROUND('2.16 Opex Summary'!I$22,0)=0,"OK","Error") -> OK | I22: =IF(ROUND(I$21,0)-ROUND('2.16 Opex Summary'!J$22,0)=0,"OK","Error") -> OK | J22: =IF(ROUND(J$21,0)-ROUND('2.16 Opex Summary'!K$22,0)=0,"OK","Error") -> OK | K22: =IF(ROUND(K$21,0)-ROUND('2.16 Opex Summary'!L$22,0)=0,"OK","Error") -> OK
B24: 2.17.2 - STEP CHANGES FOR STANDARD CONTROL SERVICES - FORECAST CAPEX
E25: =CONCATENATE("EXPENDITURE ($0's, real ", dms_DollarReal, ")") -> EXPENDITURE ($0's, real June 2024)
B26: STEP CHANGE | C26: DESCRIPTION | E26: =CRCP_y4 -> 2022-23 | F26: =CRCP_y5 -> 2023-24 | G26: =FRCP_y1 -> 2024-25 | H26: =FRCP_y2 -> 2025-26 | I26: =FRCP_y3 -> 2026-27 | J26: =FRCP_y4 -> 2027-28 | K26: =FRCP_y5 -> 2028-29
B37: Total | E37: =SUM(E27:E36) -> 0 | F37: 0 | G37: 0 | H37: 0 | I37: 0 | J37: 0 | K37: 0
B39: 2.17.3 - STEP CHANGES FOR DUAL FUNCTION ASSETS - FORECAST OPEX
E40: =CONCATENATE("EXPENDITURE ($0's, real ", dms_DollarReal, ")") -> EXPENDITURE ($0's, real June 2024)
B41: STEP CHANGE | C41: DESCRIPTION | E41: =CRCP_y4 -> 2022-23 | F41: =CRCP_y5 -> 2023-24 | G41: =FRCP_y1 -> 2024-25 | H41: =FRCP_y2 -> 2025-26 | I41: =FRCP_y3 -> 2026-27 | J41: =FRCP_y4 -> 2027-28 | K41: =FRCP_y5 -> 2028-29
B52: Total | E52: =SUM(E42:E51) -> 0 | F52: 0 | G52: 0 | H52: 0 | I52: 0 | J52: 0 | K52: 0
B53: Check | G53: =IF(ROUND(G$21,0)-ROUND('2.16 Opex Summary'!H$48,0)=0,"OK","Error") -> Error | H53: =IF(ROUND(H$21,0)-ROUND('2.16 Opex Summary'!I$48,0)=0,"OK","Error") -> Error | I53: =IF(ROUND(I$21,0)-ROUND('2.16 Opex Summary'!J$48,0)=0,"OK","Error") -> Error | J53: =IF(ROUND(J$21,0)-ROUND('2.16 Opex Summary'!K$48,0)=0,"OK","Error") -> Error | K53: =IF(ROUND(K$21,0)-ROUND('2.16 Opex Summary'!L$48,0)=0,"OK","Error") -> Error
B55: 2.17.4 - STEP CHANGES FOR DUAL FUNCTION ASSETS - FORECAST CAPEX
E56: =CONCATENATE("EXPENDITURE ($0's, real ", dms_DollarReal, ")") -> EXPENDITURE ($0's, real June 2024)
B57: STEP CHANGE | C57: DESCRIPTION | E57: =CRCP_y4 -> 2022-23 | F57: =CRCP_y5 -> 2023-24 | G57: =FRCP_y1 -> 2024-25 | H57: =FRCP_y2 -> 2025-26 | I57: =FRCP_y3 -> 2026-27 | J57: =FRCP_y4 -> 2027-28 | K57: =FRCP_y5 -> 2028-29
B68: Total | E68: =SUM(E58:E67) -> 0 | F68: 0 | G68: 0 | H68: 0 | I68: 0 | J68: 0 | K68: 0
B71: 2.17.5 - FORECAST CATEGORY SPECIFIC OPEX
D72: EXPENDITURE ($0's, real June 2024)
B73: CATEGORY | C73: DESCRIPTION | D73: =CRCP_y3 -> 2021-22 | E73: =CRCP_y4 -> 2022-23 | F73: =CRCP_y5 -> 2023-24 | G73: =FRCP_y1 -> 2024-25 | H73: =FRCP_y2 -> 2025-26 | I73: =FRCP_y3 -> 2026-27 | J73: =FRCP_y4 -> 2027-28 | K73: =FRCP_y5 -> 2028-29
B74: Debt raising costs | G74: 635584.9221 | H74: 652266.1569 | I74: 669232.477 | J74: 679056.1715 | K74: 701225.1548
B84: Total | D84: =SUM(D74:D83) -> 0 | E84: =SUM(E74:E83) -> 0 | F84: =SUM(F74:F83) -> 0 | G84: 635584.9221 | H84: 652266.1569 | I84: 669232.477 | J84: 679056.1715 | K84: 701225.1548

Sheet 3.1 Revenue
B1: =INDEX(dms_Worksheet_List,MATCH(dms_Model,dms_Model_List)) -> REGULATORY REPORTING STATEMENT
B2: =INDEX(dms_TradingNameFull_List,MATCH(dms_TradingName,dms_TradingName_List)) -> Power and Water Corporation
B3: =CONCATENATE("REGULATORY PERIOD FROM ", FRCP_y1," TO ",dms_MultiYear_FinalYear_Result) -> REGULATORY PERIOD FROM 2024-25 TO 2028-29
B4: 3.1 REVENUE
B6: There are THREE tables on this worksheet. Each table has been 'grouped' (and 'sub-grouped') for easy navigation. See the Instructions sheet on how to group or ungroup data.
B8: 3.1.1 - REVENUE GROUPING BY CHARGEABLE QUANTITY
C9: Standard control services | K9: Alternative control services
C10: =CONCATENATE("REVENUE Forecast ($0's, real ", dms_DollarReal,")") -> REVENUE Forecast ($0's, real June 2024) | K10: =CONCATENATE("REVENUE Forecast ($0's, real ", dms_DollarReal,")") -> REVENUE Forecast ($0's, real June 2024)
C11: =CRCP_y4 -> 2022-23 | D11: =CRCP_y5 -> 2023-24 | E11: =FRCP_y1 -> 2024-25 | F11: =FRCP_y2 -> 2025-26 | G11: =FRCP_y3 -> 2026-27 | H11: =FRCP_y4 -> 2027-28 | I11: =FRCP_y5 -> 2028-29 | K11: =CRCP_y4 -> 2022-23 | L11: =CRCP_y5 -> 2023-24 | M11: =FRCP_y1 -> 2024-25 | N11: =FRCP_y2 -> 2025-26 | O11: =FRCP_y3 -> 2026-27 | P11: =FRCP_y4 -> 2027-28 | Q11: =FRCP_y5 -> 2028-29
A12: DREV0101 | B12: Revenue from Fixed Customer Charges | C12: 42227560.57 | D12: 56267506.99 | E12: 80116672.77 | F12: 90003045.35 | G12: 98487516.09 | H12: 108247891.2 | I12: 109583846.7 | K12: 0 | L12: 0 | M12: 0 | N12: 0 | O12: 0 | P12: 0 | Q12: 0
A13: DREV0102 | B13: Revenue from Energy Delivery charges where time of use is not a determinant | C13: 68491698.8 | D13: 52695367.45 | E13: 32707135.86 | F13: 33228247.62 | G13: 33047280.35 | H13: 34199544.12 | I13: 33362478.48 | K13: 0 | L13: 0 | M13: 0 | N13: 0 | O13: 0 | P13: 0 | Q13: 0
A14: DREV0103 | B14: Revenue from On–Peak Energy Delivery charges | C14: 0 | D14: 0 | E14: 28209105.98 | F14: 30805889 | G14: 33229528.48 | H14: 34746231.16 | I14: 35912307.91 | K14: 0 | L14: 0 | M14: 0 | N14: 0 | O14: 0 | P14: 0 | Q14: 0
A15: DREV0104 | B15: Revenue from Shoulder period Energy Delivery Charges | C15: 0 | D15: 0 | E15: 18920600.68 | F15: 19889404.99 | G15: 24389428.34 | H15: 28486083.81 | I15: 29087320.55 | K15: 0 | L15: 0 | M15: 0 | N15: 0 | O15: 0 | P15: 0 | Q15: 0
A16: DREV0105 | B16: Revenue from Off–Peak Energy Delivery charges | C16: 0 | D16: 0 | E16: 0 | F16: 0 | G16: 0 | H16: 0 | I16: 0 | K16: 0 | L16: 0 | M16: 0 | N16: 0 | O16: 0 | P16: 0 | Q16: 0
A17: DREV0106 | B17: Revenue from controlled load customer charges | C17: 0 | D17: 0 | E17: 0 | F17: 0 | G17: 0 | H17: 0 | I17: 0 | K17: 0 | L17: 0 | M17: 0 | N17: 0 | O17: 0 | P17: 0 | Q17: 0
A18: DREV0107 | B18: Revenue from unmetered supplies | C18: 1031727.001 | D18: 1127905.859 | E18: 1709765.388 | F18: 1854236.857 | G18: 2010915.852 | H18: 2180833.883 | I18: 2206387.368 | K18: 0 | L18: 0 | M18: 0 | N18: 0 | O18: 0 | P18: 0 | Q18: 0
A19: DREV0108 | B19: Revenue from Contracted Maximum Demand charges | C19: 0 | D19: 0 | E19: 0 | F19: 0 | G19: 0 | H19: 0 | I19: 0 | K19: 0 | L19: 0 | M19: 0 | N19: 0 | O19: 0 | P19: 0 | Q19: 0
A20: DREV0109 | B20: Revenue from Measured Maximum Demand charges | C20: 38582846.4 | D20: 42015715.51 | E20: 9313258.077 | F20: 9642861.866 | G20: 9926916.123 | H20: 10222804.12 | I20: 10486395.82 | K20: 0 | L20: 0 | M20: 0 | N20: 0 | O20: 0 | P20: 0 | Q20: 0
A21: DREV0110 | B21: Revenue from metering charges | C21: 0 | D21: 0 | E21: 0 | F21: 0 | G21: 0 | H21: 0 | I21: 0 | K21: 8466957.73 | L21: 8989470.289 | M21: 13526518.45 | N21: 14194528.58 | O21: 14900230.64 | P21: 15645717 | Q21: 16433194.81
A22: DREV0111 | B22: Revenue from connection charges | C22: 0 | D22: 0 | E22: 0 | F22: 0 | G22: 0 | H22: 0 | I22: 0 | K22: 2169404.142 | L22: 2147868.517 | M22: 3696223.84 | N22: 3696223.84 | O22: 3696223.84 | P22: 3696223.84 | Q22: 3696223.84
A23: DREV0112 | B23: Revenue from public lighting charges | C23: 0 | D23: 0 | E23: 0 | F23: 0 | G23: 0 | H23: 0 | I23: 0 | K23: 0 | L23: 0 | M23: 0 | N23: 0 | O23: 0 | P23: 0 | Q23: 0
A24: DREV0113 | B24: Revenue from other Sources | C24: 0 | D24: 0 | E24: 0 | F24: 0 | G24: 0 | H24: 0 | I24: 0 | K24: 10161351.23 | L24: 10060479.73 | M24: 11261017.25 | N24: 11261017.25 | O24: 11261017.25 | P24: 11261017.25 | Q24: 11261017.25
A25: DREV01 | B25: Total revenue by chargeable quantity | C25: =SUM(C12:C24) -> 150333832.8 | D25: 152106495.8 | E25: 170976538.8 | F25: 185423685.7 | G25: 201091585.2 | H25: 218083388.3 | I25: 220638736.8 | K25: =SUM(K12:K24) -> 20797713.1 | L25: 21197818.54 | M25: 28483759.54 | N25: 29151769.67 | O25: 29857471.73 | P25: 30602958.09 | Q25: 31390435.9
B28: 3.1.2 - REVENUE GROUPING BY CUSTOMER TYPE OR CLASS
C29: Standard control services | K29: Alternative control services
C30: =CONCATENATE("REVENUE Forecast ($0's, real ", dms_DollarReal,")") -> REVENUE Forecast ($0's, real June 2024) | K30: =CONCATENATE("REVENUE Forecast ($0's, real ", dms_DollarReal,")") -> REVENUE Forecast ($0's, real June 2024)
C31: =CRCP_y4 -> 2022-23 | D31: =CRCP_y5 -> 2023-24 | E31: =FRCP_y1 -> 2024-25 | F31: =FRCP_y2 -> 2025-26 | G31: =FRCP_y3 -> 2026-27 | H31: =FRCP_y4 -> 2027-28 | I31: =FRCP_y5 -> 2028-29 | K31: =CRCP_y4 -> 2022-23 | L31: =CRCP_y5 -> 2023-24 | M31: =FRCP_y1 -> 2024-25 | N31: =FRCP_y2 -> 2025-26 | O31: =FRCP_y3 -> 2026-27 | P31: =FRCP_y4 -> 2027-28 | Q31: =FRCP_y5 -> 2028-29
A32: DREV0201 | B32: Revenue from residential Customers | C32: 91288458.46 | D32: 96726646.99 | E32: 93233506.58 | F32: 100870485 | G32: 107785089.7 | H32: 115693237.5 | I32: 116894402.7 | K32: 10814641 | L32: 11022692.56 | M32: 14811322.39 | N32: 15158682.2 | O32: 15525641.51 | P32: 15913288.33 | Q32: 16322770.36
A33: DREV0202 | B33: Revenue from Non residential customers not on demand tariffs | C33: 29129311.81 | D33: 23289788.55 | E33: 52011063.09 | F33: 56739647.82 | G33: 63142757.76 | H33: 69677642.57 | I33: 70648523.52 | K33: 2023815.46 | L33: 2062749.527 | M33: 2771740.942 | N33: 2836744.687 | O33: 2905416.215 | P33: 2977959.134 | Q33: 3054588.221
A34: DREV0203 | B34: Revenue from Non-residential low voltage demand tariff customers | C34: 14703763.76 | D34: 16142809.31 | E34: 16755700.8 | F34: 18264233.04 | G34: 19908066.94 | H34: 21699297.14 | I34: 22063873.68 | K34: 5309163.562 | L34: 5411301.002 | M34: 7271229.173 | N34: 7441756.337 | O34: 7621905.359 | P34: 7812210.369 | Q34: 8013234.804
A35: DREV0204 | B35: Revenue from Non-residential high voltage demand tariff customers | C35: 14180571.74 | D35: 14819345.1 | E35: 7266502.897 | F35: 7695082.956 | G35: 8244754.995 | H35: 8832377.227 | I35: 8825549.471 | K35: 1661280.718 | L35: 1693240.359 | M35: 2275227.101 | N35: 2328586.446 | O35: 2384956.549 | P35: 2444504.544 | Q35: 2507406.734
A36: DREV0205 | B36: Revenue from unmetered supplies | C36: 1031727.001 | D36: 1127905.859 | E36: 1709765.388 | F36: 1854236.857 | G36: 2010915.852 | H36: 2180833.883 | I36: 2206387.368 | K36: 110098.836 | L36: 112216.9123 | M36: 150787.1926 | N36: 154323.5015 | O36: 158059.3438 | P36: 162005.7959 | Q36: 166174.5423
A37: DREV0206 | B37: Revenue from Other Customers | C37: 0 | D37: 0 | E37: 0 | F37: 0 | G37: 0 | H37: 0 | I37: 0 | K37: 878713.5296 | L37: 895618.1794 | M37: 1203452.743 | N37: 1231676.497 | O37: 1261492.753 | P37: 1292989.916 | Q37: 1326261.238
A38: DREV02 | B38: Total revenue by customer class | C38: =SUM(C32:C37) -> 150333832.8 | D38: 152106495.8 | E38: 170976538.8 | F38: 185423685.7 | G38: 201091585.2 | H38: 218083388.3 | I38: 220638736.8 | K38: =SUM(K32:K37) -> 20797713.1 | L38: 21197818.54 | M38: 28483759.54 | N38: 29151769.67 | O38: 29857471.73 | P38: 30602958.09 | Q38: 31390435.9
B41: 3.1.3 - REVENUE (penalties) ALLOWED (deducted) THROUGH INCENTIVE SCHEMES
C42: Standard control services | K42: Alternative control services
C43: =CONCATENATE("REVENUE Forecast ($0's, real ", dms_DollarReal,")") -> REVENUE Forecast ($0's, real June 2024) | K43: =CONCATENATE("REVENUE Forecast ($0's, real ", dms_DollarReal,")") -> REVENUE Forecast ($0's, real June 2024)
C44: =CRCP_y4 -> 2022-23 | D44: =CRCP_y5 -> 2023-24 | E44: =FRCP_y1 -> 2024-25 | F44: =FRCP_y2 -> 2025-26 | G44: =FRCP_y3 -> 2026-27 | H44: =FRCP_y4 -> 2027-28 | I44: =FRCP_y5 -> 2028-29 | K44: =CRCP_y4 -> 2022-23 | L44: =CRCP_y5 -> 2023-24 | M44: =FRCP_y1 -> 2024-25 | N44: =FRCP_y2 -> 2025-26 | O44: =FRCP_y3 -> 2026-27 | P44: =FRCP_y4 -> 2027-28 | Q44: =FRCP_y5 -> 2028-29
A45: DREV0301 | B45: EBSS | C45: 0 | D45: 0 | E45: 0 | F45: 0 | G45: 0 | H45: 0 | I45: 0 | K45: 0 | L45: 0 | M45: 0 | N45: 0 | O45: 0 | P45: 0 | Q45: 0
A46: DREV0302 | B46: STPIS | C46: 0 | D46: 0 | E46: 0 | F46: 0 | G46: 0 | H46: 0 | I46: 0 | K46: 0 | L46: 0 | M46: 0 | N46: 0 | O46: 0 | P46: 0 | Q46: 0
A47: DREV0303 | B47: F-Factor | C47: 0 | D47: 0 | E47: 0 | F47: 0 | G47: 0 | H47: 0 | I47: 0 | K47: 0 | L47: 0 | M47: 0 | N47: 0 | O47: 0 | P47: 0 | Q47: 0
A48: DREV0304 | B48: S-Factor True up | C48: 0 | D48: 0 | E48: 0 | F48: 0 | G48: 0 | H48: 0 | I48: 0 | K48: 0 | L48: 0 | M48: 0 | N48: 0 | O48: 0 | P48: 0 | Q48: 0
A49: DREV0305 | B49: Other | C49: 0 | D49: 0 | E49: -146116.0412 | F49: -143132.2558 | G49: -138685.5755 | H49: -131410.142 | I49: -125468.9373 | K49: 0 | L49: 0 | M49: 0 | N49: 0 | O49: 0 | P49: 0 | Q49: 0
A50: DREV03 | B50: Total revenue of incentive schemes | C50: =SUM(C45:C49) -> 0 | D50: 0 | E50: -146116.0412 | F50: -143132.2558 | G50: -138685.5755 | H50: -131410.142 | I50: -125468.9373 | K50: =SUM(K45:K49) -> 0 | L50: 0 | M50: 0 | N50: 0 | O50: 0 | P50: 0 | Q50: 0

Sheet 3.2 Operating expenditure
B1: =INDEX(dms_Worksheet_List,MATCH(dms_Model,dms_Model_List)) -> REGULATORY REPORTING STATEMENT
B2: =INDEX(dms_TradingNameFull_List,MATCH(dms_TradingName,dms_TradingName_List)) -> Power and Water Corporation
B3: =CONCATENATE("REGULATORY PERIOD FROM ", FRCP_y1," TO ",dms_MultiYear_FinalYear_Result) -> REGULATORY PERIOD FROM 2024-25 TO 2028-29
B4: 3.2 OPERATING EXPENDITURE
B6: There are TWO tables on this worksheet. Both ROWS and COLUMNS have been grouped for ease of navigation. see the Instructions sheet on how to group or ungroup tables.
B8: 3.2.1 - OPEX CATEGORIES
B9: CURRENT OPEX CATEGORIES AND COST ALLOCATIONS
C10: Standard control services | K10: Alternative control services
C11: =CONCATENATE("EXPENDITURE ($0's, real ", dms_DollarReal, ")") -> EXPENDITURE ($0's, real June 2024) | K11: =CONCATENATE("EXPENDITURE ($0's, real ", dms_DollarReal, ")") -> EXPENDITURE ($0's, real June 2024)
C12: =CRCP_y4 -> 2022-23 | D12: =CRCP_y5 -> 2023-24 | E12: =FRCP_y1 -> 2024-25 | F12: =FRCP_y2 -> 2025-26 | G12: =FRCP_y3 -> 2026-27 | H12: =FRCP_y4 -> 2027-28 | I12: =FRCP_y5 -> 2028-29 | K12: =CRCP_y4 -> 2022-23 | L12: =CRCP_y5 -> 2023-24 | M12: =FRCP_y1 -> 2024-25 | N12: =FRCP_y2 -> 2025-26 | O12: =FRCP_y3 -> 2026-27 | P12: =FRCP_y4 -> 2027-28 | Q12: =FRCP_y5 -> 2028-29
A13: DOPEX0101 | B13: Employee benefits expense | C13: 12379337.1 | D13: 12423342.51 | E13: 14769624.85 | F13: 15118049.6 | G13: 14886140.35 | H13: 15169884.43 | I13: 14942122.13 | K13: 769075.5765 | L13: 768472.527 | M13: 1032105.067 | N13: 1071209.523 | O13: 1059531.2 | P13: 1083724.605 | Q13: 1080787.681
A14: DOPEX0102 | B14: Energy and materials | C14: 910308.2698 | D14: 913544.1858 | E14: 908463.8893 | F14: 915487.4008 | G14: 918429.8771 | H14: 919642.4758 | I14: 922696.8446 | K14: 2193272.408 | L14: 2191552.614 | M14: 2543966.009 | N14: 2564078.045 | O14: 2578495.214 | P14: 2591060.525 | Q14: 2606258.23
A15: DOPEX0103 | B15: External service agreements | C15: 2361300.733 | D15: 2369694.561 | E15: 8886085.225 | F15: 8838261.519 | G15: 8834026.856 | H15: 9984071.584 | I15: 10157947.82 | K15: 1249181.045 | L15: 1248201.534 | M15: 1571261.17 | N15: 1576560.92 | O15: 1652431.134 | P15: 1660036.692 | Q15: 1680048.792
A16: DOPEX0104 | B16: Other expenses | C16: 13492200.19 | D16: 13540161.56 | E16: 14177286.69 | F16: 14407117.11 | G16: 14582746.71 | H16: 14739337.68 | I16: 14930157.5 | K16: 3804009.98 | L16: 3801027.17 | M16: 4358673.771 | N16: 4386119.307 | O16: 4399143.187 | P16: 4410122.644 | Q16: 4426933.646
A17: DOPEX0105 | B17: Repairs and maintenance expense | C17: 27866913.55 | D17: 27965973.39 | E17: 27810452.24 | F17: 28025460.27 | G17: 28115537.16 | H17: 28152657.97 | I17: 28246160.18 | K17: 0 | L17: 0 | M17: 0 | N17: 0 | O17: 0 | P17: 0 | Q17: 0
A18: DOPEX0106 | B18: Inter-group sales | C18: 15086244.46 | D18: 15139872.25 | E18: 15055678.14 | F18: 15172076.53 | G18: 15220841.23 | H18: 15240937.24 | I18: 15291556.31 | K18: 2946137.549 | L18: 2943827.416 | M18: 3417210.627 | N18: 3444226.343 | O18: 3463592.366 | P18: 3480470.859 | Q18: 3500885.345
A19: DOPEX0107
A20: DOPEX0108
A21: DOPEX0109
A22: DOPEX0110
A23: DOPEX0111
A24: DOPEX0112
A25: DOPEX0113
A26: DOPEX0114
A27: DOPEX0115
A28: DOPEX0116
A29: DOPEX0117
A30: DOPEX0118
A31: DOPEX0119
A32: DOPEX0120
A33: DOPEX0121
A34: DOPEX0122
A35: DOPEX0123
A36: DOPEX0124
A37: DOPEX0125
A38: DOPEX0126
A39: DOPEX0127
A40: DOPEX0128
A41: DOPEX0129
A42: DOPEX0130
A43: DOPEX0131
A44: DOPEX0132
A45: DOPEX0133
A46: DOPEX0134
A47: DOPEX0135
A48: DOPEX0136
A49: DOPEX0137
A50: DOPEX0138
A51: DOPEX0139
A52: DOPEX0140
A53: DOPEX0141
A54: DOPEX0142
A55: DOPEX0143
A56: DOPEX0144
A57: DOPEX0145
A58: DOPEX0146
A59: DOPEX0147
A60: DOPEX0148
A61: DOPEX0149
A62: DOPEX01 | B62: Total opex | C62: =SUM(C13:C61) -> 72096304.3 | D62: 72352588.46 | E62: 81607591.04 | F62: 82476452.42 | G62: 82557722.19 | H62: 84206531.39 | I62: 84490640.77 | K62: =SUM(K13:K61) -> 10961676.56 | L62: 10953081.26 | M62: 12923216.64 | N62: 13042194.14 | O62: 13153193.1 | P62: 13225415.32 | Q62: 13294913.69
B65: 3.2.2 - OPEX CONSISTENCY
B66: OPEX CONSISTENCY - CURRENT COST ALLOCATION APPROACH
C67: Standard control services | K67: Alternative control services
C68: =CONCATENATE("EXPENDITURE ($0's, real ", dms_DollarReal, ")") -> EXPENDITURE ($0's, real June 2024) | K68: =CONCATENATE("EXPENDITURE ($0's, real ", dms_DollarReal, ")") -> EXPENDITURE ($0's, real June 2024)
C69: =CRCP_y4 -> 2022-23 | D69: =CRCP_y5 -> 2023-24 | E69: =FRCP_y1 -> 2024-25 | F69: =FRCP_y2 -> 2025-26 | G69: =FRCP_y3 -> 2026-27 | H69: =FRCP_y4 -> 2027-28 | I69: =FRCP_y5 -> 2028-29 | K69: =CRCP_y4 -> 2022-23 | L69: =CRCP_y5 -> 2023-24 | M69: =FRCP_y1 -> 2024-25 | N69: =FRCP_y2 -> 2025-26 | O69: =FRCP_y3 -> 2026-27 | P69: =FRCP_y4 -> 2027-28 | Q69: =FRCP_y5 -> 2028-29
A70: DOPEX0201 | B70: Opex for network services | C70: 72096304.3 | D70: 72352588.46 | E70: 81607591.04 | F70: 82476452.42 | G70: 82557722.19 | H70: 84206531.39 | I70: 84490640.77 | K70: 3352825.905 | L70: 3319542.479 | M70: 4216487.614 | N70: 4216487.614 | O70: 4216487.614 | P70: 4216487.614 | Q70: 4216487.614
A71: DOPEX0202 | B71: Opex for metering | C71: 0 | D71: 0 | E71: 0 | F71: 0 | G71: 0 | H71: 0 | I71: 0 | K71: 6423872.964 | L71: 6460324.339 | M71: 6687767.831 | N71: 6806745.326 | O71: 6917744.289 | P71: 6989966.511 | Q71: 7059464.882
A72: DOPEX0203 | B72: Opex for connection services | C72: 0 | D72: 0 | E72: 0 | F72: 0 | G72: 0 | H72: 0 | I72: 0 | K72: 1110151.065 | L72: 1099130.621 | M72: 1891471.835 | N72: 1891471.835 | O72: 1891471.835 | P72: 1891471.835 | Q72: 1891471.835
A73: DOPEX0204 | B73: Opex for public lighting | C73: 0 | D73: 0 | E73: 0 | F73: 0 | G73: 0 | H73: 0 | I73: 0 | K73: 0 | L73: 0 | M73: 0 | N73: 0 | O73: 0 | P73: 0 | Q73: 0
A74: DOPEX0205 | B74: Opex for amounts payable for easement levy or similar direct charges on DNSP | C74: 0 | D74: 0 | E74: 0 | F74: 0 | G74: 0 | H74: 0 | I74: 0 | K74: 0 | L74: 0 | M74: 0 | N74: 0 | O74: 0 | P74: 0 | Q74: 0
A75: DOPEX0207 | B75: Opex for transmission connection point planning | C75: 0 | D75: 0 | E75: 0 | F75: 0 | G75: 0 | H75: 0 | I75: 0 | K75: 74826.62405 | L75: 74083.82187 | M75: 127489.3628 | N75: 127489.3628 | O75: 127489.3628 | P75: 127489.3628 | Q75: 127489.3628

Sheet 3.3 Assets (RAB)
B1: =INDEX(dms_Worksheet_List,MATCH(dms_Model,dms_Model_List)) -> REGULATORY REPORTING STATEMENT
B2: =INDEX(dms_TradingNameFull_List,MATCH(dms_TradingName,dms_TradingName_List)) -> Power and Water Corporation
B3: =CONCATENATE("REGULATORY PERIOD FROM ", FRCP_y1," TO ",dms_MultiYear_FinalYear_Result) -> REGULATORY PERIOD FROM 2024-25 TO 2028-29
B4: 3.3 ASSETS
B6: There are FOUR tables on this worksheet. Both ROWS and COLUMNS in each have been grouped (and sub-grouped) for ease of navigation. see the Instructions sheet on how to group or ungroup tables.
B8: 3.3.1 - REGULATORY ASSET BASE VALUES
C9: Network services | K9: Standard control services | S9: Alternative control services
C10: =CONCATENATE(" VALUE Forecast ($0's, real ", dms_DollarReal, ")") -> VALUE Forecast ($0's, real June 2024) | K10: =CONCATENATE(" VALUE Forecast ($0's, real ", dms_DollarReal, ")") -> VALUE Forecast ($0's, real June 2024) | S10: =CONCATENATE(" VALUE Forecast ($0's, real ", dms_DollarReal, ")") -> VALUE Forecast ($0's, real June 2024)
C11: =CRCP_y4 -> 2022-23 | D11: =CRCP_y5 -> 2023-24 | E11: =FRCP_y1 -> 2024-25 | F11: =FRCP_y2 -> 2025-26 | G11: =FRCP_y3 -> 2026-27 | H11: =FRCP_y4 -> 2027-28 | I11: =FRCP_y5 -> 2028-29 | K11: =CRCP_y4 -> 2022-23 | L11: =CRCP_y5 -> 2023-24 | M11: =FRCP_y1 -> 2024-25 | N11: =FRCP_y2 -> 2025-26 | O11: =FRCP_y3 -> 2026-27 | P11: =FRCP_y4 -> 2027-28 | Q11: =FRCP_y5 -> 2028-29 | S11: =CRCP_y4 -> 2022-23 | T11: =CRCP_y5 -> 2023-24 | U11: =FRCP_y1 -> 2024-25 | V11: =FRCP_y2 -> 2025-26 | W11: =FRCP_y3 -> 2026-27 | X11: =FRCP_y4 -> 2027-28 | Y11: =FRCP_y5 -> 2028-29
B12: For total asset base:
A13: DRAB0101 | B13: Opening value | C13: 1002438843 | D13: =C18 -> 1121209805 | E13: 1220341939 | F13: 1287649999 | G13: 1356293746 | H13: 1411507559 | I13: 1492385190 | K13: 1108732595 | L13: =K18 -> 1232516182 | M13: 1334854859 | N13: 1404734483 | O13: 1476140681 | P13: 1534136646 | Q13: 1617546538 | S13: 20914717.89 | T13: =S18 -> 33311709.32 | U13: 51393319.18 | V13: 54941248.77 | W13: 58167082.23 | X13: 64116699.47 | Y13: 71055093.88
A14: DRAB0102 | B14: Inflation addition | C14: 85509102.69 | D14: 53313116.56 | E14: 34990804.53 | F14: 35907585.36 | G14: 36836249.78 | H14: 37357587.3 | I14: 38592170.54 | K14: 88698607.6 | L14: 55327851.55 | M14: 36297817.33 | N14: 37250471.17 | O14: 38219406.03 | P14: 38780430.46 | Q14: 40046485.83 | S14: 1673177.431 | T14: 1495368.04 | U14: 1415512.69 | V14: 1476005.418 | W14: 1525644.807 | X14: 1651144.732 | Y14: 1801134.237
A15: DRAB0103 | B15: Straight line depreciation | C15: -58894596.02 | D15: -63247169.34 | E15: -68267876.22 | F15: -69466320.26 | G15: -72162965.09 | H15: -77406812.18 | I15: -81358119.74 | K15: -60416370.2 | L15: -64868412.27 | M15: -69954760.82 | N15: -71208707.41 | O15: -73964738.48 | P15: -79268749.91 | Q15: -83276160.4 | S15: -1647426.688 | T15: -2587451.119 | U15: -3718560.792 | V15: -4091920.436 | W15: -4429443.211 | X15: -5060215.494 | Y15: -5672696.978
A16: DRAB0105 | B16: Actual additions (recognised in RAB) | C16: 92319581.89 | D16: 109227199 | E16: 100740883.8 | F16: 102353932.2 | G16: 90687795.38 | H16: 121070054.5 | I16: 147097450.9 | K16: 95674662.71 | L16: 112050302.5 | M16: 103702046.3 | N16: 105525341.2 | O16: 93897759.76 | P16: 124050351.9 | Q16: 150131281.9 | S16: 12371240.69 | T16: 19173692.93 | U16: 5850977.694 | V16: 5841748.476 | W16: 8853415.647 | X16: 10347465.17 | Y16: 11266154.55
A17: DRAB0106 | B17: Disposals | C17: -163126.532 | D17: -161011.7732 | E17: -155752.479 | F17: -151450.355 | G17: -147266.8888 | H17: -143198.813 | I17: -139242.95 | K17: -173312.5705 | L17: -171065.7608 | M17: -165478.0627 | N17: -160907.3031 | O17: -156462.6106 | P17: -152140.5137 | Q17: -147937.6365 | S17: 0 | T17: 0 | U17: 0 | V17: 0 | W17: 0 | X17: 0 | Y17: 0
A18: DRAB0107 | B18: Closing value | C18: =SUM(C13+C14+C15+C16+C17) -> 1121209805 | D18: 1220341939 | E18: 1287649999 | F18: 1356293746 | G18: 1411507559 | H18: 1492385190 | I18: 1596577449 | K18: =SUM(K13+K14+K15+K16+K17) -> 1232516182 | L18: 1334854859 | M18: 1404734483 | N18: 1476140681 | O18: 1534136646 | P18: 1617546538 | Q18: 1724300207 | S18: =SUM(S13+S14+S15+S16+S17) -> 33311709.32 | T18: 51393319.18 | U18: 54941248.77 | V18: 58167082.23 | W18: 64116699.47 | X18: 71055093.88 | Y18: 78449685.68
B21: 3.3.2 - ASSET VALUE ROLL FORWARD
C22: Network services | K22: Standard control services | S22: Alternative control services
C23: =CONCATENATE(" VALUE Forecast ($0's, real ", dms_DollarReal, ")") -> VALUE Forecast ($0's, real June 2024) | K23: =CONCATENATE(" VALUE Forecast ($0's, real ", dms_DollarReal, ")") -> VALUE Forecast ($0's, real June 2024) | S23: =CONCATENATE(" VALUE Forecast ($0's, real ", dms_DollarReal, ")") -> VALUE Forecast ($0's, real June 2024)
C24: =CRCP_y4 -> 2022-23 | D24: =CRCP_y5 -> 2023-24 | E24: =FRCP_y1 -> 2024-25 | F24: =FRCP_y2 -> 2025-26 | G24: =FRCP_y3 -> 2026-27 | H24: =FRCP_y4 -> 2027-28 | I24: =FRCP_y5 -> 2028-29 | K24: =CRCP_y4 -> 2022-23 | L24: =CRCP_y5 -> 2023-24 | M24: =FRCP_y1 -> 2024-25 | N24: =FRCP_y2 -> 2025-26 | O24: =FRCP_y3 -> 2026-27 | P24: =FRCP_y4 -> 2027-28 | Q24: =FRCP_y5 -> 2028-29 | S24: =CRCP_y4 -> 2022-23 | T24: =CRCP_y5 -> 2023-24 | U24: =FRCP_y1 -> 2024-25 | V24: =FRCP_y2 -> 2025-26 | W24: =FRCP_y3 -> 2026-27 | X24: =FRCP_y4 -> 2027-28 | Y24: =FRCP_y5 -> 2028-29
B25: For overhead network assets less than 33kV:
A26: DRAB0201 | B26: Opening value | C26: 73401717.64 | D26: =C31 -> 86341271.48 | E26: 95150434.54 | F26: 101611179.6 | G26: 108653364.8 | H26: 115710723.4 | I26: 121874684.8 | K26: 95582959.01 | L26: =K31 -> 109765290.3 | M26: 119420528 | N26: 126501794.3 | O26: 134220345.1 | P26: 141955526.6 | Q26: 148711504.7 | S26: N/A | T26: N/A | U26: N/A | V26: N/A | W26: N/A | X26: N/A | Y26: N/A
A27: DRAB0202 | B27: Inflation addition | C27: 6976572.875 | D27: 4495602.287 | E27: 2963345.033 | F27: 3062559.81 | G27: 3175454.43 | H27: 3285576.881 | I27: 3367231.331 | K27: 7646636.721 | L27: 4927381.702 | M27: 3247959.041 | N27: 3356702.887 | O27: 3480440.453 | P27: 3601139.597 | Q27: 3690636.536 | S27: N/A | T27: N/A | U27: N/A | V27: N/A | W27: N/A | X27: N/A | Y27: N/A
A28: DRAB0203 | B28: Straight line depreciation | C28: -3111326.531 | D28: -3304199.527 | E28: -3506740.894 | F28: -3632904.813 | G28: -3770036.22 | H28: -3907876.271 | I28: -4030105.083 | K28: -3410153.4 | L28: -3621550.852 | M28: -3843545.272 | N28: -3981826.585 | O28: -4132128.757 | P28: -4283207.634 | Q28: -4417175.893 | S28: N/A | T28: N/A | U28: N/A | V28: N/A | W28: N/A | X28: N/A | Y28: N/A
A29: DRAB0205 | B29: Actual additions (recognised in RAB) | C29: 9103439.397 | D29: 7646514.541 | E29: 7031955.944 | F29: 7639576.908 | G29: 7678240.053 | H29: 6811833.866 | I29: 6896551.039 | K29: 9977777.804 | L29: 8380922.83 | M29: 7707339.049 | N29: 8373318.873 | O29: 8415695.413 | P29: 7466075.38 | Q29: 7558929.201 | S29: N/A | T29: N/A | U29: N/A | V29: N/A | W29: N/A | X29: N/A | Y29: N/A
A30: DRAB0206 | B30: Disposals | C30: -29131.90353 | D30: -28754.23997 | E30: -27815.01046 | F30: -27046.71692 | G30: -26299.61385 | H30: -25573.11773 | I30: -24866.66111 | K30: -31929.87264 | L30: -31515.93643 | M30: -30486.49877 | N30: -29644.4146 | O30: -28825.55613 | P30: -28029.28381 | Q30: -27254.97567 | S30: N/A | T30: N/A | U30: N/A | V30: N/A | W30: N/A | X30: N/A | Y30: N/A
A31: DRAB0207 | B31: Closing value | C31: =SUM(C26+C27+C28+C29+C30) -> 86341271.48 | D31: 95150434.54 | E31: 101611179.6 | F31: 108653364.8 | G31: 115710723.4 | H31: 121874684.8 | I31: 128083495.4 | K31: =SUM(K26+K27+K28+K29+K30) -> 109765290.3 | L31: 119420528 | M31: 126501794.3 | N31: 134220345.1 | O31: 141955526.6 | P31: 148711504.7 | Q31: 155516639.6 | S31: =SUM(S26+S27+S28+S29+S30) -> 
B32: For underground network assets less than 33kV:
A33: DRAB0301 | B33: Opening value | C33: 152048985.5 | D33: =C38 -> 178852800.1 | E33: 197100660.6 | F33: 210483858.8 | G33: 225071489 | H33: 239690550.5 | I33: 252458972 | K33: 197996619.3 | L33: =K38 -> 227374802.1 | M33: 247375275.6 | N33: 262043860.9 | O33: 278032557.8 | P33: 294055704.7 | Q33: 308050467.3 | S33: N/A | T33: N/A | U33: N/A | V33: N/A | W33: N/A | X33: N/A | Y33: N/A
A34: DRAB0302 | B34: Inflation addition | C34: 14451716.69 | D34: 9312476.448 | E34: 6138461.337 | F34: 6343981.137 | G34: 6577838.231 | H34: 6805952.879 | I34: 6975097.099 | K34: 15839729.55 | L34: 10206891.79 | M34: 6728028.892 | N34: 6953287.809 | O34: 7209605.671 | P34: 7459629.555 | Q34: 7645019.205 | S34: N/A | T34: N/A | U34: N/A | V34: N/A | W34: N/A | X34: N/A | Y34: N/A
A35: DRAB0303 | B35: Straight line depreciation | C35: -6444999.624 | D35: -6844529.011 | E35: -7264086.078 | F35: -7525430.042 | G35: -7809492.759 | H35: -8095023.406 | I35: -8348215.94 | K35: -7064008.601 | L35: -7501910.726 | M35: -7961764.085 | N35: -8248208.789 | O35: -8559554.265 | P35: -8872508.658 | Q35: -9150019.029 | S35: N/A | T35: N/A | U35: N/A | V35: N/A | W35: N/A | X35: N/A | Y35: N/A
A36: DRAB0305 | B36: Actual additions (recognised in RAB) | C36: 18857443.25 | D36: 15839476.46 | E36: 14566440.7 | F36: 15825105.4 | G36: 15905194.7 | H36: 14110465.83 | I36: 14285954.37 | K36: 20668603.42 | L36: 17360776.49 | M36: 15965472.21 | N36: 17345025.17 | O36: 17432806.63 | P36: 15465703.3 | Q36: 15658046.61 | S36: N/A | T36: N/A | U36: N/A | V36: N/A | W36: N/A | X36: N/A | Y36: N/A
A37: DRAB0306 | B37: Disposals | C37: -60345.67745 | D37: -59563.36113 | E37: -57617.78139 | F37: -56026.2893 | G37: -54478.69249 | H37: -52973.78224 | I37: -51510.38307 | K37: -66141.56857 | L37: -65284.1148 | M37: -63151.67216 | N37: -61407.32546 | O37: -59711.08995 | P37: -58061.64084 | Q37: -56457.68972 | S37: N/A | T37: N/A | U37: N/A | V37: N/A | W37: N/A | X37: N/A | Y37: N/A
A38: DRAB0307 | B38: Closing value | C38: =SUM(C33+C34+C35+C36+C37) -> 178852800.1 | D38: 197100660.6 | E38: 210483858.8 | F38: 225071489 | G38: 239690550.5 | H38: 252458972 | I38: 265320297.2 | K38: =SUM(K33+K34+K35+K36+K37) -> 227374802.1 | L38: 247375275.6 | M38: 262043860.9 | N38: 278032557.8 | O38: 294055704.7 | P38: 308050467.3 | Q38: 322147056.4 | S38: =SUM(S33+S34+S35+S36+S37) -> 
B39: For distribution substations and transformers:
A40: DRAB0401 | B40: Opening value | C40: 123230572.6 | D40: =C45 -> 135677674.3 | E40: 142006530.5 | F40: 148937216.5 | G40: 156069493.9 | H40: 163360287.8 | I40: 170793309.9 | K40: 161395449.5 | L40: =K45 -> 175038031.2 | M40: 181974741.3 | N40: 189571084 | O40: 197388379.9 | P40: 205379416.9 | Q40: 213526342.4 | S40: N/A | T40: N/A | U40: N/A | V40: N/A | W40: N/A | X40: N/A | Y40: N/A
A41: DRAB0402 | B41: Inflation addition | C41: 11780207.76 | D41: 7168945.405 | E41: 4506553.636 | F41: 4575321.792 | G41: 4647857.9 | H41: 4722833.112 | I41: 4799716.165 | K41: 12911635.96 | L41: 7857485.64 | M41: 4939384.872 | N41: 5014757.855 | O41: 5094260.682 | P41: 5176436.876 | Q41: 5260704.15 | S41: N/A | T41: N/A | U41: N/A | V41: N/A | W41: N/A | X41: N/A | Y41: N/A
A42: DRAB0403 | B42: Straight line depreciation | C42: -6288087.012 | D42: -6731333.713 | E42: -6792683.387 | F42: -6983057.247 | G42: -7180180.829 | H42: -7383229.457 | I42: -7591940.818 | K42: -6892025.342 | L42: -7377843.602 | M42: -7445085.597 | N42: -7653743.884 | O42: -7869800.169 | P42: -8092350.571 | Q42: -8321107.582 | S42: N/A | T42: N/A | U42: N/A | V42: N/A | W42: N/A | X42: N/A | Y42: N/A
A43: DRAB0405 | B43: Actual additions (recognised in RAB) | C43: 6971558.433 | D43: 5907607.007 | E43: 9232643.79 | F43: 9555403.794 | G43: 9838082.569 | H43: 10107970.72 | I43: 10405146.15 | K43: 7641140.669 | L43: 6475002.195 | M43: 10119391.61 | N43: 10473151.05 | O43: 10782979.66 | P43: 11078789.18 | Q43: 11404506.78 | S43: N/A | T43: N/A | U43: N/A | V43: N/A | W43: N/A | X43: N/A | Y43: N/A
A44: DRAB0406 | B44: Disposals | C44: -16577.4471 | D44: -16362.53846 | E44: -15828.07193 | F44: -15390.87614 | G44: -14965.73874 | H44: -14552.32769 | I44: -14150.32007 | K44: -18169.62541 | L44: -17934.0759 | M44: -17348.27661 | N44: -16869.09042 | O44: -16403.12077 | P44: -15950.00372 | Q44: -15509.38534 | S44: N/A | T44: N/A | U44: N/A | V44: N/A | W44: N/A | X44: N/A | Y44: N/A
A45: DRAB0407 | B45: Closing value | C45: =SUM(C40+C41+C42+C43+C44) -> 135677674.3 | D45: 142006530.5 | E45: 148937216.5 | F45: 156069493.9 | G45: 163360287.8 | H45: 170793309.9 | I45: 178392081 | K45: =SUM(K40+K41+K42+K43+K44) -> 175038031.2 | L45: 181974741.3 | M45: 189571084 | N45: 197388379.9 | O45: 205379416.9 | P45: 213526342.4 | Q45: 221854936.4 | S45: =SUM(S40+S41+S42+S43+S44) -> 
B46: For overhead network assets 33kV and above:
A47: DRAB0501 | B47: Opening value | C47: 121082277.7 | D47: =C52 -> 127912829 | E47: 135017824.2 | F47: 135665872.8 | G47: 138638318.5 | H47: 138697749 | I47: 137965826.5 | K47: 121082277.7 | L47: =K52 -> 127912829 | M47: 135017824.2 | N47: 135665872.8 | O47: 138638318.5 | P47: 138697749 | Q47: 137965826.5 | S47: N/A | T47: N/A | U47: N/A | V47: N/A | W47: N/A | X47: N/A | Y47: N/A
A48: DRAB0502 | B48: Inflation addition | C48: 9686582.213 | D48: 5742027.663 | E48: 3667315.517 | F48: 3581664.494 | G48: 3564382.082 | H48: 3464953.08 | I48: 3345895.473 | K48: 9686582.213 | L48: 5742027.663 | M48: 3667315.517 | N48: 3581664.494 | O48: 3564382.082 | P48: 3464953.08 | Q48: 3345895.473 | S48: N/A | T48: N/A | U48: N/A | V48: N/A | W48: N/A | X48: N/A | Y48: N/A
A49: DRAB0503 | B49: Straight line depreciation | C49: -4957889.157 | D49: -5155321.663 | E49: -5384025.133 | F49: -5425863.41 | G49: -5511081.47 | H49: -5546574.746 | I49: -5570454.18 | K49: -4957889.157 | L49: -5155321.663 | M49: -5384025.133 | N49: -5425863.41 | O49: -5511081.47 | P49: -5546574.746 | Q49: -5570454.18 | S49: N/A | T49: N/A | U49: N/A | V49: N/A | W49: N/A | X49: N/A | Y49: N/A
A50: DRAB0505 | B50: Actual additions (recognised in RAB) | C50: 2110239.404 | D50: 6526561.635 | E50: 2372760.531 | F50: 4824425.792 | G50: 2013696.154 | H50: 1357056.427 | I50: 1366129.087 | K50: 2110239.404 | L50: 6526561.635 | M50: 2372760.531 | N50: 4824425.792 | O50: 2013696.154 | P50: 1357056.427 | Q50: 1366129.087 | S50: N/A | T50: N/A | U50: N/A | V50: N/A | W50: N/A | X50: N/A | Y50: N/A
A51: DRAB0506 | B51: Disposals | C51: -8381.114123 | D51: -8272.462059 | E51: -8002.250065 | F51: -7781.215562 | G51: -7566.277458 | H51: -7357.267881 | I51: -7154.023573 | K51: -8381.114123 | L51: -8272.462059 | M51: -8002.250065 | N51: -7781.215562 | O51: -7566.277458 | P51: -7357.267881 | Q51: -7154.023573 | S51: N/A | T51: N/A | U51: N/A | V51: N/A | W51: N/A | X51: N/A | Y51: N/A
A52: DRAB0507 | B52: Closing value | C52: =SUM(C47+C48+C49+C50+C51) -> 127912829 | D52: 135017824.2 | E52: 135665872.8 | F52: 138638318.5 | G52: 138697749 | H52: 137965826.5 | I52: 137100242.8 | K52: =SUM(K47+K48+K49+K50+K51) -> 127912829 | L52: 135017824.2 | M52: 135665872.8 | N52: 138638318.5 | O52: 138697749 | P52: 137965826.5 | Q52: 137100242.8 | S52: =SUM(S47+S48+S49+S50+S51) -> 
B53: For underground network assets 33kV and above:
A54: DRAB0601 | B54: Opening value | C54: 60587870.12 | D54: =C59 -> 64005782.02 | E54: 67561021.75 | F54: 67885296.2 | G54: 69372666.23 | H54: 69402404.41 | I54: 69036160.68 | K54: 60587870.12 | L54: =K59 -> 64005782.02 | M54: 67561021.75 | N54: 67885296.2 | O54: 69372666.23 | P54: 69402404.41 | Q54: 69036160.68 | S54: N/A | T54: N/A | U54: N/A | V54: N/A | W54: N/A | X54: N/A | Y54: N/A
A55: DRAB0602 | B55: Inflation addition | C55: 4847029.609 | D55: 2873229.947 | E55: 1835073.146 | F55: 1792214.578 | G55: 1783566.702 | H55: 1733813.827 | I55: 1674239.073 | K55: 4847029.609 | L55: 2873229.947 | M55: 1835073.146 | N55: 1792214.578 | O55: 1783566.702 | P55: 1733813.827 | Q55: 1674239.073 | S55: N/A | T55: N/A | U55: N/A | V55: N/A | W55: N/A | X55: N/A | Y55: N/A
A56: DRAB0603 | B56: Straight line depreciation | C56: -2480858.059 | D56: -2579650.51 | E56: -2694090.512 | F56: -2715025.799 | G56: -2757667.718 | H56: -2775428.055 | I56: -2787376.988 | K56: -2480858.059 | L56: -2579650.51 | M56: -2694090.512 | N56: -2715025.799 | O56: -2757667.718 | P56: -2775428.055 | Q56: -2787376.988 | S56: N/A | T56: N/A | U56: N/A | V56: N/A | W56: N/A | X56: N/A | Y56: N/A
A57: DRAB0605 | B57: Actual additions (recognised in RAB) | C57: 1055934.141 | D57: 3265799.722 | E57: 1187296.024 | F57: 2414074.867 | G57: 1007625.256 | H57: 679051.9647 | I57: 683591.7964 | K57: 1055934.141 | L57: 3265799.722 | M57: 1187296.024 | N57: 2414074.867 | O57: 1007625.256 | P57: 679051.9647 | Q57: 683591.7964 | S57: N/A | T57: N/A | U57: N/A | V57: N/A | W57: N/A | X57: N/A | Y57: N/A
A58: DRAB0606 | B58: Disposals | C58: -4193.791724 | D58: -4139.423758 | E58: -4004.213473 | F58: -3893.610914 | G58: -3786.058908 | H58: -3681.473453 | I58: -3579.772857 | K58: -4193.791724 | L58: -4139.423758 | M58: -4004.213473 | N58: -3893.610914 | O58: -3786.058908 | P58: -3681.473453 | Q58: -3579.772857 | S58: N/A | T58: N/A | U58: N/A | V58: N/A | W58: N/A | X58: N/A | Y58: N/A
A59: DRAB0607 | B59: Closing value | C59: =SUM(C54+C55+C56+C57+C58) -> 64005782.02 | D59: 67561021.75 | E59: 67885296.2 | F59: 69372666.23 | G59: 69402404.41 | H59: 69036160.68 | I59: 68603034.79 | K59: =SUM(K54+K55+K56+K57+K58) -> 64005782.02 | L59: 67561021.75 | M59: 67885296.2 | N59: 69372666.23 | O59: 69402404.41 | P59: 69036160.68 | Q59: 68603034.79 | S59: =SUM(S54+S55+S56+S57+S58) -> 
B60: Zone substations and transformers
A61: DRAB0701 | B61: Opening value | C61: 347994355 | D61: =C66 -> 375535788.9 | E61: 397925781 | F61: 419198661.8 | G61: 428844641.9 | H61: 424683103 | I61: 416604045.5 | K61: 347994355 | L61: =K66 -> 375535788.9 | M61: 397925781 | N61: 419198661.8 | O61: 428844641.9 | P61: 424683103 | Q61: 416604045.5 | S61: N/A | T61: N/A | U61: N/A | V61: N/A | W61: N/A | X61: N/A | Y61: N/A
A62: DRAB0702 | B62: Inflation addition | C62: 27839548.4 | D62: 16857862.54 | E62: 10810192.85 | F62: 11106999.97 | G62: 11065553.54 | H62: 10633589.06 | I62: 10102745.84 | K62: 27839548.4 | L62: 16857862.54 | M62: 10810192.85 | N62: 11106999.97 | O62: 11065553.54 | P62: 10633589.06 | Q62: 10102745.84 | S62: N/A | T62: N/A | U62: N/A | V62: N/A | W62: N/A | X62: N/A | Y62: N/A
A63: DRAB0703 | B63: Straight line depreciation | C63: -22348285.54 | D63: -23427732.58 | E63: -26611222.55 | F63: -27851243.1 | G63: -28595255 | H63: -29096027.89 | I63: -29391030.71 | K63: -22348285.54 | L63: -23427732.58 | M63: -26611222.55 | N63: -27851243.1 | O63: -28595255 | P63: -29096027.89 | Q63: -29391030.71 | S63: N/A | T63: N/A | U63: N/A | V63: N/A | W63: N/A | X63: N/A | Y63: N/A
A64: DRAB0705 | B64: Actual additions (recognised in RAB) | C64: 22094667.67 | D64: 29003781.93 | E64: 37116395.62 | F64: 26431534.85 | G64: 13408333.09 | H64: 10422442.15 | I64: 8936948.377 | K64: 22094667.67 | L64: 29003781.93 | M64: 37116395.62 | N64: 26431534.85 | O64: 13408333.09 | P64: 10422442.15 | Q64: 8936948.377 | S64: N/A | T64: N/A | U64: N/A | V64: N/A | W64: N/A | X64: N/A | Y64: N/A
A65: DRAB0706 | B65: Disposals | C65: -44496.59803 | D65: -43919.74785 | E65: -42485.15164 | F65: -41311.64615 | G65: -40170.50737 | H65: -39060.84402 | I65: -37981.78936 | K65: -44496.59803 | L65: -43919.74785 | M65: -42485.15164 | N65: -41311.64615 | O65: -40170.50737 | P65: -39060.84402 | Q65: -37981.78936 | S65: N/A | T65: N/A | U65: N/A | V65: N/A | W65: N/A | X65: N/A | Y65: N/A
A66: DRAB0707 | B66: Closing value | C66: =SUM(C61+C62+C63+C64+C65) -> 375535788.9 | D66: 397925781 | E66: 419198661.8 | F66: 428844641.9 | G66: 424683103 | H66: 416604045.5 | I66: 406214727.2 | K66: =SUM(K61+K62+K63+K64+K65) -> 375535788.9 | L66: 397925781 | M66: 419198661.8 | N66: 428844641.9 | O66: 424683103 | P66: 416604045.5 | Q66: 406214727.2 | S66: =SUM(S61+S62+S63+S64+S65) -> 
B67: For easements:
A68: DRAB0801 | B68: Opening value | C68: 50996073.92 | D68: =C72 -> 55075759.83 | E68: 57723748.47 | F68: 59291128.29 | G68: 60858508.11 | H68: 62425887.94 | I68: 63993267.76 | K68: 50996073.92 | L68: =K72 -> 55075759.83 | M68: 57723748.47 | N68: 59291128.29 | O68: 60858508.11 | P68: 62425887.94 | Q68: 63993267.76 | S68: N/A | T68: N/A | U68: N/A | V68: N/A | W68: N/A | X68: N/A | Y68: N/A
A69: DRAB0802 | B69: Inflation addition | C69: 4079685.914 | D69: 2472359.802 | E69: 1567379.823 | F69: 1567379.823 | G69: 1567379.823 | H69: 1567379.823 | I69: 1567379.823 | K69: 4079685.914 | L69: 2472359.802 | M69: 1567379.823 | N69: 1567379.823 | O69: 1567379.823 | P69: 1567379.823 | Q69: 1567379.823 | S69: N/A | T69: N/A | U69: N/A | V69: N/A | W69: N/A | X69: N/A | Y69: N/A
A70: DRAB0803 | B70: Actual additions (recognised in RAB) | C70: 0 | D70: 0 | E70: 0 | F70: 0 | G70: 0 | H70: 0 | I70: 0 | K70: 0 | L70: 0 | M70: 0 | N70: 0 | O70: 0 | P70: 0 | Q70: 0 | S70: N/A | T70: N/A | U70: N/A | V70: N/A | W70: N/A | X70: N/A | Y70: N/A
A71: DRAB0804 | B71: Disposals | C71: 0 | D71: 175628.8312 | E71: 0 | F71: 0 | G71: 0 | H71: 0 | I71: 0 | K71: 0 | L71: 175628.8312 | M71: 0 | N71: 0 | O71: 0 | P71: 0 | Q71: 0 | S71: N/A | T71: N/A | U71: N/A | V71: N/A | W71: N/A | X71: N/A | Y71: N/A
A72: DRAB0805 | B72: Closing value | C72: =SUM(C68+C69+C70+C71) -> 55075759.83 | D72: 57723748.47 | E72: 59291128.29 | F72: 60858508.11 | G72: 62425887.94 | H72: 63993267.76 | I72: 65560647.58 | K72: =SUM(K68+K69+K70+K71) -> 55075759.83 | L72: 57723748.47 | M72: 59291128.29 | N72: 60858508.11 | O72: 62425887.94 | P72: 63993267.76 | Q72: 65560647.58 | S72: =SUM(S68+S69+S70+S71) -> 
B73: For meters:
A74: DRAB0901 | B74: Opening value | C74: 0 | D74: =C79 -> 0 | E74: 0 | F74: 0 | G74: 0 | H74: 0 | I74: 0 | K74: 0 | L74: =K79 -> 0 | M74: 0 | N74: 0 | O74: 0 | P74: 0 | Q74: 0 | S74: 18459324.48 | T74: =S79 -> 29400905.84 | U74: 45359729.92 | V74: 48491131.64 | W74: 51338251.4 | X74: 56589382.01 | Y74: 62713207.08
A75: DRAB0902 | B75: Inflation addition | C75: 0 | D75: 0 | E75: 0 | F75: 0 | G75: 0 | H75: 0 | I75: 0 | K75: 0 | L75: 0 | M75: 0 | N75: 0 | O75: 0 | P75: 0 | Q75: 0 | S75: 1476745.958 | T75: 1319811.437 | U75: 1249331.126 | V75: 1302721.992 | W75: 1346533.703 | X75: 1457299.904 | Y75: 1589680.602
A76: DRAB0903 | B76: Straight line depreciation | C76: 0 | D76: 0 | E76: 0 | F76: 0 | G76: 0 | H76: 0 | I76: 0 | K76: 0 | L76: 0 | M76: 0 | N76: 0 | O76: 0 | P76: 0 | Q76: 0 | S76: -1454018.359 | T76: -2283683.673 | U76: -3282000.772 | V76: -3611527.895 | W76: -3909425.408 | X76: -4466144.857 | Y76: -5006720.853
A77: DRAB0905 | B77: Actual additions (recognised in RAB) | C77: 0 | D77: 0 | E77: 0 | F77: 0 | G77: 0 | H77: 0 | I77: 0 | K77: 0 | L77: 0 | M77: 0 | N77: 0 | O77: 0 | P77: 0 | Q77: 0 | S77: 10918853.76 | T77: 16922696.31 | U77: 5164071.367 | V77: 5155925.661 | W77: 7814022.31 | X77: 9132670.023 | Y77: 9943505.026
A78: DRAB0906 | B78: Disposals | C78: 0 | D78: 0 | E78: 0 | F78: 0 | G78: 0 | H78: 0 | I78: 0 | K78: 0 | L78: 0 | M78: 0 | N78: 0 | O78: 0 | P78: 0 | Q78: 0 | S78: 0 | T78: 0 | U78: 0 | V78: 0 | W78: 0 | X78: 0 | Y78: 0
A79: DRAB0907 | B79: Closing value | C79: =SUM(C74+C75+C76+C77+C78) -> 0 | D79: 0 | E79: 0 | F79: 0 | G79: 0 | H79: 0 | I79: 0 | K79: =SUM(K74+K75+K76+K77+K78) -> 0 | L79: 0 | M79: 0 | N79: 0 | O79: 0 | P79: 0 | Q79: 0 | S79: =SUM(S74+S75+S76+S77+S78) -> 29400905.84 | T79: 45359729.92 | U79: 48491131.64 | V79: 51338251.4 | W79: 56589382.01 | X79: 62713207.08 | Y79: 69239671.85
B80: For “other” asset items with long lives:
A81: DRAB1001 | B81: Opening value | C81: 36329288.34 | D81: =C86 -> 60682789.05 | E81: 88195864.74 | F81: 104389808.2 | G81: 126269788.8 | H81: 144565343.7 | I81: 206476292.4 | K81: 36329288.34 | L81: =K86 -> 60682789.05 | M81: 88195864.74 | N81: 104389808.2 | O81: 126269788.8 | P81: 144565343.7 | Q81: 206476292.4 | S81: 1172830.242 | T81: =S86 -> 1868013.727 | U81: 2881972.365 | V81: 3080928.867 | W81: 3261823.253 | X81: 3595458.689 | Y81: 3984541.575
A82: DRAB1002 | B82: Inflation addition | C82: 2906343.067 | D82: 2724060.253 | E82: 2424677.189 | F82: 2815285.835 | G82: 3356116.004 | H82: 3779920.286 | I82: 5428990.169 | K82: 2906343.067 | L82: 2724060.253 | M82: 2424677.189 | N82: 2815285.835 | O82: 3356116.004 | P82: 3779920.286 | Q82: 5428990.169 | S82: 93826.41937 | T82: 83855.43951 | U82: 79377.40781 | V82: 82769.64581 | W82: 85553.26339 | X82: 92590.89632 | Y82: 101001.8263
A83: DRAB1003 | B83: Straight line depreciation | C83: -4965803.805 | D83: -5965735.127 | E83: -10728265.57 | F83: -9102722.513 | G83: -11253711.86 | H83: -13167010.3 | I83: -15958701.52 | K83: -4965803.805 | L83: -5965735.127 | M83: -10728265.57 | N83: -9102722.513 | O83: -11253711.86 | P83: -13167010.3 | Q83: -15958701.52 | S83: -92382.40033 | T83: -145095.9529 | U83: -208524.9525 | V83: -229461.7628 | W83: -248388.9566 | X83: -283760.6414 | Y83: -318106.6369
A84: DRAB1005 | B84: Actual additions (recognised in RAB) | C84: 26412961.44 | D84: 30754750.57 | E84: 24497531.84 | F84: 28167417.26 | G84: 26193150.78 | H84: 71298038.74 | I84: 98043719.17 | K84: 26412961.44 | L84: 30754750.57 | M84: 24497531.84 | N84: 28167417.26 | O84: 26193150.78 | P84: 71298038.74 | Q84: 98043719.17 | S84: 693739.4658 | T84: 1075199.151 | U84: 328104.0472 | V84: 327586.5023 | W84: 496471.1297 | X84: 580252.6309 | Y84: 631769.7822
A85: DRAB1006 | B85: Disposals | C85: 0 | D85: 0 | E85: 0 | F85: 0 | G85: 0 | H85: 0 | I85: 0 | K85: 0 | L85: 0 | M85: 0 | N85: 0 | O85: 0 | P85: 0 | Q85: 0 | S85: 0 | T85: 0 | U85: 0 | V85: 0 | W85: 0 | X85: 0 | Y85: 0
A86: DRAB1007 | B86: Closing value | C86: =SUM(C81+C82+C83+C84+C85) -> 60682789.05 | D86: 88195864.74 | E86: 104389808.2 | F86: 126269788.8 | G86: 144565343.7 | H86: 206476292.4 | I86: 293990300.3 | K86: =SUM(K81+K82+K83+K84+K85) -> 60682789.05 | L86: 88195864.74 | M86: 104389808.2 | N86: 126269788.8 | O86: 144565343.7 | P86: 206476292.4 | Q86: 293990300.3 | S86: =SUM(S81+S82+S83+S84+S85) -> 1868013.727 | T86: 2881972.365 | U86: 3080928.867 | V86: 3261823.253 | W86: 3595458.689 | X86: 3984541.575 | Y86: 4399206.547
B87: For “other” asset items with short lives:
A88: DRAB1101 | B88: Opening value | C88: 36767702.08 | D88: =C93 -> 37125110.1 | E88: 39660073.42 | F88: 40186976.69 | G88: 42515474.63 | H88: 52971509.24 | I88: 53182630.35 | K88: 36767702.08 | L88: =K93 -> 37125110.1 | M88: 39660073.42 | N88: 40186976.69 | O88: 42515474.63 | P88: 52971509.24 | Q88: 53182630.35 | S88: 1282563.166 | T88: =S93 -> 2042789.752 | U88: 3151616.89 | V88: 3369188.259 | W88: 3567007.574 | X88: 3931858.775 | Y88: 4357345.226
A89: DRAB1102 | B89: Inflation addition | C89: 2941416.167 | D89: 1666552.221 | E89: 1077806.006 | F89: 1062177.913 | G89: 1098101.072 | H89: 1363568.359 | I89: 1330875.559 | K89: 2941416.167 | L89: 1666552.221 | M89: 1077806.006 | N89: 1062177.913 | O89: 1098101.072 | P89: 1363568.359 | Q89: 1330875.559 | S89: 102605.0533 | T89: 91701.16364 | U89: 86804.15613 | V89: 90513.78038 | W89: 93557.84016 | X89: 101253.9316 | Y89: 110451.8092
A90: DRAB1103 | B90: Straight line depreciation | C90: -8297346.3 | D90: -9238667.207 | E90: -5286762.1 | F90: -6230073.333 | G90: -5285539.24 | H90: -7435642.051 | I90: -7680294.502 | K90: -8297346.3 | L90: -9238667.207 | M90: -5286762.1 | N90: -6230073.333 | O90: -5285539.24 | P90: -7435642.051 | Q90: -7680294.502 | S90: -101025.9282 | T90: -158671.4923 | U90: -228035.0673 | V90: -250930.7778 | W90: -271628.8471 | X90: -310309.995 | Y90: -347869.4876
A91: DRAB1105 | B91: Actual additions (recognised in RAB) | C91: 5713338.156 | D91: 10107078.3 | E91: 4735859.367 | F91: 7496393.353 | G91: 14643472.79 | H91: 6283194.795 | I91: 6479410.916 | K91: 5713338.156 | L91: 10107078.3 | M91: 4735859.367 | N91: 7496393.353 | O91: 14643472.79 | P91: 6283194.795 | Q91: 6479410.916 | S91: 758647.4611 | T91: 1175797.467 | U91: 358802.2805 | V91: 358236.3128 | W91: 542922.2073 | X91: 634542.5147 | Y91: 690879.7393
A92: DRAB1106 | B92: Disposals | C92: 0 | D92: 0 | E92: 0 | F92: 0 | G92: 0 | H92: 0 | I92: 0 | K92: 0 | L92: 0 | M92: 0 | N92: 0 | O92: 0 | P92: 0 | Q92: 0 | S92: 0 | T92: 0 | U92: 0 | V92: 0 | W92: 0 | X92: 0 | Y92: 0
A93: DRAB1107 | B93: Closing value | C93: =SUM(C88+C89+C90+C91+C92) -> 37125110.1 | D93: 39660073.42 | E93: 40186976.69 | F93: 42515474.63 | G93: 52971509.24 | H93: 53182630.35 | I93: 53312622.32 | K93: =SUM(K88+K89+K90+K91+K92) -> 37125110.1 | L93: 39660073.42 | M93: 40186976.69 | N93: 42515474.63 | O93: 52971509.24 | P93: 53182630.35 | Q93: 53312622.32 | S93: =SUM(S88+S89+S90+S91+S92) -> 2042789.752 | T93: 3151616.89 | U93: 3369188.259 | V93: 3567007.574 | W93: 3931858.775 | X93: 4357345.226 | Y93: 4810807.287
B97: 3.3.3 - TOTAL DISAGGREGATED RAB ASSET VALUES
C98: Network services | K98: Standard control services | S98: Alternative control services
C99: =CONCATENATE(" VALUE Forecast ($0's, real ", dms_DollarReal, ")") -> VALUE Forecast ($0's, real June 2024) | K99: =CONCATENATE(" VALUE Forecast ($0's, real ", dms_DollarReal, ")") -> VALUE Forecast ($0's, real June 2024) | S99: =CONCATENATE(" VALUE Forecast ($0's, real ", dms_DollarReal, ")") -> VALUE Forecast ($0's, real June 2024)
C100: =CRCP_y4 -> 2022-23 | D100: =CRCP_y5 -> 2023-24 | E100: =FRCP_y1 -> 2024-25 | F100: =FRCP_y2 -> 2025-26 | G100: =FRCP_y3 -> 2026-27 | H100: =FRCP_y4 -> 2027-28 | I100: =FRCP_y5 -> 2028-29 | K100: =CRCP_y4 -> 2022-23 | L100: =CRCP_y5 -> 2023-24 | M100: =FRCP_y1 -> 2024-25 | N100: =FRCP_y2 -> 2025-26 | O100: =FRCP_y3 -> 2026-27 | P100: =FRCP_y4 -> 2027-28 | Q100: =FRCP_y5 -> 2028-29 | S100: =CRCP_y4 -> 2022-23 | T100: =CRCP_y5 -> 2023-24 | U100: =FRCP_y1 -> 2024-25 | V100: =FRCP_y2 -> 2025-26 | W100: =FRCP_y3 -> 2026-27 | X100: =FRCP_y4 -> 2027-28 | Y100: =FRCP_y5 -> 2028-29
A101: DRAB1201 | B101: Overhead network assets less than 33kV (wires and poles) | C101: 79871494.56 | D101: 86869979.31 | E101: 91915642.71 | F101: 95967991.17 | G101: 100195441.6 | H101: 103863639.9 | I101: 107016176.2 | K101: 102674124.6 | L101: 109665527.4 | M101: 114785820.4 | N101: 118829026.1 | O101: 123075451.8 | P101: 126719892 | Q101: 129809811.9 | S101: 0 | T101: 0 | U101: 0 | V101: 0 | W101: 0 | X101: 0 | Y101: 0
A102: DRAB1202 | B102: Underground network assets less than 33kV (cables) | C102: 165450892.8 | D102: 179947999.1 | E102: 190399907.1 | F102: 198794199.4 | G102: 207551209 | H102: 215149748.3 | I102: 221680112.5 | K102: 212685710.7 | L102: 227168147.1 | M102: 237774647.6 | N102: 246150000.8 | O102: 254946317.1 | P102: 262495642.3 | Q102: 268896298.9 | S102: 0 | T102: 0 | U102: 0 | V102: 0 | W102: 0 | X102: 0 | Y102: 0
A103: DRAB1203 | B103: Distribution substations including transformers | C103: 129454123.5 | D103: 132751509.6 | E103: 135525596.6 | F103: 138614162.1 | G103: 141792305.3 | H103: 145028414.4 | I103: 148324692.3 | K103: 168216740.4 | L103: 170648900.6 | M103: 172976042.1 | N103: 175668103.5 | O103: 178478009.4 | P103: 181370553.8 | Q103: 184347609.3 | S103: 0 | T103: 0 | U103: 0 | V103: 0 | W103: 0 | X103: 0 | Y103: 0
A104: DRAB1204 | B104: Overhead network assets 33kV and above (wires and towers / poles etc) | C104: 124497553.3 | D104: 125723298.9 | E104: 125932505.3 | F104: 124161088 | G104: 122112644 | H104: 118311444.9 | I104: 114166796.3 | K104: 124497553.3 | L104: 125723298.9 | M104: 125932505.3 | N104: 124161088 | O104: 122112644 | P104: 118311444.9 | Q104: 114166796.3 | S104: 0 | T104: 0 | U104: 0 | V104: 0 | W104: 0 | X104: 0 | Y104: 0
A105: DRAB1205 | B105: Underground network assets 33kV and above(cables, ducts etc) | C105: 62296826.07 | D105: 62910171.94 | E105: 63014855.88 | F105: 62128463.54 | G105: 61103450.95 | H105: 59201384.34 | I105: 57127460.46 | K105: 62296826.07 | L105: 62910171.94 | M105: 63014855.88 | N105: 62128463.54 | O105: 61103450.95 | P105: 59201384.34 | Q105: 57127460.46 | S105: 0 | T105: 0 | U105: 0 | V105: 0 | W105: 0 | X105: 0 | Y105: 0
A106: DRAB1206 | B106: Zone substations and transformers | C106: 361765071.9 | D106: 369872922.4 | E106: 380894166 | F106: 385246596.5 | G106: 376923263.5 | H106: 360169376.3 | I106: 340832442.5 | K106: 361765071.9 | L106: 369872922.4 | M106: 380894166 | N106: 385246596.5 | O106: 376923263.5 | P106: 360169376.3 | Q106: 340832442.5 | S106: 0 | T106: 0 | U106: 0 | V106: 0 | W106: 0 | X106: 0 | Y106: 0
A107: DRAB1207 | B107: Easements | C107: 53035916.88 | D107: 53927394.35 | E107: 54467698.75 | F107: 54467698.75 | G107: 54467698.75 | H107: 54467698.75 | I107: 54467698.75 | K107: 53035916.88 | L107: 53927394.35 | M107: 54467698.75 | N107: 54467698.75 | O107: 54467698.75 | P107: 54467698.75 | Q107: 54467698.75 | S107: 0 | T107: 0 | U107: 0 | V107: 0 | W107: 0 | X107: 0 | Y107: 0
A108: DRAB1208 | B108: Meters | C108: 0 | D108: 0 | E108: 0 | F108: 0 | G108: 0 | H108: 0 | I108: 0 | K108: 0 | L108: 0 | M108: 0 | N108: 0 | O108: 0 | P108: 0 | Q108: 0 | S108: 23930115.16 | T108: 36060506.45 | U108: 44356288.22 | V108: 46042826.97 | W108: 48745418.44 | X108: 52975596.38 | Y108: 57711060.7
A109: DRAB1209 | B109: “Other” assets with long lives | C109: 48506038.7 | D109: 71715266.64 | E109: 91144099.03 | F109: 107365775.2 | G109: 124097427 | H109: 160420758.5 | I109: 229704246.6 | K109: 48506038.7 | L109: 71715266.64 | M109: 91144099.03 | N109: 107365775.2 | O109: 124097427 | P109: 160420758.5 | Q109: 229704246.6 | S109: 1520421.985 | T109: 2291137.606 | U109: 2818217.769 | V109: 2925373.567 | W109: 3097085.215 | X109: 3365853.479 | Y109: 3666725.582
A110: DRAB1210 | B110: “Other” assets with short lives | C110: 36946406.09 | D110: 36726039.54 | E110: 37179166.83 | F110: 37544689.52 | G110: 42838854.72 | H110: 46808864.23 | I110: 45648545.21 | K110: 36946406.09 | L110: 36726039.54 | M110: 37179166.83 | N110: 37544689.52 | O110: 42838854.72 | P110: 46808864.23 | Q110: 45648545.21 | S110: 1662676.459 | T110: 2505502.157 | U110: 3081897.255 | V110: 3199078.817 | W110: 3386856.234 | X110: 3680771.129 | Y110: 4009793.575
A111: DRAB13 | B111: Value of Capital Contributions or Contributed Assets (included in the above) | C111: 0 | D111: 0 | E111: 0 | F111: 0 | G111: 0 | H111: 0 | I111: 0 | K111: -6415341.618 | L111: -14039473.67 | M111: -4830604.724 | N111: -243726.991 | O111: -239129.5661 | P111: -234194.8305 | Q111: -229866.1408 | S111: 0 | T111: 0 | U111: 0 | V111: 0 | W111: 0 | X111: 0 | Y111: 0
B114: 3.3.4 - ASSET LIVES
C115: Network services | K115: Standard control services | S115: Alternative control services
C116: Forecast ( years ) | K116: Forecast ( years ) | S116: Forecast ( years )
C117: =CRCP_y4 -> 2022-23 | D117: =CRCP_y5 -> 2023-24 | E117: =FRCP_y1 -> 2024-25 | F117: =FRCP_y2 -> 2025-26 | G117: =FRCP_y3 -> 2026-27 | H117: =FRCP_y4 -> 2027-28 | I117: =FRCP_y5 -> 2028-29 | K117: =CRCP_y4 -> 2022-23 | L117: =CRCP_y5 -> 2023-24 | M117: =FRCP_y1 -> 2024-25 | N117: =FRCP_y2 -> 2025-26 | O117: =FRCP_y3 -> 2026-27 | P117: =FRCP_y4 -> 2027-28 | Q117: =FRCP_y5 -> 2028-29 | S117: =CRCP_y4 -> 2022-23 | T117: =CRCP_y5 -> 2023-24 | U117: =FRCP_y1 -> 2024-25 | V117: =FRCP_y2 -> 2025-26 | W117: =FRCP_y3 -> 2026-27 | X117: =FRCP_y4 -> 2027-28 | Y117: =FRCP_y5 -> 2028-29
B118: Estimated service life of new assets
A119: DRAB1401 | B119: Overhead network assets less than 33kV (wires and poles) | C119: 49.79272503 | D119: 49.79272503 | E119: 49.79272503 | F119: 49.79272503 | G119: 49.79272503 | H119: 49.79272503 | I119: 49.79272503 | K119: 49.79272503 | L119: 49.79272503 | M119: 49.79272503 | N119: 49.79272503 | O119: 49.79272503 | P119: 49.79272503 | Q119: 49.79272503 | S119: 0 | T119: 0 | U119: 0 | V119: 0 | W119: 0 | X119: 0 | Y119: 0
A120: DRAB1402 | B120: Underground network assets less than 33kV (cables) | C120: 52.3002848 | D120: 52.3002848 | E120: 52.3002848 | F120: 52.3002848 | G120: 52.3002848 | H120: 52.3002848 | I120: 52.3002848 | K120: 52.3002848 | L120: 52.3002848 | M120: 52.3002848 | N120: 52.3002848 | O120: 52.3002848 | P120: 52.3002848 | Q120: 52.3002848 | S120: 0 | T120: 0 | U120: 0 | V120: 0 | W120: 0 | X120: 0 | Y120: 0
A121: DRAB1403 | B121: Distribution substations including transformers | C121: 44.5553219 | D121: 44.5553219 | E121: 44.5553219 | F121: 44.5553219 | G121: 44.5553219 | H121: 44.5553219 | I121: 44.5553219 | K121: 44.5553219 | L121: 44.5553219 | M121: 44.5553219 | N121: 44.5553219 | O121: 44.5553219 | P121: 44.5553219 | Q121: 44.5553219 | S121: 0 | T121: 0 | U121: 0 | V121: 0 | W121: 0 | X121: 0 | Y121: 0
A122: DRAB1404 | B122: Overhead network assets 33kV and above (wires and towers / poles etc) | C122: 54.34392417 | D122: 54.34392417 | E122: 54.34392417 | F122: 54.34392417 | G122: 54.34392417 | H122: 54.34392417 | I122: 54.34392417 | K122: 54.34392417 | L122: 54.34392417 | M122: 54.34392417 | N122: 54.34392417 | O122: 54.34392417 | P122: 54.34392417 | Q122: 54.34392417 | S122: 0 | T122: 0 | U122: 0 | V122: 0 | W122: 0 | X122: 0 | Y122: 0
A123: DRAB1405 | B123: Underground network assets 33kV and above(cables, ducts etc) | C123: 49.61372593 | D123: 49.61372593 | E123: 49.61372593 | F123: 49.61372593 | G123: 49.61372593 | H123: 49.61372593 | I123: 49.61372593 | K123: 49.61372593 | L123: 49.61372593 | M123: 49.61372593 | N123: 49.61372593 | O123: 49.61372593 | P123: 49.61372593 | Q123: 49.61372593 | S123: 0 | T123: 0 | U123: 0 | V123: 0 | W123: 0 | X123: 0 | Y123: 0
A124: DRAB1406 | B124: Zone substations and transformers | C124: 45.61906132 | D124: 45.61906132 | E124: 45.61906132 | F124: 45.61906132 | G124: 45.61906132 | H124: 45.61906132 | I124: 45.61906132 | K124: 45.61906132 | L124: 45.61906132 | M124: 45.61906132 | N124: 45.61906132 | O124: 45.61906132 | P124: 45.61906132 | Q124: 45.61906132 | S124: 0 | T124: 0 | U124: 0 | V124: 0 | W124: 0 | X124: 0 | Y124: 0
A125: DRAB1407 | B125: Meters | C125: 16 | D125: 16 | E125: 16 | F125: 16 | G125: 16 | H125: 16 | I125: 16 | K125: 16 | L125: 16 | M125: 16 | N125: 16 | O125: 16 | P125: 16 | Q125: 16 | S125: 16 | T125: 16 | U125: 16 | V125: 16 | W125: 16 | X125: 16 | Y125: 16
A126: DRAB1408 | B126: “Other” assets with long lives | C126: 29.02380843 | D126: 29.02380843 | E126: 29.02380843 | F126: 29.02380843 | G126: 29.02380843 | H126: 29.02380843 | I126: 29.02380843 | K126: 29.02380843 | L126: 29.02380843 | M126: 29.02380843 | N126: 29.02380843 | O126: 29.02380843 | P126: 29.02380843 | Q126: 29.02380843 | S126: 29.02380843 | T126: 29.02380843 | U126: 29.02380843 | V126: 29.02380843 | W126: 29.02380843 | X126: 29.02380843 | Y126: 29.02380843
A127: DRAB1409 | B127: “Other” assets with short lives | C127: 6.930016135 | D127: 6.930016135 | E127: 6.930016135 | F127: 6.930016135 | G127: 6.930016135 | H127: 6.930016135 | I127: 6.930016135 | K127: 6.930016135 | L127: 6.930016135 | M127: 6.930016135 | N127: 6.930016135 | O127: 6.930016135 | P127: 6.930016135 | Q127: 6.930016135 | S127: 6.930016135 | T127: 6.930016135 | U127: 6.930016135 | V127: 6.930016135 | W127: 6.930016135 | X127: 6.930016135 | Y127: 6.930016135
B128: Estimated residual service life
A129: DRAB1501 | B129: Overhead network assets less than 33kV (wires and poles) | C129: 27.75063003 | D129: 27.62380422 | E129: 27.13231976 | F129: 27.38554652 | G129: 27.51276509 | H129: 27.36668542 | I129: 27.32449384 | K129: 32.18778671 | L129: 31.61439698 | M129: 30.78575773 | N129: 30.81206548 | O129: 30.72097944 | P129: 30.37393751 | Q129: 30.15781635
A130: DRAB1502 | B130: Underground network assets less than 33kV (cables) | C130: 27.75063003 | D130: 27.62380422 | E130: 27.13231976 | F130: 27.38554652 | G130: 27.51276509 | H130: 27.36668542 | I130: 27.32449384 | K130: 32.18778671 | L130: 31.61439698 | M130: 30.78575773 | N130: 30.81206548 | O130: 30.72097944 | P130: 30.37393751 | Q130: 30.15781635
A131: DRAB1503 | B131: Distribution substations including transformers | C131: 21.57693971 | D131: 20.19153164 | E131: 20.46186045 | F131: 20.36075258 | G131: 20.25543726 | H131: 20.146323 | I131: 20.03757425 | K131: 25.39718334 | L131: 23.60001988 | M131: 23.74374494 | N131: 23.46260265 | O131: 23.18655162 | P131: 22.91596426 | Q131: 22.65466519
A132: DRAB1504 | B132: Overhead network assets 33kV and above (wires and towers / poles etc) | C132: 25.79985654 | D132: 25.07618437 | E132: 23.45021179 | F132: 23.15710908 | G132: 22.16304729 | H132: 21.26456219 | I132: 20.41736649 | K132: 25.79985654 | L132: 25.07618437 | M132: 23.45021179 | N132: 23.15710908 | O132: 22.16304729 | P132: 21.26456219 | Q132: 20.41736649
A133: DRAB1505 | B133: Underground network assets 33kV and above (cables, ducts etc) | C133: 25.79985654 | D133: 25.07618437 | E133: 23.45021179 | F133: 23.15710908 | G133: 22.16304729 | H133: 21.26456219 | I133: 20.41736649 | K133: 25.79985654 | L133: 25.07618437 | M133: 23.45021179 | N133: 23.15710908 | O133: 22.16304729 | P133: 21.26456219 | Q133: 20.41736649
A134: DRAB1506 | B134: Zone substations and transformers | C134: 16.80378516 | D134: 16.26567647 | E134: 14.71298832 | F134: 14.00546414 | G134: 13.10855574 | H134: 12.23980981 | I134: 11.41973505 | K134: 16.80378516 | L134: 16.26567647 | M134: 14.71298832 | N134: 14.00546414 | O134: 13.10855574 | P134: 12.23980981 | Q134: 11.41973505
A135: DRAB1507 | B135: Meters | S135: 16 | T135: 16 | U135: 13.99207138 | V135: 13.14302097 | W135: 13.14029004 | X135: 12.54717675 | Y135: 12.17848865
A136: DRAB1508 | B136: “Other” assets with long lives | C136: 12.22013423 | D136: 14.32712024 | E136: 9.250430103 | F136: 12.99674524 | G136: 11.84011161 | H136: 14.53452443 | I136: 17.13555769 | K136: 12.22013423 | L136: 14.32712024 | M136: 9.250430103 | N136: 12.99674524 | O136: 11.84011161 | P136: 14.53452443 | Q136: 17.13555769 | S136: 20.22045022 | T136: 19.28459664 | U136: 13.99207138 | V136: 13.14302097 | W136: 13.14029004 | X136: 12.54717675 | Y136: 12.17848865
A137: DRAB1509 | B137: “Other” assets with short lives | C137: 4.474335379 | D137: 4.11244613 | E137: 6.930016135 | F137: 6.213239623 | G137: 6.930016135 | H137: 6.309397959 | I137: 5.952055768 | K137: 4.474335379 | L137: 4.11244613 | M137: 6.930016135 | N137: 6.213239623 | O137: 6.930016135 | P137: 6.309397959 | Q137: 5.952055768 | S137: 6.930016135 | T137: 6.930016135 | U137: 6.930016135 | V137: 6.930016135 | W137: 6.930016135 | X137: 6.930016135 | Y137: 6.930016135

Sheet 3.4 Operational data
B1: =INDEX(dms_Worksheet_List,MATCH(dms_Model,dms_Model_List)) -> REGULATORY REPORTING STATEMENT
B2: =INDEX(dms_TradingNameFull_List,MATCH(dms_TradingName,dms_TradingName_List)) -> Power and Water Corporation
B3: =CONCATENATE("REGULATORY PERIOD FROM ", FRCP_y1," TO ",dms_MultiYear_FinalYear_Result) -> REGULATORY PERIOD FROM 2024-25 TO 2028-29
B4: 3.4 OPERATIONAL DATA
B6: There are TWO tables on this worksheet. Each table has been grouped for ease of navigation. See the Instructions sheet on how to group or ungroup tables.
B8: 3.4.1 - ENERGY DELIVERY
D9: Standard control services
D10: Forecast
C11: Units | D11: =CRCP_y4 -> 2022-23 | E11: =CRCP_y5 -> 2023-24 | F11: =FRCP_y1 -> 2024-25 | G11: =FRCP_y2 -> 2025-26 | H11: =FRCP_y3 -> 2026-27 | I11: =FRCP_y4 -> 2027-28 | J11: =FRCP_y5 -> 2028-29
A12: DOPED01 | B12: TOTAL ENERGY DELIVERED
B13: 3.4.1.1 - Energy grouping - delivery by chargeable quantity
A14: DOPED0201 | B14: Energy Delivery where time of use is not a determinant | C14: GWh | D14: 1700.062511 | E14: 1722.330755 | F14: 1110.247379 | G14: 1110.087506 | H14: 1101.964396 | I14: 1109.952348 | J14: 1123.420105
A15: DOPED0202 | B15: Energy Delivery at On-peak times | C15: GWh | D15: 0 | E15: 0 | F15: 83.98145926 | G15: 85.28873683 | H15: 86.54115514 | I15: 83.75188124 | J15: 79.1006733
A16: DOPED0203 | B16: Energy Delivery at Shoulder times | C16: GWh | D16: 0 | E16: 0 | F16: 376.4703832 | G16: 381.4661317 | H16: 386.3056897 | I16: 374.2542014 | J16: 354.0270425
A17: DOPED0204 | B17: Energy Delivery at Off-peak times | C17: GWh | D17: 0 | E17: 0 | F17: 173.2345878 | G17: 176.2669896 | H17: 179.1433258 | I17: 172.6945791 | J17: 162.3193546
A18: DOPED0205 | B18: Controlled load energy deliveries | C18: GWh | D18: 0 | E18: 0 | F18: 0 | G18: 0 | H18: 0 | I18: 0 | J18: 0
A19: DOPED0206 | B19: Energy Delivery to unmetered supplies | C19: GWh | D19: 16 | E19: 15.994163 | F19: 16.31404626 | G19: 16.64032719 | H19: 16.97313373 | I19: 17.3125964 | J19: 17.65884833
B20: 3.4.1.2 - Energy - received from TNSP and other DNSPs by time of receipt
A21: DOPED0301 | B21: Energy into DNSP network at On-peak times | C21: GWh
A22: DOPED0302 | B22: Energy into DNSP network at Shoulder times | C22: GWh
A23: DOPED0303 | B23: Energy into DNSP network at Off-peak times | C23: GWh
A24: DOPED0304 | B24: Energy received from TNSP and other DNSPs not included in the above categories | C24: GWh
B25: 3.4.1.3 - Energy - received into DNSP system from embedded generation by time of receipt
A26: DOPED0401 | B26: Energy into DNSP network at On-peak times from non-residential embedded generation | C26: GWh | D26: 0 | E26: 0 | F26: 0 | G26: 0 | H26: 0 | I26: 0 | J26: 0
A27: DOPED0402 | B27: Energy into DNSP network at Shoulder times from non-residential embedded generation | C27: GWh | D27: 0 | E27: 0 | F27: 0 | G27: 0 | H27: 0 | I27: 0 | J27: 0
A28: DOPED0403 | B28: Energy into DNSP network at Off-peak times from non-residential embedded generation | C28: GWh | D28: 0 | E28: 0 | F28: 0 | G28: 0 | H28: 0 | I28: 0 | J28: 0
A29: DOPED0404 | B29: Energy received from embedded generation not included in above categories from non-residential embedded generation | C29: GWh | D29: 30.04287455 | E29: 32.0845381 | F29: 34.24030353 | G29: 36.49115451 | H29: 38.81508177 | I29: 41.36698462 | J29: 44.10854061
A30: DOPED0405 | B30: Energy into DNSP network at On-peak times from residential embedded generation | C30: GWh | D30: 0 | E30: 0 | F30: 0 | G30: 0 | H30: 0 | I30: 0 | J30: 0
A31: DOPED0406 | B31: Energy into DNSP network at Shoulder times from residential embedded generation | C31: GWh | D31: 0 | E31: 0 | F31: 0 | G31: 0 | H31: 0 | I31: 0 | J31: 0
A32: DOPED0407 | B32: Energy into DNSP network at Off-peak times from residential embedded generation | C32: GWh | D32: 0 | E32: 0 | F32: 0 | G32: 0 | H32: 0 | I32: 0 | J32: 0
A33: DOPED0408 | B33: Energy received from embedded generation not included in above categories from residential embedded generation | C33: GWh | D33: 136.3827287 | E33: 154.2181736 | F33: 172.773264 | G33: 191.9736163 | H33: 211.7369664 | I33: 231.6767249 | J33: 251.6721641
B34: 3.4.1.4 - Energy grouping - customer type or class
A35: DOPED0501 | B35: Residential customers energy deliveries | C35: GWh | D35: 664.8846599 | E35: 636.7675208 | F35: 602.8594127 | G35: 582.5141926 | H35: 562.6167648 | I35: 539.677658 | J35: 513.0141323
A36: DOPED0502 | B36: Non residential customers not on demand tariffs energy deliveries | C36: GWh | D36: 102.7443902 | E36: 52.43893512 | F36: 35.57629872 | G36: 19.04239894 | H36: 2.832295132 | I36: 0 | J36: 0
A37: DOPED0503 | B37: Non-residential low voltage demand tariff customers energy deliveries | C37: GWh | D37: 623.427762 | E37: 695.6062461 | F37: 677.1454232 | G37: 685.8280025 | H37: 694.0347862 | I37: 675.3597104 | J37: 646.7744841
A38: DOPED0504 | B38: Non-residential high voltage demand tariff customers energy deliveries | C38: GWh | D38: 309.0056985 | E38: 337.5180533 | F38: 428.3526742 | G38: 465.7247704 | H38: 494.4707201 | I38: 525.6156408 | J38: 559.0785595
A39: DOPED0505 | B39: Other Customer Class Energy Deliveries | C39: GWh | D39: 16 | E39: 15.994163 | F39: 16.31404626 | G39: 16.64032719 | H39: 16.97313373 | I39: 17.3125964 | J39: 17.65884833
B43: 3.4.3 - SYSTEM DEMAND
D44: Standard control services
D45: Forecast
C46: Units | D46: =CRCP_y4 -> 2022-23 | E46: =CRCP_y5 -> 2023-24 | F46: =FRCP_y1 -> 2024-25 | G46: =FRCP_y2 -> 2025-26 | H46: =FRCP_y3 -> 2026-27 | I46: =FRCP_y4 -> 2027-28 | J46: =FRCP_y5 -> 2028-29
B47: 3.4.3.1 - Annual system maximum demand characteristics at the zone substation level – MW measure
A48: DOPSD0102 | B48: Non–coincident Summated Weather Adjusted System Annual Maximum Demand 10% POE | C48: MW | D48: 396.5404109 | E48: 412.2964811 | F48: 422.6250204 | G48: 435.1083776 | H48: 443.4305359 | I48: 448.8101485 | J48: 452.8056076
A49: DOPSD0103 | B49: Non–coincident Summated Weather Adjusted System Annual Maximum Demand 50% POE | C49: MW | D49: 386.9745486 | E49: 403.4189617 | F49: 414.0533179 | G49: 426.8028521 | H49: 435.2548957 | I49: 440.5909685 | J49: 444.5428879
A50: DOPSD0105 | B50: Coincident Weather Adjusted System Annual Maximum Demand 10% POE | C50: MW | D50: 344.7476831 | E50: 357.344852 | F50: 366.0525431 | G50: 376.7820416 | H50: 383.8749441 | I50: 388.4580887 | J50: 391.7700034
A51: DOPSD0106 | B51: Coincident Weather Adjusted System Annual Maximum Demand 50% POE | C51: MW | D51: 336.0261188 | E51: 349.2072371 | F51: 358.1662756 | G51: 369.1140976 | H51: 376.3101391 | I51: 380.8480161 | J51: 384.1157668
B52: 3.4.3.2 - Annual system maximum demand characteristics at the transmission connection point – MW measure
A53: DOPSD0108 | B53: Non–coincident Summated Weather Adjusted System Annual Maximum Demand 10% POE | C53: MW | D53: 351.5522635 | E53: 367.9994899 | F53: 378.5011815 | G53: 391.4665711 | H53: 402.6550837 | I53: 410.8350961 | J53: 417.6335084
A54: DOPSD0109 | B54: Non–coincident Summated Weather Adjusted System Annual Maximum Demand 50% POE | C54: MW | D54: 349.9999893 | E54: 366.4461442 | F54: 376.8861194 | G54: 387.0612892 | H54: 394.8978788 | I54: 403.0768198 | J54: 409.8741606
A55: DOPSD0111 | B55: Coincident Weather Adjusted System Annual Maximum Demand 10% POE | C55: MW | D55: 252.0645277 | E55: 261.7841796 | F55: 267.5000093 | G55: 276.7961936 | H55: 284.8183572 | I55: 290.6834261 | J55: 295.5578877
A56: DOPSD0112 | B56: Coincident Weather Adjusted System Annual Maximum Demand 50% POE | C56: MW | D56: 250.951547 | E56: 260.6704308 | F56: 266.3420098 | G56: 273.6376065 | H56: 279.2564413 | I56: 285.1207419 | J56: 289.9944353
B57: 3.4.3.3 - Annual system maximum demand characteristics at the zone substation level – MVA measure
A58: DOPSD0202 | B58: Non–coincident Summated Weather Adjusted System Annual Maximum Demand 10% POE | C58: MVA | D58: 407.2071259 | E58: 423.5313306 | F58: 434.2266544 | G58: 447.0012581 | H58: 455.5018387 | I58: 461.0075394 | J58: 465.1308511
A59: DOPSD0203 | B59: Non–coincident Summated Weather Adjusted System Annual Maximum Demand 50% POE | C59: MVA | D59: 397.3844879 | E59: 414.4016413 | F59: 425.4039138 | G59: 438.4454663 | H59: 447.0754663 | I59: 452.5355863 | J59: 456.6133174
A60: DOPSD0205 | B60: Coincident Weather Adjusted System Annual Maximum Demand 10% POE | C60: MVA | D60: 353.9765978 | E60: 367.0154839 | F60: 376.034099 | G60: 387.0095081 | H60: 394.2537689 | I60: 398.9460707 | J60: 402.3654185
A61: DOPSD0206 | B61: Coincident Weather Adjusted System Annual Maximum Demand 50% POE | C61: MVA | D61: 345.0222116 | E61: 358.6483185 | F61: 367.9186074 | G61: 379.1126196 | H61: 386.4593244 | I61: 391.1043348 | J61: 394.4774796
B62: 3.4.3.4 - Annual system maximum demand characteristics at the transmission connection point – MVA measure
A63: DOPSD0208 | B63: Non–coincident Summated Weather Adjusted System Annual Maximum Demand 10% POE | C63: MVA | D63: 365.194872 | E63: 380.1873021 | F63: 389.4231696 | G63: 403.9284002 | H63: 416.640103 | I63: 426.2503208 | J63: 434.4511086
A64: DOPSD0209 | B64: Non–coincident Summated Weather Adjusted System Annual Maximum Demand 50% POE | C64: MVA | D64: 363.5823689 | E64: 378.5698126 | F64: 387.7373684 | G64: 399.3190773 | H64: 408.5039799 | I64: 418.0933511 | J64: 426.2731911
A65: DOPSD0211 | B65: Coincident Weather Adjusted System Annual Maximum Demand 10% POE | C65: MVA | D65: 261.8447232 | E65: 272.5942956 | F65: 279.2164126 | G65: 289.616663 | H65: 298.7309538 | I65: 305.62148 | J65: 311.5014449
A66: DOPSD0212 | B66: Coincident Weather Adjusted System Annual Maximum Demand 50% POE | C66: MVA | D66: 260.6885585 | E66: 271.4345556 | F66: 278.0076932 | G66: 286.3117784 | H66: 292.8973536 | I66: 299.7729327 | J66: 305.637878
B67: 3.4.3.5 - Power factor conversion between MVA and MW
A68: DOPSD0301 | B68: Average overall network power factor conversion between MVA and MW | C68: Factor | D68: 0.9626488731 | E68: 0.9603435722 | F68: 0.9580382714 | G68: 0.9557329706 | H68: 0.9534276698 | I68: 0.951122369 | J68: 0.9488170682
A69: DOPSD0302 | B69: Average power factor conversion for low voltage distribution lines | C69: Factor | D69: 0 | E69: 0 | F69: 0 | G69: 0 | H69: 0 | I69: 0 | J69: 0
A70: DOPSD0303 | B70: Average power factor conversion for 3.3 kV lines | C70: Factor | D70: 0 | E70: 0 | F70: 0 | G70: 0 | H70: 0 | I70: 0 | J70: 0
A71: DOPSD0304 | B71: Average power factor conversion for 6.6 kV lines | C71: Factor | D71: 0 | E71: 0 | F71: 0 | G71: 0 | H71: 0 | I71: 0 | J71: 0
A72: DOPSD0305 | B72: Average power factor conversion for 7.6 kV lines | C72: Factor | D72: 0 | E72: 0 | F72: 0 | G72: 0 | H72: 0 | I72: 0 | J72: 0
A73: DOPSD0306 | B73: Average power factor conversion for 11 kV lines | C73: Factor | D73: 0.9738151894 | E73: 0.9743374519 | F73: 0.9748597143 | G73: 0.9753819767 | H73: 0.9759042392 | I73: 0.9764265016 | J73: 0.9769487641
A74: DOPSD0307 | B74: Average power factor conversion for SWER lines | C74: Factor | D74: 0 | E74: 0 | F74: 0 | G74: 0 | H74: 0 | I74: 0 | J74: 0
A75: DOPSD0308 | B75: Average power factor conversion for 22 kV lines | C75: Factor | D75: 0.9630171594 | E75: 0.9678929533 | F75: 0.9727687472 | G75: 0.9776445412 | H75: 0.9825203351 | I75: 0.9873961291 | J75: 0.992271923
A76: DOPSD0309 | B76: Average power factor conversion for 33 kV lines | C76: Factor | D76: 0 | E76: 0 | F76: 0 | G76: 0 | H76: 0 | I76: 0 | J76: 0
A77: DOPSD0310 | B77: Average power factor conversion for 44 kV lines | C77: Factor | D77: 0 | E77: 0 | F77: 0 | G77: 0 | H77: 0 | I77: 0 | J77: 0
A78: DOPSD0311 | B78: Average power factor conversion for 66 kV lines | C78: Factor | D78: 0.9645498842 | E78: 0.960394428 | F78: 0.9562389717 | G78: 0.9520835154 | H78: 0.9479280592 | I78: 0.9437726029 | J78: 0.9396171466
A79: DOPSD0312 | B79: Average power factor conversion for 110 kV lines | C79: Factor | D79: 0 | E79: 0 | F79: 0 | G79: 0 | H79: 0 | I79: 0 | J79: 0
A80: DOPSD0313 | B80: Average power factor conversion for 132 kV lines | C80: Factor | D80: 0.9558986723 | E80: 0.9545996003 | F80: 0.9533005284 | G80: 0.9520014565 | H80: 0.9507023846 | I80: 0.9494033126 | J80: 0.9481042407
A81: DOPSD0314 | B81: Average power factor conversion for 220 kV lines | C81: Factor | D81: 0 | E81: 0 | F81: 0 | G81: 0 | H81: 0 | I81: 0 | J81: 0
B82: 3.4.3.6 - Demand supplied (for customers charged on this basis) – MW measure
A83: DOPSD0401 | B83: Summated Chargeable Contracted Maximum Demand | C83: MW | D83: 0 | E83: 0 | F83: 0 | G83: 0 | H83: 0 | I83: 0 | J83: 0
A84: DOPSD0402 | B84: Summated Chargeable Measured Maximum Demand | C84: MW | D84: 0 | E84: 0 | F84: 0 | G84: 0 | H84: 0 | I84: 0 | J84: 0
B85: 3.4.3.7 - Demand supplied (for customers charged on this basis) – MVA measure
A86: DOPSD0403 | B86: Summated Chargeable Contracted Maximum Demand | C86: MVA | D86: 0 | E86: 0 | F86: 0 | G86: 0 | H86: 0 | I86: 0 | J86: 0
A87: DOPSD0404 | B87: Summated Chargeable Measured Maximum Demand | C87: MVA | D87: 2854.06 | E87: 2569.03 | F87: 993.49 | G87: 998.46 | H87: 1003.45 | I87: 1008.47 | J87: 1013.51

Sheet 3.5 Physical assets
B1: =INDEX(dms_Worksheet_List,MATCH(dms_Model,dms_Model_List)) -> REGULATORY REPORTING STATEMENT
B2: =INDEX(dms_TradingNameFull_List,MATCH(dms_TradingName,dms_TradingName_List)) -> Power and Water Corporation
B3: =CONCATENATE("REGULATORY PERIOD FROM ", FRCP_y1," TO ",dms_MultiYear_FinalYear_Result) -> REGULATORY PERIOD FROM 2024-25 TO 2028-29
B4: 3.5 PHYSICAL ASSETS DATA
B6: There are THREE tables on this worksheet. Each table has been grouped (and sub-grouped) for ease of navigation. See the Instructions sheet on how to group or ungroup tables.
B8: 3.5.1 - NETWORK CAPACITIES VARIABLES
D9: Forecast
C10: Units | D10: 2022-23 | E10: 2023-24 | F10: 2024-25 | G10: 2025-26 | H10: 2026-27 | I10: 2027-28 | J10: 2028-29
B11: CIRCUIT LENGTH
B12: 3.5.1.1 - Overhead network length of circuit at each voltage
A13: DPA0101 | B13: Overhead low voltage distribution | C13: km | D13: 1189.037378 | E13: 1197.901556 | F13: 1202.479221 | G13: 1205.62377 | H13: 1209.289427 | I13: 1212.163878 | J13: 1214.863539
A14: DPA0102 | B14: Overhead 2.2 kV | C14: km | D14: 0 | E14: 0 | F14: 0 | G14: 0 | H14: 0 | I14: 0 | J14: 0
A15: DPA0103 | B15: Overhead 7.6 kV | C15: km | D15: 0 | E15: 0 | F15: 0 | G15: 0 | H15: 0 | I15: 0 | J15: 0
A16: DPA0104 | B16: Overhead 11 kV | C16: km | D16: 349.7759996 | E16: 352.3835515 | F16: 353.7301511 | G16: 354.6551748 | H16: 355.7334917 | I16: 356.5790613 | J16: 357.3732134
A17: DPA0105 | B17: Overhead SWER | C17: km | D17: 9 | E17: 9 | F17: 9 | G17: 9 | H17: 9 | I17: 9 | J17: 9
A18: DPA0106 | B18: Overhead 22 kV | C18: km | D18: 3146.978893 | E18: 3170.439367 | F18: 3182.554894 | G18: 3190.877449 | H18: 3200.579203 | I18: 3208.186899 | J18: 3215.331986
A19: DPA0107 | B19: Overhead 33 kV | C19: km | D19: 0 | E19: 0 | F19: 0 | G19: 0 | H19: 0 | I19: 0 | J19: 0
A20: DPA0108 | B20: Overhead 44 kV | C20: km | D20: 0 | E20: 0 | F20: 0 | G20: 0 | H20: 0 | I20: 0 | J20: 0
A21: DPA0109 | B21: Overhead 66 kV | C21: km | D21: 372 | E21: 372 | F21: 372 | G21: 372 | H21: 372 | I21: 372 | J21: 372
A22: DPA0110 | B22: Overhead 132 kV | C22: km | D22: 354 | E22: 354 | F22: 354 | G22: 354 | H22: 354 | I22: 354 | J22: 354
A23: DPA0111 | B23: Overhead 6.6kv | C23: km | D23: 0 | E23: 0 | F23: 0 | G23: 0 | H23: 0 | I23: 0 | J23: 0
A24: DPA0112 | B24: Overhead 110kV | C24: km | D24: 0 | E24: 0 | F24: 0 | G24: 0 | H24: 0 | I24: 0 | J24: 0
A25: DPA0113 | B25: Overhead 220kV | C25: km | D25: 0 | E25: 0 | F25: 0 | G25: 0 | H25: 0 | I25: 0 | J25: 0
A26: DPA0114 | B26: Other | C26: km | D26: 0 | E26: 0 | F26: 0 | G26: 0 | H26: 0 | I26: 0 | J26: 0
A27: DPA01 | B27: Total overhead circuit km | D27: =SUM(D13:D26) -> 5420.792271 | E27: 5455.724475 | F27: 5473.764266 | G27: 5486.156394 | H27: 5500.602122 | I27: 5511.929838 | J27: 5522.568738
B28: 3.5.1.2 - Underground network circuit length at each voltage
A29: DPA0201 | B29: Underground low voltage distribution | C29: km | D29: 709.6030338 | E29: 714.8930672 | F29: 717.6249618 | G29: 719.5015903 | H29: 721.6892103 | I29: 723.4046473 | J29: 725.015772
A30: DPA0202 | B30: Underground 5 kV | C30: km | D30: 0 | E30: 0 | F30: 0 | G30: 0 | H30: 0 | I30: 0 | J30: 0
A31: DPA0203 | B31: Underground 6.6 Kv | C31: km | D31: 0 | E31: 0 | F31: 0 | G31: 0 | H31: 0 | I31: 0 | J31: 0
A32: DPA0204 | B32: Underground 7.6 kV | C32: km | D32: 0 | E32: 0 | F32: 0 | G32: 0 | H32: 0 | I32: 0 | J32: 0
A33: DPA0205 | B33: Underground 11 kV | C33: km | D33: 712.6183441 | E33: 717.9308564 | F33: 720.6743597 | G33: 722.5589625 | H33: 724.7558783 | I33: 726.4786047 | J33: 728.0965756
A34: DPA0206 | B34: Underground SWER | C34: km | D34: 78 | E34: 78 | F34: 78 | G34: 78 | H34: 78 | I34: 78 | J34: 78
A35: DPA0207 | B35: Underground 22 kV | C35: km | D35: 102.5205516 | E35: 103.2848341 | F35: 103.6795271 | G35: 103.9506547 | H35: 104.2667131 | I35: 104.5145524 | J35: 104.7473212
A36: DPA0208 | B36: Underground 33 kV | C36: km | D36: 0 | E36: 0 | F36: 0 | G36: 0 | H36: 0 | I36: 0 | J36: 0
A37: DPA0209 | B37: Underground 66 kV | C37: km | D37: 39 | E37: 39 | F37: 39 | G37: 39 | H37: 39 | I37: 39 | J37: 39
A38: DPA0210 | B38: Underground 110 kV | C38: km | D38: 0 | E38: 0 | F38: 0 | G38: 0 | H38: 0 | I38: 0 | J38: 0
A39: DPA0211 | B39: Underground 132 kV | C39: km | D39: 0 | E39: 0 | F39: 0 | G39: 0 | H39: 0 | I39: 0 | J39: 0
A40: DPA0212 | B40: Other | C40: km | D40: 0 | E40: 0 | F40: 0 | G40: 0 | H40: 0 | I40: 0 | J40: 0
A41: DPA02 | B41: Total underground circuit km | D41: =SUM(D29:D40) -> 1641.741929 | E41: 1653.108758 | F41: 1658.978849 | G41: 1663.011207 | H41: 1667.711802 | I41: 1671.397804 | J41: 1674.859669
B43: CIRCUIT CAPACITY MVA
B44: 3.5.1.3 - Estimated overhead network weighted average MVA capacity by voltage class
A45: DPA0301 | B45: Overhead low voltage distribution | C45: MVA | D45: 0.2 | E45: 0.2 | F45: 0.2 | G45: 0.2 | H45: 0.2 | I45: 0.2 | J45: 0.2
A46: DPA0302 | B46: Overhead 6.6 kV | C46: MVA | D46: - | E46: - | F46: - | G46: - | H46: - | I46: - | J46: -
A47: DPA0303 | B47: Overhead 7.6 kV | C47: MVA | D47: - | E47: - | F47: - | G47: - | H47: - | I47: - | J47: -
A48: DPA0304 | B48: Overhead 11 kV | C48: MVA | D48: 6.8 | E48: 6.8 | F48: 6.8 | G48: 6.8 | H48: 6.8 | I48: 6.8 | J48: 6.8
A49: DPA0305 | B49: Overhead SWER | C49: MVA | D49: 0.9 | E49: 0.9 | F49: 0.9 | G49: 0.9 | H49: 0.9 | I49: 0.9 | J49: 0.9
A50: DPA0306 | B50: Overhead 22 kV | C50: MVA | D50: 9.7 | E50: 9.7 | F50: 9.7 | G50: 9.7 | H50: 9.7 | I50: 9.7 | J50: 9.7
A51: DPA0307 | B51: Overhead 33 kV | C51: MVA | D51: - | E51: - | F51: - | G51: - | H51: - | I51: - | J51: -
A52: DPA0308 | B52: Overhead 44 kV | C52: MVA | D52: - | E52: - | F52: - | G52: - | H52: - | I52: - | J52: -
A53: DPA0309 | B53: Overhead 66 kV | C53: MVA | D53: 46.72 | E53: 46.72 | F53: 46.72 | G53: 46.72 | H53: 46.72 | I53: 46.72 | J53: 46.72
A54: DPA0310 | B54: Overhead 110 kV | C54: MVA | D54: - | E54: - | F54: - | G54: - | H54: - | I54: - | J54: -
A55: DPA0311 | B55: Overhead 132 kV | C55: MVA | D55: 116.41 | E55: 116.41 | F55: 116.41 | G55: 116.41 | H55: 116.41 | I55: 116.41 | J55: 116.41
A56: DPA0312 | B56: Overhead 220 kV | C56: MVA | D56: - | E56: - | F56: - | G56: - | H56: - | I56: - | J56: -
A57: DPA0313 | B57: Other | C57: MVA | D57: - | E57: - | F57: - | G57: - | H57: - | I57: - | J57: -
B58: 3.5.1.4 - Estimated underground network weighted average MVA capacity by voltage class
A59: DPA0401 | B59: Underground low voltage distribution | C59: MVA | D59: 0.2 | E59: 0.2 | F59: 0.2 | G59: 0.2 | H59: 0.2 | I59: 0.2 | J59: 0.2
A60: DPA0402 | B60: Underground 5 kV | C60: MVA | D60: - | E60: - | F60: - | G60: - | H60: - | I60: - | J60: -
A61: DPA0403 | B61: Underground 6.6 kV | C61: MVA | D61: - | E61: - | F61: - | G61: - | H61: - | I61: - | J61: -
A62: DPA0404 | B62: Underground 7.6 kV | C62: MVA | D62: - | E62: - | F62: - | G62: - | H62: - | I62: - | J62: -
A63: DPA0405 | B63: Underground 11 kV | C63: MVA | D63: 5.1 | E63: 5.1 | F63: 5.1 | G63: 5.1 | H63: 5.1 | I63: 5.1 | J63: 5.1
A64: DPA0406 | B64: Underground SWER | C64: MVA | D64: 0.7 | E64: 0.7 | F64: 0.7 | G64: 0.7 | H64: 0.7 | I64: 0.7 | J64: 0.7
A65: DPA0407 | B65: Underground 12.7 kV | C65: MVA | D65: - | E65: - | F65: - | G65: - | H65: - | I65: - | J65: -
A66: DPA0408 | B66: Underground 22 kV | C66: MVA | D66: 10.9 | E66: 10.9 | F66: 10.9 | G66: 10.9 | H66: 10.9 | I66: 10.9 | J66: 10.9
A67: DPA0409 | B67: Underground 33 kV | C67: MVA | D67: - | E67: - | F67: - | G67: - | H67: - | I67: - | J67: -
A68: DPA0410 | B68: Underground 66 kV | C68: MVA | D68: 53.8 | E68: 53.8 | F68: 53.8 | G68: 53.8 | H68: 53.8 | I68: 53.8 | J68: 53.8
A69: DPA0411 | B69: Underground 110 kV | C69: MVA | D69: - | E69: - | F69: - | G69: - | H69: - | I69: - | J69: -
A70: DPA0412 | B70: Underground 132 kV | C70: MVA | D70: - | E70: - | F70: - | G70: - | H70: - | I70: - | J70: -
A71: DPA0413 | B71: Other | C71: MVA | D71: - | E71: - | F71: - | G71: - | H71: - | I71: - | J71: -
B75: 3.5.2 - TRANSFORMER CAPACITIES VARIABLES
D76: VOLUMES
C77: Units | D77: =CRCP_y4 -> 2022-23 | E77: =CRCP_y5 -> 2023-24 | F77: =FRCP_y1 -> 2024-25 | G77: =FRCP_y2 -> 2025-26 | H77: =FRCP_y3 -> 2026-27 | I77: =FRCP_y4 -> 2027-28 | J77: =FRCP_y5 -> 2028-29
B78: Distribution transformer total installed capacity
A79: DPA0501 | B79: Distribution transformer capacity owned by utility | C79: MVA | D79: 1472.5 | E79: 1489 | F79: 1505 | G79: 1522 | H79: 1538 | I79: 1554 | J79: 1571
A80: DPA0502 | B80: Distribution transformer capacity owned by High Voltage Customers | C80: MVA | D80: 141 | E80: 143 | F80: 144 | G80: 146 | H80: 148 | I80: 149 | J80: 151
A81: DPA0503 | B81: Cold spare capacity included in DPA0501 | C81: MVA | D81: 92.1 | E81: 92.1 | F81: 92.1 | G81: 92.1 | H81: 92.1 | I81: 92.1 | J81: 92.1
B82: Zone substation transformer capacity
A83: DPA0601 | B83: Total installed capacity for first step transformation where there are two steps to reach distribution voltage | C83: MVA | D83: 618 | E83: 618 | F83: 618 | G83: 618 | H83: 618 | I83: 618 | J83: 618
A84: DPA0602 | B84: Total installed capacity for second step transformation where there are two steps to reach distribution voltage | C84: MVA | D84: 968.2 | E84: 968.2 | F84: 954.2 | G84: 955.7 | H84: 951.7 | I84: 951.7 | J84: 951.7
A85: DPA0603 | B85: Total zone substation transformer capacity where there is only a single step transformation to reach distribution voltage | C85: MVA | D85: 134 | E85: 134 | F85: 134 | G85: 134 | H85: 134 | I85: 134 | J85: 134
A86: DPA0604 | B86: Total zone substation transformer capacity | C86: MVA | D86: 1896.2 | E86: 1896.2 | F86: 2007.2 | G86: 2008.7 | H86: 2004.7 | I86: 2004.7 | J86: 2004.7
A87: DPA0605 | B87: Cold spare capacity of zone substation transformers included in DPA0604 | C87: MVA | D87: 176 | E87: 111 | F87: 236 | G87: 236 | H87: 236 | I87: 236 | J87: 236
B91: 3.5.3 - PUBLIC LIGHTING
D92: VOLUMES
C93: Units | D93: =CRCP_y4 -> 2022-23 | E93: =CRCP_y5 -> 2023-24 | F93: =FRCP_y1 -> 2024-25 | G93: =FRCP_y2 -> 2025-26 | H93: =FRCP_y3 -> 2026-27 | I93: =FRCP_y4 -> 2027-28 | J93: =FRCP_y5 -> 2028-29
A94: DPA0701 | B94: Public lighting luminaires | C94: 0's
A95: DPA0702 | B95: Public lighting poles | C95: 0's

Sheet 3.6 Quality of service
B1: =INDEX(dms_Worksheet_List,MATCH(dms_Model,dms_Model_List)) -> REGULATORY REPORTING STATEMENT
B2: =INDEX(dms_TradingNameFull_List,MATCH(dms_TradingName,dms_TradingName_List)) -> Power and Water Corporation
B3: =CONCATENATE("REGULATORY PERIOD FROM ", FRCP_y1," TO ",dms_MultiYear_FinalYear_Result) -> REGULATORY PERIOD FROM 2024-25 TO 2028-29
B4: 3.6 QUALITY OF SERVICE DATA
B6: 3.6.2 - ENERGY NOT SUPPLIED
D7: FORECAST
C8: Units | D8: 2022-23 | E8: 2023-24 | F8: 2024-25 | G8: 2025-26 | H8: 2026-27 | I8: 2027-28 | J8: 2028-29
A9: DQS0201 | B9: Energy Not Supplied (planned) | C9: GWh | D9: 0.105 | E9: 0.096 | F9: 0.087 | G9: 0.085 | H9: 0.087 | I9: 0.092 | J9: 0.09
A10: DQS0202 | B10: Energy Not Supplied (unplanned) | C10: GWh | D10: 0.432 | E10: 0.45 | F10: 0.458 | G10: 0.455 | H10: 0.43 | I10: 0.445 | J10: 0.447
A11: DQS02 | B11: Total | D11: =SUM(D9:D10) -> 0.537 | E11: 0.546 | F11: 0.545 | G11: 0.54 | H11: 0.517 | I11: 0.537 | J11: 0.537
B13: 3.6.3 - SYSTEM LOSSES
D14: FORECAST
C15: Units | D15: 2022-23 | E15: 2023-24 | F15: 2024-25 | G15: 2025-26 | H15: 2026-27 | I15: 2027-28 | J15: 2028-29
A16: DQS03 | B16: System losses | C16: % | D16: 0.0476 | E16: 0.046 | F16: 0.0444 | G16: 0.0429 | H16: 0.042 | I16: 0.042 | J16: 0.042
B18: 3.6.4 - CAPACITY UTILISATION
D19: FORECAST
C20: Units | D20: 2022-23 | E20: 2023-24 | F20: 2024-25 | G20: 2025-26 | H20: 2026-27 | I20: 2027-28 | J20: 2028-29
A21: DQS04 | B21: Overall utilisation | C21: % | D21: =IF('3.5 Physical assets'!D86=0,0,'3.4 Operational data'!D49/'3.5 Physical assets'!D86) -> 0.204078973 | E21: =IF('3.5 Physical assets'!E86=0,0,'3.4 Operational data'!E49/'3.5 Physical assets'!E86) -> 0.2127512718 | F21: =IF('3.5 Physical assets'!F86=0,0,'3.4 Operational data'!F49/'3.5 Physical assets'!F86) -> 0.2062840364 | G21: =IF('3.5 Physical assets'!G86=0,0,'3.4 Operational data'!G49/'3.5 Physical assets'!G86) -> 0.2124771504 | H21: =IF('3.5 Physical assets'!H86=0,0,'3.4 Operational data'!H49/'3.5 Physical assets'!H86) -> 0.2171172224 | I21: =IF('3.5 Physical assets'!I86=0,0,'3.4 Operational data'!I49/'3.5 Physical assets'!I86) -> 0.2197790036 | J21: =IF('3.5 Physical assets'!J86=0,0,'3.4 Operational data'!J49/'3.5 Physical assets'!J86) -> 0.2217503307

Sheet 3.7 Operating Environment
B1: =INDEX(dms_Worksheet_List,MATCH(dms_Model,dms_Model_List)) -> REGULATORY REPORTING STATEMENT
B2: =INDEX(dms_TradingNameFull_List,MATCH(dms_TradingName,dms_TradingName_List)) -> Power and Water Corporation
B3: =CONCATENATE("REGULATORY PERIOD FROM ", FRCP_y1," TO ",dms_MultiYear_FinalYear_Result) -> REGULATORY PERIOD FROM 2024-25 TO 2028-29
B4: 3.7 OPERATING ENVIRONMENT FACTORS
B6: There are THREE tables on this worksheet. Each table has been grouped (and sub-grouped) for ease of navigation. See the Instructions sheet on how to group or ungroup tables.
A8: DOEF01 | B8: 3.7.1 - DENSITY FACTORS
D9: Forecast
C10: Units | D10: 2022-23 | E10: 2023-24 | F10: 2024-25 | G10: 2025-26 | H10: 2026-27 | I10: 2027-28 | J10: 2028-29
A11: DOEF0101 | B11: Customer density | C11: Customer / km | D11: 17.7185
A12: DOEF0102 | B12: Energy density | C12: MWh/customer | D12: 20.3534
A13: DOEF0103 | B13: Demand density | C13: kVA / customer | D13: 4.4238
A15: DOEF02 | B15: 3.7.2 - TERRAIN FACTORS
D16: Forecast
C17: Units | D17: 2022-23 | E17: 2023-24 | F17: 2024-25 | G17: 2025-26 | H17: 2026-27 | I17: 2027-28 | J17: 2028-29
A18: DOEF0201 | B18: Rural proportion | C18: % | D18: 0.91
A19: DOEF0202 | B19: Urban and CBD vegetation maintenance spans | C19: 0's | D19: 2743
A20: DOEF0203 | B20: Rural vegetation maintenance spans | C20: 0's | D20: 4921
A21: DOEF0204 | B21: Total vegetation maintenance spans | C21: 0's | D21: 6980
A22: DOEF0205 | B22: Total number of spans | C22: 0's | D22: 62364
A23: DOEF0206 | B23: Average urban and CBD vegetation maintenance span cycle | C23: Years | D23: 1.33
A24: DOEF0207 | B24: Average rural vegetation maintenance span cycle | C24: Years | D24: 1.86
A25: DOEF0208 | B25: Average number of trees per urban and CBD vegetation maintenance span | C25: Trees | D25: 2.93
A26: DOEF0209 | B26: Average number of trees per rural vegetation maintenance span | C26: Trees | D26: 3.97
A27: DOEF0210 | B27: Average number of defects per urban and CBD vegetation maintenance span | C27: Defects | D27: 2.94
A28: DOEF0211 | B28: Average number of defects per rural vegetation maintenance span | C28: Defects | D28: 3.99
A29: DOEF0212 | B29: Tropical proportion | C29: Spans | D29: 5816
A30: DOEF0213 | B30: Standard vehicle access | C30: km | D30: 3075 | E30: 3075 | F30: 3074 | G30: 3074 | H30: 3074 | I30: 3074 | J30: 3074
A31: DOEF0214 | B31: Bushfire risk | C31: Spans | D31: 0
A33: DOEF03 | B33: 3.7.3 - SERVICE AREA FACTORS
D34: Forecast
C35: Units | D35: 2022-23 | E35: 2023-24 | F35: 2024-25 | G35: 2025-26 | H35: 2026-27 | I35: 2027-28 | J35: 2028-29
A36: DOEF0301 | B36: Route Line length | C36: km | D36: 4748 | E36: 4752 | F36: 4757 | G36: 4762 | H36: 4767 | I36: 4772 | J36: 4776

Sheet 4.1 Public lighting
B1: =INDEX(dms_Worksheet_List,MATCH(dms_Model,dms_Model_List)) -> REGULATORY REPORTING STATEMENT
B2: =INDEX(dms_TradingNameFull_List,MATCH(dms_TradingName,dms_TradingName_List)) -> Power and Water Corporation
B3: =CONCATENATE("REGULATORY PERIOD FROM ", FRCP_y1," TO ",dms_MultiYear_FinalYear_Result) -> REGULATORY PERIOD FROM 2024-25 TO 2028-29
B4: 4.1 PUBLIC LIGHTING
B6: There are TWO tables on this worksheet. Each table has been grouped (and sub-grouped) for ease of navigation. See the Instructions sheet on how to group or ungroup tables.
B8: 4.1.2 - DESCRIPTOR METRICS ANNUALLY
D9: VOLUMES & EXPENDITURE
C10: Units | D10: =CRCP_y4 -> 2022-23 | E10: =CRCP_y5 -> 2023-24 | F10: =FRCP_y1 -> 2024-25 | G10: =FRCP_y2 -> 2025-26 | H10: =FRCP_y3 -> 2026-27 | I10: =FRCP_y4 -> 2027-28 | J10: =FRCP_y5 -> 2028-29
B11: LIGHT INSTALLATION
B12: Number of lights installed | C12: 0's
B13: Number of poles installed | C13: 0's
B14: Total expenditure | C14: $0's
B15: LIGHT REPLACEMENT
B16: Number of lights replaced | C16: 0's
B17: Number of poles replaced | C17: 0's
B18: Total expenditure | C18: $0's
B19: LIGHT MAINTENANCE
B20: Number of lights maintained | C20: 0's
B21: Number of poles maintained | C21: 0's
B22: Total expenditure | C22: $0's
B23: QUALITY OF SUPPLY
B24: Mean days to rectify/replace public lighting assets | C24: days
B25: GSO breaches | C25: 0's
B26: GSL payments | C26: $0's
B27: Customer complaints | C27: 0's
B31: 4.1.3 - COST METRICS
D32: =CONCATENATE("AVERAGE UNIT COST ($0's, real ",dms_DollarReal, ")") -> AVERAGE UNIT COST ($0's, real June 2024)
D33: =CRCP_y4 -> 2022-23 | E33: =CRCP_y5 -> 2023-24 | F33: =FRCP_y1 -> 2024-25 | G33: =FRCP_y2 -> 2025-26 | H33: =FRCP_y3 -> 2026-27 | I33: =FRCP_y4 -> 2027-28 | J33: =FRCP_y5 -> 2028-29
B34: LIGHT INSTALLATION
B95: LIGHT REPLACEMENT
B156: LIGHT MAINTENANCE

Sheet 5.4 MD & utilisation-Spatial
B1: =INDEX(dms_Worksheet_List,MATCH(dms_Model,dms_Model_List)) -> REGULATORY REPORTING STATEMENT
B2: =INDEX(dms_TradingNameFull_List,MATCH(dms_TradingName,dms_TradingName_List)) -> Power and Water Corporation
B3: =CONCATENATE("REGULATORY PERIOD FROM ", FRCP_y1," TO ",dms_MultiYear_FinalYear_Result) -> REGULATORY PERIOD FROM 2024-25 TO 2028-29
B4: 5.4 MAXIMUM DEMAND AND UTILISATION AT SPATIAL LEVEL
B6: There are two tables on this worksheet. The tables have been sub-grouped for ease of navigation. See the Instructions sheet on how to group or ungroup tables.
B8: 5.4.1 - NON-COINCIDENT & COINCIDENT MAXIMUM DEMAND
B9: SUBTRANSMISSION SUBSTATION
F10: DEMAND
B11: SUBSTATION | C11: FORECASTING ELEMENTS | D11: UNIT | E11: MAX DEMAND | F11: =CRCP_y4 -> 2022-23 | G11: =CRCP_y5 -> 2023-24 | H11: =FRCP_y1 -> 2024-25 | I11: =FRCP_y2 -> 2025-26 | J11: =FRCP_y3 -> 2026-27 | K11: =FRCP_y4 -> 2027-28 | L11: =FRCP_y5 -> 2028-29
B12: Hudson Creek (Darwin Katherine System) | C12: Substation Rating | D12: MVA | E12: Non-Coincident | F12: 411.6 | G12: 411.6 | H12: 411.6 | I12: 411.6 | J12: 411.6 | K12: 411.6 | L12: 411.6
E13: Coincident | F13: 411.6 | G13: 411.6 | H13: 411.6 | I13: 411.6 | J13: 411.6 | K13: 411.6 | L13: 411.6
C14: Raw Adjusted MD | D14: MW | E14: Non-Coincident
E15: Coincident
C16: Raw Adjusted MD | D16: MVA | E16: Non-Coincident
E17: Coincident
C18: Date MD occurred | E18: Non-Coincident
E19: Coincident
C20: Half hour time period MD occurred | E20: Non-Coincident
E21: Coincident
C22: Winter/Summer Peaking | E22: Non-Coincident | F22: Winter | G22: Winter | H22: Winter | I22: Winter | J22: Winter | K22: Winter | L22: Winter
E23: Coincident | F23: Summer | G23: Summer | H23: Summer | I23: Summer | J23: Summer | K23: Summer | L23: Summer
C24: Adjustments - Embedded generation | D24: MW | E24: Non-Coincident | F24: - | G24: - | H24: - | I24: - | J24: - | K24: - | L24: -
E25: Coincident | F25: - | G25: - | H25: - | I25: - | J25: - | K25: - | L25: -
C26: Weather Corrected 10% POE | D26: MW | E26: Non-Coincident | F26: 140.72708 | G26: 152.412 | H26: 164.8199 | I26: 166.3831 | J26: 167.08654 | K26: 0 | L26: 0
E27: Coincident | F27: 122.2918325 | G27: 132.446028 | H27: 143.2284931 | I27: 144.5869139 | J27: 145.1982033 | K27: 0 | L27: 0
C28: Weather Corrected MD 10% POE | D28: MVA | E28: Non-Coincident | F28: 144.04 | G28: 156 | H28: 168.7 | I28: 170.3 | J28: 171.02 | K28: 0 | L28: 0
E29: Coincident | F29: 125.17076 | G29: 135.564 | H29: 146.6003 | I29: 147.9907 | J29: 148.61638 | K29: 0 | L29: 0
C30: Weather Corrected MD 50% POE | D30: MW | E30: Non-Coincident | F30: 136.2915 | G30: 147.9178 | H30: 164.2337 | I30: 166.8716 | J30: 171.3658 | K30: 0 | L30: 0
E31: Coincident | F31: 118.301022 | G31: 128.3926504 | H31: 142.5548516 | I31: 144.8445488 | J31: 148.7455144 | K31: 0 | L31: 0
C32: Weather Corrected MD 50% POE | D32: MVA | E32: Non-Coincident | F32: 139.5 | G32: 151.4 | H32: 168.1 | I32: 170.8 | J32: 175.4 | K32: 0 | L32: 0
E33: Coincident | F33: 121.086 | G33: 131.4152 | H33: 145.9108 | I33: 148.2544 | J33: 152.2472 | K33: 0 | L33: 0
B34: Pine Creek (132/66kV) - (Darwin Katherine System) | C34: Substation Rating | D34: MVA | E34: Non-Coincident | F34: 30 | G34: 30 | H34: 30 | I34: 30 | J34: 30 | K34: 30 | L34: 30
E35: Coincident | F35: 30 | G35: 30 | H35: 30 | I35: 30 | J35: 30 | K35: 30 | L35: 30
C36: Raw Adjusted MD | D36: MW | E36: Non-Coincident
E37: Coincident
C38: Raw Adjusted MD | D38: MVA | E38: Non-Coincident
E39: Coincident
C40: Date MD occurred | E40: Non-Coincident
E41: Coincident
C42: Half hour time period MD occurred | E42: Non-Coincident
E43: Coincident
C44: Winter/Summer Peaking | E44: Non-Coincident | F44: Winter | G44: Winter | H44: Winter | I44: Winter | J44: Winter | K44: Winter | L44: Winter
E45: Coincident | F45: Summer | G45: Summer | H45: Summer | I45: Summer | J45: Summer | K45: Summer | L45: Summer
C46: Adjustments - Embedded generation | D46: MW | E46: Non-Coincident | F46: - | G46: - | H46: - | I46: - | J46: - | K46: - | L46: -
E47: Coincident | F47: - | G47: - | H47: - | I47: - | J47: - | K47: - | L47: -
C48: Weather Corrected 10% POE | D48: MW | E48: Non-Coincident | F48: 14.0832 | G48: 14.0832 | H48: 14.0832 | I48: 14.0832 | J48: 14.0832 | K48: 0 | L48: 0
E49: Coincident | F49: 7.4500128 | G49: 7.4500128 | H49: 7.4500128 | I49: 7.4500128 | J49: 7.4500128 | K49: 0 | L49: 0
C50: Weather Corrected MD 10% POE | D50: MVA | E50: Non-Coincident | F50: 14.4 | G50: 14.4 | H50: 14.4 | I50: 14.4 | J50: 14.4 | K50: 0 | L50: 0
E51: Coincident | F51: 7.6176 | G51: 7.6176 | H51: 7.6176 | I51: 7.6176 | J51: 7.6176 | K51: 0 | L51: 0
C52: Weather Corrected MD 50% POE | D52: MW | E52: Non-Coincident | F52: 14.0832 | G52: 14.0832 | H52: 14.0832 | I52: 14.0832 | J52: 14.0832 | K52: 0 | L52: 0
E53: Coincident | F53: 7.4218464 | G53: 7.4218464 | H53: 7.4218464 | I53: 7.4218464 | J53: 7.4218464 | K53: 0 | L53: 0
C54: Weather Corrected MD 50% POE | D54: MVA | E54: Non-Coincident | F54: 14.4 | G54: 14.4 | H54: 14.4 | I54: 14.4 | J54: 14.4 | K54: 0 | L54: 0
E55: Coincident | F55: 7.5888 | G55: 7.5888 | H55: 7.5888 | I55: 7.5888 | J55: 7.5888 | K55: 0 | L55: 0
B56: Pine Creek (66/11kV) - (Darwin Katherine System) | C56: Substation Rating | D56: MVA | E56: Non-Coincident | F56: 38.2 | G56: 38.2 | H56: 38.2 | I56: 38.2 | J56: 38.2 | K56: 38.2 | L56: 38.2
E57: Coincident | F57: 38.2 | G57: 38.2 | H57: 38.2 | I57: 38.2 | J57: 38.2 | K57: 38.2 | L57: 38.2
C58: Raw Adjusted MD | D58: MW | E58: Non-Coincident
E59: Coincident
C60: Raw Adjusted MD | D60: MVA | E60: Non-Coincident
E61: Coincident
C62: Date MD occurred | E62: Non-Coincident
E63: Coincident
C64: Half hour time period MD occurred | E64: Non-Coincident
E65: Coincident
C66: Winter/Summer Peaking | E66: Non-Coincident | F66: Winter | G66: Winter | H66: Winter | I66: Winter | J66: Winter | K66: Winter | L66: Winter
E67: Coincident | F67: Summer | G67: Summer | H67: Summer | I67: Summer | J67: Summer | K67: Summer | L67: Summer
C68: Adjustments - Embedded generation | D68: MW | E68: Non-Coincident | F68: - | G68: - | H68: - | I68: - | J68: - | K68: - | L68: -
E69: Coincident | F69: - | G69: - | H69: - | I69: - | J69: - | K69: - | L69: -
C70: Weather Corrected 10% POE | D70: MW | E70: Non-Coincident | F70: 22.3552 | G70: 22.3552 | H70: 22.3552 | I70: 22.3552 | J70: 22.3552 | K70: 0 | L70: 0
E71: Coincident | F71: 15.4921536 | G71: 15.4921536 | H71: 15.4921536 | I71: 15.4921536 | J71: 15.4921536 | K71: 0 | L71: 0
C72: Weather Corrected MD 10% POE | D72: MVA | E72: Non-Coincident | F72: 22.4 | G72: 22.4 | H72: 22.4 | I72: 22.4 | J72: 22.4 | K72: 0 | L72: 0
E73: Coincident | F73: 15.5232 | G73: 15.5232 | H73: 15.5232 | I73: 15.5232 | J73: 15.5232 | K73: 0 | L73: 0
C74: Weather Corrected MD 50% POE | D74: MW | E74: Non-Coincident | F74: 22.2554 | G74: 22.2554 | H74: 22.2554 | I74: 22.2554 | J74: 22.2554 | K74: 0 | L74: 0
E75: Coincident | F75: 15.356226 | G75: 15.356226 | H75: 15.356226 | I75: 15.356226 | J75: 15.356226 | K75: 0 | L75: 0
C76: Weather Corrected MD 50% POE | D76: MVA | E76: Non-Coincident | F76: 22.3 | G76: 22.3 | H76: 22.3 | I76: 22.3 | J76: 22.3 | K76: 0 | L76: 0
E77: Coincident | F77: 15.387 | G77: 15.387 | H77: 15.387 | I77: 15.387 | J77: 15.387 | K77: 0 | L77: 0
B78: Lovegrove (66/22 kV) (Alice Springs System) | C78: Substation Rating | D78: MVA | E78: Non-Coincident | F78: 95.6 | G78: 95.6 | H78: 95.6 | I78: 95.6 | J78: 95.6 | K78: 95.6 | L78: 95.6
E79: Coincident | F79: 95.6 | G79: 95.6 | H79: 95.6 | I79: 95.6 | J79: 95.6 | K79: 95.6 | L79: 95.6
C80: Raw Adjusted MD | D80: MW | E80: Non-Coincident
E81: Coincident
C82: Raw Adjusted MD | D82: MVA | E82: Non-Coincident
E83: Coincident
C84: Date MD occurred | E84: Non-Coincident
E85: Coincident
C86: Half hour time period MD occurred | E86: Non-Coincident
E87: Coincident
C88: Winter/Summer Peaking | E88: Non-Coincident | F88: Summer | G88: Summer | H88: Summer | I88: Summer | J88: Summer | K88: Summer | L88: Summer
E89: Coincident | F89: Summer | G89: Summer | H89: Summer | I89: Summer | J89: Summer | K89: Summer | L89: Summer
C90: Adjustments - Embedded generation | D90: MW | E90: Non-Coincident | F90: - | G90: - | H90: - | I90: - | J90: - | K90: - | L90: -
E91: Coincident | F91: - | G91: - | H91: - | I91: - | J91: - | K91: - | L91: -
C92: Weather Corrected 10% POE | D92: MW | E92: Non-Coincident | F92: 22.3214 | G92: 21.4592 | H92: 20.597 | I92: 20.5012 | J92: 20.2138 | K92: 19.9264 | L92: 20.0222
E93: Coincident | F93: 15.3571232 | G93: 14.7639296 | H93: 14.170736 | I93: 14.1048256 | J93: 13.9070944 | K93: 13.7093632 | L93: 13.7752736
C94: Weather Corrected MD 10% POE | D94: MVA | E94: Non-Coincident | F94: 23.3 | G94: 22.4 | H94: 21.5 | I94: 21.4 | J94: 21.1 | K94: 20.8 | L94: 20.9
E95: Coincident | F95: 16.0304 | G95: 15.4112 | H95: 14.792 | I95: 14.7232 | J95: 14.5168 | K95: 14.3104 | L95: 14.3792
C96: Weather Corrected MD 50% POE | D96: MW | E96: Non-Coincident | F96: 20.9802 | G96: 19.88808 | H96: 19.8306 | I96: 19.7348 | J96: 19.5432 | K96: 19.16 | L96: 19.02588
E97: Coincident | F97: 14.371437 | G97: 13.6233348 | H97: 13.583961 | I97: 13.518338 | J97: 13.387092 | K97: 13.1246 | L97: 13.0327278
C98: Weather Corrected MD 50% POE | D98: MVA | E98: Non-Coincident | F98: 21.9 | G98: 20.76 | H98: 20.7 | I98: 20.6 | J98: 20.4 | K98: 20 | L98: 19.86
E99: Coincident | F99: 15.0015 | G99: 14.2206 | H99: 14.1795 | I99: 14.111 | J99: 13.974 | K99: 13.7 | L99: 13.6041
B100: Owen Springs (Alice Springs System) | C100: Substation Rating | D100: MVA | E100: Non-Coincident | F100: 130.7 | G100: 130.7 | H100: 130.7 | I100: 130.7 | J100: 130.7 | K100: 130.7 | L100: 130.7
E101: Coincident | F101: 130.7 | G101: 130.7 | H101: 130.7 | I101: 130.7 | J101: 130.7 | K101: 130.7 | L101: 130.7
C102: Raw Adjusted MD | D102: MW | E102: Non-Coincident
E103: Coincident
C104: Raw Adjusted MD | D104: MVA | E104: Non-Coincident
E105: Coincident
C106: Date MD occurred | E106: Non-Coincident
E107: Coincident
C108: Half hour time period MD occurred | E108: Non-Coincident
E109: Coincident
C110: Winter/Summer Peaking | E110: Non-Coincident | F110: Summer | G110: Summer | H110: Summer | I110: Summer | J110: Summer | K110: Summer | L110: Summer
E111: Coincident | F111: Summer | G111: Summer | H111: Summer | I111: Summer | J111: Summer | K111: Summer | L111: Summer
C112: Adjustments - Embedded generation | D112: MW | E112: Non-Coincident | F112: - | G112: - | H112: - | I112: - | J112: - | K112: - | L112: -
E113: Coincident | F113: - | G113: - | H113: - | I113: - | J113: - | K113: - | L113: -
C114: Weather Corrected 10% POE | D114: MW | E114: Non-Coincident | F114: 23.2 | G114: 25.4272 | H114: 27.4688 | I114: 27.4688 | J114: 27.1904 | K114: 26.912 | L114: 27.0048
E115: Coincident | F115: 13.4792 | G115: 14.7732032 | H115: 15.9593728 | I115: 15.9593728 | J115: 15.7976224 | K115: 15.635872 | L115: 15.6897888
C116: Weather Corrected MD 10% POE | D116: MVA | E116: Non-Coincident | F116: 25 | G116: 27.4 | H116: 29.6 | I116: 29.6 | J116: 29.3 | K116: 29 | L116: 29.1
E117: Coincident | F117: 14.525 | G117: 15.9194 | H117: 17.1976 | I117: 17.1976 | J117: 17.0233 | K117: 16.849 | L117: 16.9071
C118: Weather Corrected MD 50% POE | D118: MW | E118: Non-Coincident | F118: 21.9936 | G118: 24.0352 | H118: 26.8192 | I118: 26.7264 | J118: 26.5408 | K118: 26.1696 | L118: 26.0768
E119: Coincident | F119: 12.756288 | G119: 13.940416 | H119: 15.555136 | I119: 15.501312 | J119: 15.393664 | K119: 15.178368 | L119: 15.124544
C120: Weather Corrected MD 50% POE | D120: MVA | E120: Non-Coincident | F120: 23.7 | G120: 25.9 | H120: 28.9 | I120: 28.8 | J120: 28.6 | K120: 28.2 | L120: 28.1
E121: Coincident | F121: 13.746 | G121: 15.022 | H121: 16.762 | I121: 16.704 | J121: 16.588 | K121: 16.356 | L121: 16.298
B122: <Enter substation name> | C122: Substation Rating | D122: MVA | E122: Non-Coincident
E123: Coincident
C124: Raw Adjusted MD | D124: MW | E124: Non-Coincident
E125: Coincident
C126: Raw Adjusted MD | D126: MVA | E126: Non-Coincident
E127: Coincident
C128: Date MD occurred | E128: Non-Coincident
E129: Coincident
C130: Half hour time period MD occurred | E130: Non-Coincident
E131: Coincident
C132: Winter/Summer Peaking | E132: Non-Coincident
E133: Coincident
C134: Adjustments - Embedded generation | D134: MW | E134: Non-Coincident
E135: Coincident
C136: Weather Corrected 10% POE | D136: MW | E136: Non-Coincident
E137: Coincident
C138: Weather Corrected MD 10% POE | D138: MVA | E138: Non-Coincident
E139: Coincident
C140: Weather Corrected MD 50% POE | D140: MW | E140: Non-Coincident
E141: Coincident
C142: Weather Corrected MD 50% POE | D142: MVA | E142: Non-Coincident
E143: Coincident
B144: <Enter substation name> | C144: Substation Rating | D144: MVA | E144: Non-Coincident
E145: Coincident
C146: Raw Adjusted MD | D146: MW | E146: Non-Coincident
E147: Coincident
C148: Raw Adjusted MD | D148: MVA | E148: Non-Coincident
E149: Coincident
C150: Date MD occurred | E150: Non-Coincident
E151: Coincident
C152: Half hour time period MD occurred | E152: Non-Coincident
E153: Coincident
C154: Winter/Summer Peaking | E154: Non-Coincident
E155: Coincident
C156: Adjustments - Embedded generation | D156: MW | E156: Non-Coincident
E157: Coincident
C158: Weather Corrected 10% POE | D158: MW | E158: Non-Coincident
E159: Coincident
C160: Weather Corrected MD 10% POE | D160: MVA | E160: Non-Coincident
E161: Coincident
C162: Weather Corrected MD 50% POE | D162: MW | E162: Non-Coincident
E163: Coincident
C164: Weather Corrected MD 50% POE | D164: MVA | E164: Non-Coincident
E165: Coincident
B166: <Enter substation name> | C166: Substation Rating | D166: MVA | E166: Non-Coincident
E167: Coincident
C168: Raw Adjusted MD | D168: MW | E168: Non-Coincident
E169: Coincident
C170: Raw Adjusted MD | D170: MVA | E170: Non-Coincident
E171: Coincident
C172: Date MD occurred | E172: Non-Coincident
E173: Coincident
C174: Half hour time period MD occurred | E174: Non-Coincident
E175: Coincident
C176: Winter/Summer Peaking | E176: Non-Coincident
E177: Coincident
C178: Adjustments - Embedded generation | D178: MW | E178: Non-Coincident
E179: Coincident
C180: Weather Corrected 10% POE | D180: MW | E180: Non-Coincident
E181: Coincident
C182: Weather Corrected MD 10% POE | D182: MVA | E182: Non-Coincident
E183: Coincident
C184: Weather Corrected MD 50% POE | D184: MW | E184: Non-Coincident
E185: Coincident
C186: Weather Corrected MD 50% POE | D186: MVA | E186: Non-Coincident
E187: Coincident
B188: <Enter substation name> | C188: Substation Rating | D188: MVA | E188: Non-Coincident
E189: Coincident
C190: Raw Adjusted MD | D190: MW | E190: Non-Coincident
E191: Coincident
C192: Raw Adjusted MD | D192: MVA | E192: Non-Coincident
E193: Coincident
C194: Date MD occurred | E194: Non-Coincident
E195: Coincident
C196: Half hour time period MD occurred | E196: Non-Coincident
E197: Coincident
C198: Winter/Summer Peaking | E198: Non-Coincident
E199: Coincident
C200: Adjustments - Embedded generation | D200: MW | E200: Non-Coincident
E201: Coincident
C202: Weather Corrected 10% POE | D202: MW | E202: Non-Coincident
... 11370 more rows

Sheet 6.2 Reliability & Cust serv
B1: =INDEX(dms_Worksheet_List,MATCH(dms_Model,dms_Model_List)) -> REGULATORY REPORTING STATEMENT
B2: =INDEX(dms_TradingNameFull_List,MATCH(dms_TradingName,dms_TradingName_List)) -> Power and Water Corporation
B3: =CONCATENATE("REGULATORY PERIOD FROM ", FRCP_y1," TO ",dms_MultiYear_FinalYear_Result) -> REGULATORY PERIOD FROM 2024-25 TO 2028-29
B4: 6.2 RELIABILITY AND CUSTOMER SERVICE PERFORMANCE
B6: There are FIVE tables on this worksheet. Each table has been grouped for ease of navigation. See the Instructions sheet on how to group or ungroup tables.
B8: 6.2.1 - UNPLANNED MINUTES OFF SUPPLY (SAIDI)
E9: Proposed target
B10: SAIDI | E10: =FRCP_y1 -> 2024-25 | F10: =FRCP_y2 -> 2025-26 | G10: =FRCP_y3 -> 2026-27 | H10: =FRCP_y4 -> 2027-28 | I10: =FRCP_y5 -> 2028-29
B11: Total sustained minutes off supply after removing excluded events
B12: =INDEX(dms_FeederName_1,MATCH(dms_TradingName,dms_TradingName_List)) -> CBD | E12: 4 | F12: 4 | G12: 4 | H12: 4 | I12: 4
B13: =INDEX(dms_FeederName_2,MATCH(dms_TradingName,dms_TradingName_List)) -> Urban | E13: 80 | F13: 80 | G13: 80 | H13: 80 | I13: 80
B14: =INDEX(dms_FeederName_3,MATCH(dms_TradingName,dms_TradingName_List)) -> Short rural | E14: 190 | F14: 190 | G14: 190 | H14: 190 | I14: 190
B15: =INDEX(dms_FeederName_4,MATCH(dms_TradingName,dms_TradingName_List)) -> Long rural | E15: 1260 | F15: 1260 | G15: 1260 | H15: 1260 | I15: 1260
B16: =IF(ISBLANK(INDEX(dms_FeederName_5,MATCH(dms_TradingName,dms_TradingName_List))),"",INDEX(dms_FeederName_5,MATCH(dms_TradingName,dms_TradingName_List))) -> 
B17: Total | E17: =SUM(E12:E16) -> 1534 | F17: =SUM(F12:F16) -> 1534 | G17: =SUM(G12:G16) -> 1534 | H17: =SUM(H12:H16) -> 1534 | I17: =SUM(I12:I16) -> 1534
B20: 6.2.2 - UNPLANNED INTERRUPTIONS TO SUPPLY (SAIFI)
E21: Proposed target
B22: SAIFI | E22: =FRCP_y1 -> 2024-25 | F22: =FRCP_y2 -> 2025-26 | G22: =FRCP_y3 -> 2026-27 | H22: =FRCP_y4 -> 2027-28 | I22: =FRCP_y5 -> 2028-29
B23: Total sustained interruptions after removing excluded events
B24: =INDEX(dms_FeederName_1,MATCH(dms_TradingName,dms_TradingName_List)) -> CBD | E24: 0.1 | F24: 0.1 | G24: 0.1 | H24: 0.1 | I24: 0.1
B25: =INDEX(dms_FeederName_2,MATCH(dms_TradingName,dms_TradingName_List)) -> Urban | E25: 1.4 | F25: 1.4 | G25: 1.4 | H25: 1.4 | I25: 1.4
B26: =INDEX(dms_FeederName_3,MATCH(dms_TradingName,dms_TradingName_List)) -> Short rural | E26: 3 | F26: 3 | G26: 3 | H26: 3 | I26: 3
B27: =INDEX(dms_FeederName_4,MATCH(dms_TradingName,dms_TradingName_List)) -> Long rural | E27: 15 | F27: 15 | G27: 15 | H27: 15 | I27: 15
B28: =IF(ISBLANK(INDEX(dms_FeederName_5,MATCH(dms_TradingName,dms_TradingName_List))),"",INDEX(dms_FeederName_5,MATCH(dms_TradingName,dms_TradingName_List))) -> 
B29: Total | E29: =SUM(E24:E28) -> 19.5 | F29: =SUM(F24:F28) -> 19.5 | G29: =SUM(G24:G28) -> 19.5 | H29: =SUM(H24:H28) -> 19.5 | I29: =SUM(I24:I28) -> 19.5
B32: 6.2.3 - UNPLANNED MOMENTARY INTERRUPTIONS TO SUPPLY (MAIFI)
E33: Proposed target
B34: MAIFI | E34: =FRCP_y1 -> 2024-25 | F34: =FRCP_y2 -> 2025-26 | G34: =FRCP_y3 -> 2026-27 | H34: =FRCP_y4 -> 2027-28 | I34: =FRCP_y5 -> 2028-29
B35: Total momentary interruptions after removing excluded events
B36: =INDEX(dms_FeederName_1,MATCH(dms_TradingName,dms_TradingName_List)) -> CBD
B37: =INDEX(dms_FeederName_2,MATCH(dms_TradingName,dms_TradingName_List)) -> Urban
B38: =INDEX(dms_FeederName_3,MATCH(dms_TradingName,dms_TradingName_List)) -> Short rural
B39: =INDEX(dms_FeederName_4,MATCH(dms_TradingName,dms_TradingName_List)) -> Long rural
B40: =IF(ISBLANK(INDEX(dms_FeederName_5,MATCH(dms_TradingName,dms_TradingName_List))),"",INDEX(dms_FeederName_5,MATCH(dms_TradingName,dms_TradingName_List))) -> 
B41: Total | E41: =SUM(E36:E40) -> 0 | F41: =SUM(F36:F40) -> 0 | G41: =SUM(G36:G40) -> 0 | H41: =SUM(H36:H40) -> 0 | I41: =SUM(I36:I40) -> 0
B44: 6.2.3(B) - UNPLANNED MOMENTARY INTERRUPTIONS TO SUPPLY (MAIFIe)
E45: Proposed target
B46: MAIFIe | E46: =FRCP_y1 -> 2024-25 | F46: =FRCP_y2 -> 2025-26 | G46: =FRCP_y3 -> 2026-27 | H46: =FRCP_y4 -> 2027-28 | I46: =FRCP_y5 -> 2028-29
B47: Total momentary interruptions after removing excluded events
B48: =INDEX(dms_FeederName_1,MATCH(dms_TradingName,dms_TradingName_List)) -> CBD
B49: =INDEX(dms_FeederName_2,MATCH(dms_TradingName,dms_TradingName_List)) -> Urban
B50: =INDEX(dms_FeederName_3,MATCH(dms_TradingName,dms_TradingName_List)) -> Short rural
B51: =INDEX(dms_FeederName_4,MATCH(dms_TradingName,dms_TradingName_List)) -> Long rural
B52: =IF(ISBLANK(INDEX(dms_FeederName_5,MATCH(dms_TradingName,dms_TradingName_List))),"",INDEX(dms_FeederName_5,MATCH(dms_TradingName,dms_TradingName_List))) -> 
B53: Total | E53: =SUM(E48:E52) -> 0 | F53: =SUM(F48:F52) -> 0 | G53: =SUM(G48:G52) -> 0 | H53: =SUM(H48:H52) -> 0 | I53: =SUM(I48:I52) -> 0
B56: The number of distribution customers is calculated as the average of the number of customers at the beginning of the reporting period and the number of customers at the end of the reporting period.
B58: 6.2.4 - DISTRIBUTION CUSTOMER NUMBERS
C59: Forecast
B60: Average customer numbers | C60: =CRCP_y4 -> 2022-23 | D60: =CRCP_y5 -> 2023-24 | E60: =FRCP_y1 -> 2024-25 | F60: =FRCP_y2 -> 2025-26 | G60: =FRCP_y3 -> 2026-27 | H60: =FRCP_y4 -> 2027-28 | I60: =FRCP_y5 -> 2028-29
B61: =INDEX(dms_FeederName_1,MATCH(dms_TradingName,dms_TradingName_List)) -> CBD | C61: 6167.652487 | D61: 6213.790899 | E61: 6259.571135 | F61: 6305.404171 | G61: 6351.291414 | H61: 6397.23431 | I61: 6443.234345
B62: =INDEX(dms_FeederName_2,MATCH(dms_TradingName,dms_TradingName_List)) -> Urban | C62: 26253.91505 | D62: 26450.31294 | E62: 26645.18618 | F62: 26840.28418 | G62: 27035.61291 | H62: 27231.17855 | I62: 27426.98741
B63: =INDEX(dms_FeederName_3,MATCH(dms_TradingName,dms_TradingName_List)) -> Short rural | C63: 49903.35765 | D63: 50276.67013 | E63: 50647.08457 | F63: 51017.92621 | G63: 51389.20645 | H63: 51760.93699 | I63: 52133.12984
B64: =INDEX(dms_FeederName_4,MATCH(dms_TradingName,dms_TradingName_List)) -> Long rural | C64: 1000.34743 | D64: 1007.830737 | E64: 1015.255952 | F64: 1022.68973 | G64: 1030.1323 | H64: 1037.583896 | I64: 1045.04476
B65: =IF(ISBLANK(INDEX(dms_FeederName_5,MATCH(dms_TradingName,dms_TradingName_List))),"",INDEX(dms_FeederName_5,MATCH(dms_TradingName,dms_TradingName_List))) -> 
B66: Total | C66: =SUM(C61:C65) -> 83325.27261 | D66: 83948.60471 | E66: 84567.09784 | F66: 85186.30429 | G66: 85806.24308 | H66: 86426.93375 | I66: 87048.39636
B68: The AER's definition of calls answered within 30 seconds is as follows: Calls to the fault line answered in 30 seconds where the time to answer a call is measured from when the call enters the telephone system of the call centre (including that time when it may be ringing unanswered by any response) and the caller speaks with a human operator, but excluding the time that the caller is connected to an automated interactive service that provides substantive information. This measure does not apply to: - calls to payment lines and automated interactive services; - calls abandoned by the customer within 30 seconds of the call being queued for response by a human operator. Where the time in which a telephone call is abandoned is not measured, then an estimate of the number of calls abandoned within 30 seconds will be determined by taking 20 per cent of all calls abandoned. Note: Being placed in a queuing system (automated or otherwise) does not constitute a response. 'Calls answered within 30 seconds' and 'Calls received' should be calculated excluding calls abandoned within 30 seconds of being queued for a human operator; and calls to payment lines and automated interactive services.
B70: 6.2.5 - CUSTOMER SERVICE
E71: Proposed target
E72: =FRCP_y1 -> 2024-25 | F72: =FRCP_y2 -> 2025-26 | G72: =FRCP_y3 -> 2026-27 | H72: =FRCP_y4 -> 2027-28 | I72: =FRCP_y5 -> 2028-29
B73: Number of calls received | E73: 18500 | F73: 18500 | G73: 18500 | H73: 18500 | I73: 18500
B74: Number of calls answered within 30 seconds | E74: 12750 | F74: 12750 | G74: 12750 | H74: 12750 | I74: 12750
B75: Percentage of calls answered within 30 seconds | E75: =IFERROR((E74/E73),"") -> 0.6891891892 | F75: =IFERROR((F74/F73),"") -> 0.6891891892 | G75: =IFERROR((G74/G73),"") -> 0.6891891892 | H75: =IFERROR((H74/H73),"") -> 0.6891891892 | I75: =IFERROR((I74/I73),"") -> 0.6891891892

Sheet 7.1 Policies and Procedures
B1: =INDEX(dms_Worksheet_List,MATCH(dms_Model,dms_Model_List)) -> REGULATORY REPORTING STATEMENT
B2: =INDEX(dms_TradingNameFull_List,MATCH(dms_TradingName,dms_TradingName_List)) -> Power and Water Corporation
B3: =CONCATENATE("REGULATORY PERIOD FROM ", FRCP_y1," TO ",dms_MultiYear_FinalYear_Result) -> REGULATORY PERIOD FROM 2024-25 TO 2028-29
B4: 7.1 PLANS, POLICIES, PROCEDURES AND STRATEGIES
B6: 7.1.1 - PLANS, POLICIES, PROCEDURES AND STRATEGIES
C7: Brief description | D7: Relevance to regulatory proposal | E7: Expenditure impact
C8: Description of the plan, policy, procedure or strategy. | D8: Identify the element of the proposal/supporting documents that the policy, plan, procedure or strategy is relevant to e.g. replacement capex, capacity utilisation thresholds, opex | E8: Is this policy, plan or procedure identified in the response to section 4 'Step Changes' of the notice (yes or no)?
B9: Corporate
B10: Statement of Corporate Intent | C10: Our Statement of Corporate Intent (SCI) sets out the Corporation’s strategies, objectives, initiatives, financial plans and major risks and represents the primary agreement between the Board and the Shareholding Minister. | D10: The SCI covers the the whole corporation not just the Power Networks area. However, the works program outlined in our SCI aligns with the capex and opex forecasts in the Regulatory Proposal. Our SCI is relevant to our entire capex and opex program. | E10: No
B13: Governance framework
B14: Environmental policy statement | C14: Our policy is to minimise our impact on the environment and comply with relevant legislation. | D14: When developing our plans we design plans to minimise the environmental impact and the use of resources. | E14: No
B15: Health and safety policy statement | C15: This is our policy statement committing to the protection of our workers and the public | D15: We designed our network with appropropriate standards to ensure people around them are safe. We also plan any work in accordance with best practice to maximise cost efficiency, but also to ensure safety. | E15: No
B16: Risk Management Foundation Document Risk Management Policy | C16: This Risk Management Policy introduces Power and Water's Risk Management Framework. It includes a definition of risk as it applies to Power and Water, a clear risk policy statement and key risk management responsibilities for employees. | D16: This policy underlies our decisions about risk, therefore our capital and operating expenditure plans are implicitly informed by our decisions on risk. | E16: No
B17: Capital Investment and Delivery Policy | C17: To ensure that Power and Water's capital investments achieve value for money, through prudent decision making and efficient and effective delivery. | D17: This policy sets out how our investment decisions are approved and on what basis. At each stage of the investment process we ensure our plans will deliver value for money. | E17: No
B18: Compliance Policy | C18: This policy covers Power and Water's obligations to comply with all applicable legislation, regulations, licences, standards, codes and other legal instruments that relate to its operations. | D18: When we plan our expenditure program we aim to meet appropriate standards and to comply with relevant legislation. | E18: No
B31: Accounting policies, procedures and methodologies (including a capitalisation policy, depreciation policy and an approved expenditure allocation methodology)
B32: Fixed Asset Plan/Capitalisation Policy | C32: This plan sets out all activities relating to fixed assets. | D32: This is the Corporate statutory capitalisation policy and underpins the regulatory approach to capitalisation. | E32: No
B35: Asset management plan or equivalent documentation
B36: Asset Management Policies
B37: Asset Management Policy | C37: The asset management policy sets our objectives in relation to how we make asset related decisions, including whether to repair or decommission and replace assets though their lives. | D37: This policy underpins our main network expenditure programs. | E37: No
B38: Risk and compliance policy statement | C38: This statement covers Power and Water’s responsibility to effectively and systematically identify, manage and treat risk and to comply with all relevant legislative, regulatory and commercial obligations, and best practice standards. It directly supports all of the Key Result Areas in our Statement of Corporate Intent – health and safety; people and culture; financial performance; operational performance; and customer – and related Risk Appetite and Tolerance Statements. | D38: This statement underpins our main network expenditure programs. | E38: No
B39: Risk Quantification Procedure | C39: The Risk Quantification Procedure defines the economic impact (benefits / costs) to the community that are expected to arise from the occurrence of events (e.g. asset failure) across different value dimensions. | D39: These plans underpin our main network expenditure programs. | E39: No
B40: Power Services Asset Strategies Procedure | C40: The procedure reflects Power and Water's current maintenance strategy, activities and frequency for the majority of network asset classes, and relevant information where changes to strategies have been made over time since the procedure was established. | D40: These plans underpin our main network expenditure programs. | E40: No
B41: Asset Management Strategies
B42: Meter Asset Management Strategy | C42: The purpose of this Meter Asset Management Strategy (MAMS) is 1. to describe the Corporation’s overall approach to maintenance, testing, inspection, and auditing of metering installations, 2. to ensure compliance with the Chapter 7A of the National Electricity Rules (Northern Territory) and 3. to satisfy the requirements of the Northern Territory Electricity System Market Operator (NTESMO). | D42: These plans underpin our meter rollout programs. | E42: No
B43: Fleet Strategy | C43: This Strategy describes our strategic approach, asset management plan and expenditure forecasts in relation to our fleet of vehicles required to deliver our regulated network services for the next regulatory9 period, including passenger and light commercial vehicles, heavy vehicles such as Elevated Work Platforms (EWP), cranes and trucks. This document outlines the key challenges and opportunities that are faced by Power and Water’s fleet for its regulated business. | D43: These plans underpin our main network expenditure programs. | E43: No
B44: Property Strategy | C44: This Strategy describes our approach, asset management plan and expenditure forecasts for the 2024-29 period in relation to property and buildings expenditure relating to the maintenance, refurbishment and optimisation of offices, operational depots, warehouses, training facilities and other specialist facilities used by our regulated electricity network. | D44: These plans underpin our main network expenditure programs. | E44: No
B46: Asset Management Plans
B47: Asset Management Plans | C47: The purpose of this asset management plans is to define our approach to managing each type of assets (eg power transfromers, cables, etc). It frames the rationale and direction that underpins the management of these assets into the future. | D47: These plans underpin our main network expenditure programs. | E47: No
B48: Strategic Asset Management Plan | C48: The strategic asset management plan describes how our asset management systems and strategies are aligned with our asset management policy. | D48: This plan underpins our main network expenditure programs. | E48: No
B71: Capital expenditure policies and procedures (including capex approval policies and procedures and replacement policy)
B72: Proposed Customer Connection Services Policy | C72: This Connection Policy sets out the circumstances in which Power and Water requires a retail customer or real estate developer to pay a connection charge and how these charges are calculated for the provision of connection services. | D72: This policy is relevant for our capital connections forecast. | E72: Yes
B73: Maximum Demand And Customer Connections | C73: AEMO has prepared this document on behalf of Power and Water to provide information about the methodology, data and assumptions used for forecasting maximum demand and customer connections for the three networks in Darwin-Katherine, Tennant Creek and Alice Springs, as at the date of publication. | D73: This procedure has been used to develop the demand and customer forecast that underpins the augmentation and customer connections capex for the forecast period. | E73: No
B74: Future Network Strategy (Including DER Integration Strategy) | C74: The Future Network Strategy (Including DER Integration Strategy) outlines actions and initiatives that we can commence now to ensure Power and Water is in the best position to meet evolving customer needs. | D74: These plans underpin our main network expenditure programs. | E74: No
B75: Capex Delivery Plan | C75: The Capital Delivery Plan outlines Power and Water’s strategy and approach for capital delivery with a focus on the 2024-29 regulatory period. Power and Water will continue to ensure the right capacity and capability is available to deliver a prudent and efficient capital program | D75: These plans underpin our main network expenditure programs. | E75: No
B77: Internal standards for network planning, design, maintenance and operation
B78: System Control Technical Code | C78: The System Control Technical Code sets out the Power System Controller’s competitively neutral operating protocols, arrangements for system security and system dispatch, as well as arrangements for the interruption of supply. The Code places obligations on system participants, including Power Networks to ensure system security. | D78: The Code underpins a number of obligations that Power Networks must meet, influencing capital and operational expenditure. | E78: No
B79: Network Technical Code and Network Planning Criteria | C79: The Network Technical Code sets out technical requirements designed to ensure that the network and the customer installations and equipment connected to the network may be operated and maintained in a secure and reliable manner. The Network Planning Criteria are designed to ensure that new loads and Generators connected to the network do not compromise the security and reliability of supply to all network users. This document also outlines the legislative requirements that apply to Power and Water Networks and to customers seeking access to its regulated electrical networks. | D79: Please note that the capital and operating expenditure forecasts of Power and Water's regulatory proposal are based on the proposed Network Planning Criteria. | E79: No
B157: Procurement and contracting out policies
B158: Power and Water Corporation's Procurement Framework | C158: The policy establishes the overarching principles for undertaking procurement. The Procurement Sourcing Rules, delegations and guidelines set out the ‘how to’ and mandatory procedures for various procurements. | D158: When we procure external services, materials or other items, we will apply our procurement plan. | E158: No
B160: Information technology policies or strategies
B161: ICT Strategy | C161: This document sets out Power and Water’s Information and Communications Technology strategy for the ten-year period starting 1 July 2017. | D161: This strategy underpins Power and Water's ICT capital program. | E161: No
B162: ICT Capital Expenditure Plan | C162: This document describes and justifies Power and Water’s non-network, information, communication and technology (ICT) forecast capital expenditure. | D162: This document describes and justifies Power and Water’s non-network, ICT forecast capital expenditure for Standard Control Services in its first 5-year Regulatory Control Period (RCP1). It also demonstrates how Power and Water’s ICT forecast capital expenditure meets the objectives, criteria and factors set out in the National Electricity Rules (NER) | E162: No
B197: Demand management policies or strategies
B198: Power Networks Demand Management Procedure | C198: The purpose of this document is to establish the process by which Power Networks will assess the viability of demand management or other non-network solutions for its capital projects and pursue demand management or other non-network alternatives to network investment where they prove to be economically feasible. | D198: This Procedure has been utilised where appropriate during development of Power and Water's capital expenditure forecasts. | E198: No
B201: Self insurance guidelines or policy
B204: Land and easement acquisition polices
B209: Asset security plans and policies
B210: Protective Security Management Policy | C210: This Policy outlines Power and Water's commitment to protecting the security of its people, information and assets by managing security risks proportionately and effectively. | D210: This Procedure has been utilised where appropriate during development of Power and Water's capital expenditure forecasts. | E210: No
B220: Disaster recovery policy
B221: Power and Water Corporation Emergency Management Plan | C221: Outlines Power and Waters plan for protecting its people, infrastructure and assets by managing its emergency management risks proportionately and effectively. | D221: This plan underpins the framework that outlines how we plan for and respond during emergency events. It influence both our capital and operational expenditure forecasts. | E221: No

Sheet 7.2 Contingent projects
B1: =INDEX(dms_Worksheet_List,MATCH(dms_Model,dms_Model_List)) -> REGULATORY REPORTING STATEMENT
B2: =INDEX(dms_TradingNameFull_List,MATCH(dms_TradingName,dms_TradingName_List)) -> Power and Water Corporation
B3: =CONCATENATE("REGULATORY PERIOD FROM ", FRCP_y1," TO ",dms_MultiYear_FinalYear_Result) -> REGULATORY PERIOD FROM 2024-25 TO 2028-29
B4: 7.2 CONTINGENT PROJECTS
B6: 7.2.1 - PROPOSED CONTINGENT PROJECTS FOR THE FORTHCOMING REGULATORY CONTROL PERIOD
B7: Proposed contingent project name | C7: Proposed contingent capital expenditure ($0's, nominal) | D7: Proposed trigger events | E7: =CONCATENATE("Proposed annual revenue requirement for ", FRCP_y1, " ($0's, nominal)") -> Proposed annual revenue requirement for 2024-25 ($0's, nominal) | F7: =CONCATENATE("5% of the annual revenue requirement for ",FRCP_y1,"") -> 5% of the annual revenue requirement for 2024-25
B8: Renewable Energy Hub | C8: 126197065.9 | D8: We have identified two triggers for the project: 1. A formal notification from a NTG Minister to Power and Water Corporation, advising that the NTG wishes to provide for a Renewable Energy Hub at a site near Darwin and advising the approximate required capacity and location of that hub; and 2. The completion of a RIT-T by Power and Water that meets the following: a) Identifies a need to undertake shared transmission works to convey generation from a Renewable Energy Hub near Darwin within the regulatory period. b) Identifies a preferred option consistent with the RIT‐T guidelines that maximises the net economic benefit to all those who produce, consume and transport electricity. c) Determines that the preferred option has a positive net economic benefit and/or is otherwise consistent with the National Electricity Objective at that time. | E8: 175968438.3 | F8: =+E8*0.05 -> 8798421.913
B9: Unlocking existing large scale renewable generation on DKTL | C9: 49123439.52 | D9: We have identified two triggers for the project: 1. A formal notification from a NTG Minister to Power and Water Corporation, advising that it wishes to accommodate more renewable energy in an area that requires transport of generation on the DKTL and advising the approximate required additional capacity and location of that generation; and 2. the completion of a RIT-T by Power and Water that meets the following: a) Identifies a need to relieve transmission constraints on the DKTL within the next regulatory period, and b) Identifies a preferred option consistent with the RIT‐T guidelines that maximises the net economic benefit to all those who produce, consume and transport electricity in the NEM, and c) Determines that the preferred option has a positive net economic benefit and/or is otherwise consistent with the National Electricity Objective at that time. | E9: =+$E$8 -> 175968438.3 | F9: 8798421.913
B10: Holtze-Kowani land release | C10: 64898072.76 | D10: We have identified three triggers for the project: 1. An executed Connection Application and an approved HV Master Plan for Stage 3 of the land development in the Greater Holtze Area. 2. A Power and Water planning study demonstrating a likely material constraint in meeting the expected demand arising from Stage 3 of the land development. 3. The completion of a Regulatory Investment Test for Distribution (RIT-D) by Power and Water that meets the following: a). Identifies a need to undertake augmentation distribution works in the next regulatory period to meet demand for standard control services arising from Stage 3 land release in the Greater Holtze Area, and b). Identifies the preferred option consistent with the RIT‐D guidelines that maximises the net economic benefit to all those who produce, consume and transport electricity. | E10: 175968438.3 | F10: 8798421.913
B11: Commercial development in Middle Arm | C11: 48523592.92 | D11: We have identified two triggers for the project: 1. Committed customer connections in the Middle Arm Peninsula in Darwin that, in aggregate, exceeds the existing capacity (15 MVA) of the Weddell zone substation. 2. The completion of a regulatory investment test for distribution by Power and Water that meets the following: a). Identifies a need to undertake augmentation distribution works to meet demand for standard control services arising from new customer connections in the Middle Arm Peninsula. b). Identifies the preferred option consistent with the RIT‐D guidelines that maximise the net economic benefit to all those who produce, consume and transport electricity. | E11: 175968438.3 | F11: 8798421.913
B12: Wishart ZSS | C12: 78310016.42 | D12: [c-i-c] | E12: 175968438.3 | F12: 8798421.913
E13: 175968438.3 | F13: 8798421.913
E14: 175968438.3 | F14: 8798421.913
E15: 175968438.3 | F15: 8798421.913
E16: 175968438.3 | F16: 8798421.913
E17: 175968438.3 | F17: 8798421.913
E18: 175968438.3 | F18: 8798421.913
E19: 175968438.3 | F19: 8798421.913
E20: 175968438.3 | F20: 8798421.913
E21: 175968438.3 | F21: 8798421.913
E22: 175968438.3 | F22: 8798421.913
E23: 175968438.3 | F23: 8798421.913
E24: 175968438.3 | F24: 8798421.913
E25: 175968438.3 | F25: 8798421.913
E26: 175968438.3 | F26: 8798421.913
E27: 175968438.3 | F27: 8798421.913
E28: 175968438.3 | F28: 8798421.913
E29: 175968438.3 | F29: 8798421.913
E30: 175968438.3 | F30: 8798421.913
E31: 175968438.3 | F31: 8798421.913
E32: 175968438.3 | F32: 8798421.913
E33: 175968438.3 | F33: 8798421.913
E34: 175968438.3 | F34: 8798421.913
E35: 175968438.3 | F35: 8798421.913
E36: 175968438.3 | F36: 8798421.913
E37: 175968438.3 | F37: 8798421.913
E38: 175968438.3 | F38: 8798421.913
E39: 175968438.3 | F39: 8798421.913
E40: 175968438.3 | F40: 8798421.913
E41: 175968438.3 | F41: 8798421.913
E42: 175968438.3 | F42: 8798421.913
E43: 175968438.3 | F43: 8798421.913
E44: 175968438.3 | F44: 8798421.913
E45: 175968438.3 | F45: 8798421.913

Sheet 7.3 Obligations
B1: =INDEX(dms_Worksheet_List,MATCH(dms_Model,dms_Model_List)) -> REGULATORY REPORTING STATEMENT
B2: =INDEX(dms_TradingNameFull_List,MATCH(dms_TradingName,dms_TradingName_List)) -> Power and Water Corporation
B3: =CONCATENATE("REGULATORY PERIOD FROM ", FRCP_y1," TO ",dms_MultiYear_FinalYear_Result) -> REGULATORY PERIOD FROM 2024-25 TO 2028-29
B4: 7.3 OBLIGATIONS, REQUIREMENTS & STANDARDS
B6: 7.3.1 - OBLIGATIONS OR REQUIREMENTS
C7: Brief description | D7: Relevance to regulatory proposal | E7: Expenditure impact
C8: Description of relevant obligations or requirements within the instrument (e.g. safety obligations, reliability targets) | D8: Identify what element of the proposal/supporting documents the obligation or requirement is relevant to e.g. replacement capex, capacity utilisation thresholds, opex | E8: Is the obligation or requirement identified in the response to section 4 'Step Changes' of the notice (yes or no)?
B9: LEGISLATION
B10: COMMONWEALTH LEGISLATION
B11: A New Tax System (Goods and Services Tax) Act 1999 (Cth) | C11: This Act provides for the imposition of Goods and Services Tax (GST). | D11: Business as usual | E11: No
B12: A New Tax System (Goods and Services Tax) Regulations 1999 (Cth) | C12: See Act above. | D12: Business as usual | E12: No
B13: Age Discrimination Act 2004 (Cth) | C13: This Act makes it unlawful to discriminate on the ground of age. | D13: Business as usual | E13: No
B14: Competition and Consumer Act 2010 (Cth) (and regulations) | C14: The object of this Act is to enhance the welfare of Australians through the promotion of competition and fair trading and provision for consumer protection. | D14: Business as usual | E14: No
B15: Corporations Act 2001 (Cth) (and regulations) | C15: This Act sets out the laws dealing with business entities in Australia at federal and interstate level. It focuses primarily on companies, although it also covers some laws relating to other entities such as partnerships and managed investment schemes. | D15: Business as usual | E15: No
B16: Disability Discrimination Act 1992 | C16: The Disability Discrimination Act 1992 (DDA) makes it unlawful to discriminate against a person, in many areas of public life, including employment, education, getting or using services, renting or buying a house or unit, and accessing public places, because of their disability. | D16: Business as usual | E16: No
B17: Electronic Transactions Act 1999 No. 162 (CTH) | C17: The Electronic Transactions Act 1999 ensures that a transaction under a Commonwealth law will not be invalid simply because it was conducted through electronic communication. If a Commonwealth law requires you to: give information in writing. provide a handwritten signature. | D17: Business as usual | E17: No
B18: Equal Employment Opportunity (Commonwealth Authorities) Act 1987 (Cth) | C18: This Act requires authority (includes PWC) to establish and implement an equal employment opportunity program designed to ensure that appropriate action is taken by the authority to eliminate discrimination by it against; and to promote equal opportunity for; women and persons in designated groups in relation to employment matters. | D18: Business as usual | E18: No
B19: Environment Protection and Biodiversity Conservation Act 1999 (Cth) (and regulations). | C19: This Act provides a legal framework to protect and manage nationally and internationally important flora, fauna, ecological communities and heritage places. Under the Act, actions that have, or are likely to have, a significant impact on a matter of national environmental significance require approval from the Australian Government Minister for the Environment The following is protected under the Act: Matters of national environmental significance, World heritage properties and national heritage places, Wetlands of international importance, Threatened species and ecological communities, Migratory species, Commonwealth marine areas, Great Barrier Reef Marine Park, Nuclear actions, & Water resources | D19: Business as usual | E19: No
B20: Fair Work Act 2009 (Cth) (and related legislation and regulations) | C20: The Fair Work Act (2009) anti-bullying amendments came into effect on 1 January 2014, and have the potential to significantly alter the workplace practices of employers. | D20: Business as usual | E20: No
B21: Fringe Benefits Tax Act 1986 (Cth) Fringe Benefits Tax Assessment Act 1986 (Cth) Fringe Benefits Tax Regulations 1992 (Cth) | C21: These instruments provide for a system of tax payable by employers for benefits paid to an employee (or an employee's associate) in place of salary or wages (i.e. Fringe Benefits). | D21: Opex | E21: No
B22: Fuel Tax Act 2006 (Cth) | C22: This Act provides for a system system of fuel tax credits for business taxpayers registered for GST where a) fuel is acquired, manufactured or imported for use in carrying on the enterprise, or b) where fuel is acquired, manufactured or imported to make taxable supplies | D22: Business as usual
B23: Income Tax Act 1986 (Cth) | C23: This Act provides for a system of taxation of income. | D23: Business as usual | E23: No
B24: Income Tax Assessment Act 1936 (Cth) Income Tax Assessment Act 1997 (Cth) Income Tax Assessment Regulations 1997 (Cth) Income Tax Regulations 1936 (Cth) | C24: This Act provides for the imposition, assessment and collection of income tax. | D24: Business as usual | E24: No
B25: Modern Slavery Act 2018 No. 153 (CTH) | C25: An Act to make provision about slavery, servitude and forced or compulsory labour and about human trafficking, including provision for the protection of victims; to make provision for an Independent Anti-slavery Commissioner; and for connected purposes. The Act established a national Modern Slavery Reporting Requirement (Reporting Requirement). This Reporting Requirement applies to large businesses and other entities in the Australian market with annual consolidated revenue of at least AUD$100 million. | D25: Capex/Opex | E25: No
B26: National Greenhouse and Energy Reporting Act 2007 (Cth) National Greenhouse and Energy Reporting Regulations 2008 (Cth) | C26: Single national framework for reporting and disseminating company information about greenhouse gas emissions, energy production, energy consumption and other information specified under NGER legislation. • The objectives of the NGER scheme are to: o inform government policy o inform the Australian public o help meet Australia's international reporting obligations o assist Commonwealth, state and territory government programmes and activities, and o avoid duplication of similar reporting requirements in the states and territories. Requires an entity to be registered under the Act where its emissions/energy produced or energy consumed meets the relevant thresholds as set out in section 13 of the Act. | D26: Business as usual | E26: No
B27: Native Title Act 1993 (Cth) (and Regulations) | C27: This Act purports to provide for the recognition and protection of native title; and to establish ways in which future dealings affecting native title may proceed and to set standards for those dealings; and to establish a mechanism for determining claims to native title; and to provide for, or permit, the validation of past acts, and intermediate period acts, invalidated because of the existence of native title. | D27: Business as usual | E27: No
B28: Ombudsman Act 1976 (CTH) | C28: The Ombudsman Act provides that the Ombudsman is to investigate the administrative actions of Australian Government departments / agencies and prescribed private sector organisations, and sets out the limits on his jurisdiction. | D28: Business as usual | E28: No
B29: Privacy Act 1988 (Cth) (and Regulations) | C29: The objects of this Act are: - to promote the protection of the privacy of individuals; - and to recognise that the protection of the privacy of individuals is balanced with the interests of entities in carrying out their functions or activities; and - to provide the basis for nationally consistent regulation of privacy and the handling of personal information; and - to promote responsible and transparent handling of personal information by entities; and - to facilitate an efficient credit reporting system while ensuring that the privacy of individuals is respected; and - to facilitate the free flow of information across national borders while ensuring that the privacy of individuals is respected; and - to provide a means for individuals to complain about an alleged interference with their privacy; and - to implement Australia’s international obligation in relation to privacy. | D29: Business as usual | E29: No
B30: Privacy Regulation 2013 (Cth) | C30: See Act above. | D30: Business as usual | E30: No
B31: Racial Discrimination Act 1975 (Cth) (and Regulations) | C31: This Act seeks to eliminate racial and other discrimination by making racial discrimination in certain contexts unlawful. | D31: Business as usual | E31: No
B32: Renewable Energy (Electricity) Act | C32: The Renewable Energy Target legislation provides an incentive for investment in renewable energy power stations and smaller systems while ensuring the energy sources used are ecologically sustainable. | D32: Business as usual | E32: No
B33: Security of Critical Infrastructure Act | C33: The Security of Critical Infrastructure Act 2018 (the Act) seeks to manage the complex and evolving national security risks of sabotage, espionage and coercion posed by foreign involvement in Australia's critical infrastructure. | D33: Capex/Opex | E33: Yes
B34: Sex Discrimination Act 1984 (Cth) (and regulations) | C34: This Act makes it unlawful to discriminate on the grounds of sex, sexual orientation, gender identity, intersex status, marital or relationship status, pregnancy, potential pregnancy, breastfeeding or family responsibilities. It also makes sexual harassment unlawful. | D34: Business as usual | E34: No
B35: Spam Act | C35: The Spam Act 2003 (Cth) is an Act passed by the Australian Parliament in 2003 to regulate commercial e-mail and other types of commercial electronic messages. The Act restricts spam, especially e-mail spam and some types of phone spam, as well as e-mail address harvesting. | D35: Business as usual | E35: No
B36: Telecommunications (Interception and Access) Act 1979 (Cth) Telecommunications (Interception and Access) Regulations 1987 (Cth) | C36: This Act regulates access to telecommunications content and data in Australia. | D36: Business as usual | E36: No
B37: Telecommunications Act 1997 (Cth) Telecommunications Regulations 2001 (Cth) | C37: To operate a network unit (being a line link that connects distinct places in Australia) an owner must have a carrier licence. A constitutional corporation or a public body may apply to the ACMA for a carrier licence. | D37: Business as usual | E37: No
B38: Trade Marks Act 1995 (Cth) | C38: This Act provides for the regulation of trade marks, collective trade marks, certification trade marks and defensive trade marks and sets out and protects the rights deriving from registration. | D38: Business as usual | E38: No
B39: Workplace Gender Equality Act 2012 (Cth) | C39: This Act aims to improve and promote equality between all genders in the workplace. | D39: Business as usual | E39: No
B42: NORTHERN TERRITORY LEGISLATION
B43: Anti-Discrimination Act | C43: The Anti-Discrimination Act aims to promote equality of opportunity and eliminate discrimination against persons for various grounds, including race, sex, sexuality, age, marital status etc. The Act establishes the Anti-Discrimination Commissioner and imposes obligations on various sectors, including employers, educators, accommodation owners etc. | D43: Business as usual | E43: No
B44: Building Act (and Regulations) | C44: The Building Act establishes technical standards for buildings and regulates all aspects of the building industry, including permits, registration of practitioners, and the establishment of a building appeal process. | D44: Capex/Opex | E44: No
B45: Bushfires Management Act (and regulations) | C45: The Bushfires Management Act provides mechanisms for the suppression and prevention of bushfires by, among other things, establishing fire protection zones and fire danger areas, and establishing councils and committees with powers and functions. | D45: Business as usual | E45: No
B46: Business Tenancies (Fair Dealings) Act 2003 (NT) (and Regulations)
B47: Construction Contracts (Security of Payments) Act | C47: The Construction Contracts (Security for Payments) Act establishes a system to secure payments under construction contracts and provide for the adjudication of disputes about payments. | D47: Business as usual | E47: No
B48: Consumer Affairs and Fair Trading Act | C48: The Consumer Affairs and Fair Trading Act applies the Australian Consumer Law as a law of the Territory, and provides other provisions related to consumer protection. | D48: Business as usual | E48: No
B49: Dangerous Goods Act (NT) (and Regulations) | C49: The Dangerous Goods Act gives provision to the storage, handling and transport of certain dangerous goods. The Act sets out penalties for non compliance. Owners or operators of infrastructure used in connection with dangerous goods also have obligations under this Act. The legislation adopts the Australian Dangerous Goods Code which applies to applies to dangerous goods classified as gases, flammable liquids, corrosive substances, oxidizing substances, substances dangerous if wet etc. | D49: Business as usual | E49: No
B50: Electrical Workers and Contractors Act (and regulations) | C50: The Electrical Workers and Contractors Act provides for the licensing of electrical workers and contractors. The Act establishes the Electrical Workers and Contractors Licensing Board, and sets out all requirements related to licensing. | D50: Business as usual | E50: No
B51: Electricity Reform Act | C51: The Electricity Reform Act regulates the electricity supply industry in the Northern Territory | D51: Capex/Opex | E51: Yes
B52: Electricity Reform (Administration) Regulations | C52: This Regulation regulates licences, contestable customers and vegetation clearance. | D52: Capex/Opex | E52: No
B53: Electricity Reform (safety and technical) Regulations | C53: This Regulation provides safety and technical requirements which must be complied with. | D53: Capex/Opex | E53: No
B54: Electricity Reform (system control and market operator functions code) Regulations | C54: This Regulation sets out a System Control and Market Operator Functions Code that electricity entities must comply with, to the extent it is applicable to PWC. | D54: Capex/Opex | E54: No
B55: Electronic Transactions (Northern Territory) Act 2000 (NT) (and Regulations) | C55: This Act may be cited as the Electronic Transactions (Northern Territory) Act 2000. This Act comes into operation on the date fixed by the Administrator by notice in the Gazette. (d) enables business and the community to use electronic communications in their dealings with government. | D55: Business as usual | E55: No
B56: Emergency Management Act | C56: The Emergency Management Act makes provisions for emergency managmenet plans at a local, regional and Territory level. The Act confers special powers and duties in the event of an emergency, and establishes the Territory Emergency Management Council. The special powers contained in the Act could mean that PWC would be obliged co comply with various directions made by an authorised officer during a state of emergency or disaster, such as a direction to assist in tasks to save life or property, or a direction to close an area (s 24). | D56: Capex/Opex | E56: No
B57: Environmental Offences and Penalties Act | C57: This Act establishes penalties for offences under the Regulations or other Acts which prescribe offences as being an environmental offence. | D57: Business as usual | E57: No
B58: Fences Act | C58: The Fences Act requires land owners to equally contribute to fences with adjoining properties, and provides mechanisms for the resolution of disputes. | D58: Business as usual | E58: No
B59: Financial Transaction Reports Act 1992 (NT) | C59: An Act to provide for the giving of further information in relation to suspect transactions reported under the Financial Transaction Reports Act 1988 of the Commonwealth and the giving of information in relation to other suspect transactions, and for related purposes. | D59: Business as usual | E59: No
B60: Financial Management Act (and Regulations) | C60: The Financial Management Act provides terms for the financial manageement of the NT and certain government business activities. The CEO of PWC is the Accountable Officer, and has obligations under the Act related to trust accounts, the preparation of financial statements, and proper record keeping of financials. | D60: Business as usual | E60: No
B61: Fire and Emergency Act | C61: The Fire and Emergency Act establishes the fire and rescue service, and provides mechanisms for responding to fires and emergencies to protect life, property and the enivironment. Among the various powers contained in the Act are powers to destroy dangerous structures, to take equipment, cause the electricity supply to a building to be shut off etc. | D61: Business as usual
B62: Fire and Emergency Regulations | C62: These Regulations impose a number of obligations on owners/occupiers of land re firebreaks, smoke alarms, stacking requirements, waste, and emergency planning and evacuation. | D62: Business as usual | E62: No
B63: Independent Commissioner Against Corruption Act 2017 (NT) | C63: The purpose of the Act is to address improper conduct in public administration. Importantly, the Act provides built in protections for people who report improper conduct and, who may put themselves at risk of retaliation as a result. | D63: Business as usual | E63: No
B64: Information Act (NT) (and Regulations) | C64: The Information Act provides public access to government held information, and other related matters. The Act requires public sector entities to collect and handle personal information responsibly, promote appropriate records and archives management, and to provide public access to certain information. | D64: Business as usual | E64: No
B65: Land Title Act | C65: This Act consolidates the law regarding the registration of land and interests in land. The Act provides a mechanism for easements to be registered against land titles. | D65: Business as usual | E65: No
B66: Land Title Regulations | C66: These Regulations outline obligations in relation to gaining written consent, requirements for a plan of termination of scheme and requirements for a plan of termination of development. | D66: Business as usual | E66: No
B67: Lands Acquisition Act | C67: This Act provides mechanisms for the acquisition of land. This Act gives the Minister the power generally to acquire land for any purpose. | D67: Business as usual | E67: No
B68: Law of Property Act | C68: This Act consolidates the law regarding conveyancing, property, and contract. The Act deals with, among other things, easements, covenants, freehold estates and contracts for the sale of land. | D68: Business as usual | E68: No
B69: Motor Vehicles Act | C69: This Act governs all aspect of Motor Vehicles in the Territory, including registration, licences, public roads, plates, etc. | D69: Business as usual | E69: No
B70: National Electricity (Northern Territory) (National Uniform Legislation) Act National Electricity Law (NEL) | C70: This Act adopts the National Electricity Law (NEL), subject to amendments made by the National Electricity (Northern Territory) (National Uniform Legislation) (Modification) Regulations. The NEL sets the high level legislative framework within which the market operates and is developed, as well as establishing some high level rights and obligations for both market participants and market institutions. Another key set of obligations under the NEL involve the provision of information to the regulator. | D70: Capex/Opex | E70: Yes
B71: Northern Territory Aboriginal Sacred Sites Act | C71: This act provides for the protection of an entry onto certain Aboriginal Sacred Sites, and the avoidance of development on sacred sites. | D71: Capex/Opex | E71: No
B72: Northern Territory Environment Protection Authority Act | C72: This Act makes its an offence for a person to provide information or documents to the Territory or EPA that the person knows is misleading and the person does not draw the misleading information to the agency's attention. | D72: Business as usual | E72: No
B73: Occupational Licensing (National Uniform Legislation) Act 2011 | C73: This Act provides for the licensing of electricians, plumbers and gas fitters. It creates an offence for a body corporate to carry out work of that nature without a licence or to hold out an unlicensed person as being licensed to perform that particular work. | D73: Business as usual | E73: No
B74: Payroll Tax Act | C74: This Act regulates the payment of payroll tax. | D74: Business as usual | E74: No
B75: Power and Water Corporation Act | C75: This is the primary statutory instrument which establishes and governs the Power and Water Corporation and the performance of its functions. | D75: Business as usual | E75: No
B76: Price Exploitation Prevention Act | C76: This Act empowers the Territory to gather information and regulate transactions in circumstances where a disaster or lack of competition in the market has resulted or may result in price exploitation. | D76: Business as usual | E76: No
B77: Public Employment (Mobility) Act | C77: This Act regulates the accrual of conditions of employment of public sector employees, including long service leave and sick leave. | D77: Business as usual | E77: No
B78: Public Interest Disclosure Act | C78: This Act protects whistle blowers who make appropriate disclosures of information concerning public offices and public bodies, including statutory corporations and employees of statutory corporations. | D78: Business as usual | E78: No
B79: Public Sector Employment and Management Act (and Regulations) | C79: This Act regulates the employment conditions of public sector employees, including statutory corporation employees. | D79: Business as usual | E79: No
B80: Publications (Legal Deposit) Act 2004 | C80: This Act provides for the circumstances in which publications including handbooks, guides, pamplets and newsletters must be provided to the Territory Government. | D80: Business as usual | E80: No
B81: Return to Work Act (and regulations) | C81: This Act regulates workers compensation payments. | D81: Business as usual | E81: No
B82: Special Purposes Leases Act (and Regulations) | C82: This Act provides for the granting of leases to statutory corporations of land belonging to the Territory. | D82: Business as usual | E82: No
B83: Stamp Duty Act | C83: This Act regulates stamp duty in the Territory. | D83: Business as usual | E83: No
B84: Superannuation Act (and Regulations) | C84: This Act provides for superannuation schemes for public sector employees. | D84: Business as usual | E84: No
B85: Superannuation Guarantee (Safety Net) Act | C85: This Act provides for superannuation benefits for certain employees in the public sector. | D85: Business as usual | E85: No
B86: Taxation Administration Act | C86: This Act provides for the administration and enforcement of Territory Taxation Laws. | D86: Business as usual | E86: No
B87: Training and Skills Development Act | C87: This Act regulates the hiring and conditions of trainees and apprentices | D87: Business as usual | E87: No
B88: Utilities Commission Act | C88: This Act creates the Utilities Commission, sets out its functions and regulates the performance of its functions | D88: Business as usual | E88: No
B89: Waste Management and Pollution Control Act (and Regulations) | C89: This Act regulates environmental licences, reporting obligations and incidents which cause pollution | D89: Capex/Opex | E89: No
B90: Weeds Management Act | C90: This Act regulates obligations of owners and occupiers of land with respect to the propagation and management of certain weeds | D90: Capex/Opex | E90: No
B91: Work Health and Safety (National Uniform Legislation) Act | C91: This Act regulates occupational health and safety | D91: Business as usual | E91: No
B92: Work Health and Safety (National Uniform Legislation) Regulations | C92: The Regulations set out occupational health and safety obligations on topics including general risk management, training, hazardous work, confined spaces, high risk works, accrediation of relevant offficers, demolition work, licensing, plant and structures, hazardous chemicals, and administration of WHS matters | D92: Business as usual | E92: No
B221: LICENCES
B222: PWC (Networks) Licence | C222: This licence issued by the Utilities Commisiosn authorises PWC to own and operate an electricity network within the licence area and to connect the electricity network to another electricity network. | D222: Capex/Opex | E222: No
B223: PWC (System Control) Licence | C223: This licence issued by the Utilities Commission grants PWC a licence to exercise system control over the power system. The licence defines PWC's statutory obligations in order to ensure the safe, secure and reliable operation of the regulated power systems in the NT. | D223: Capex/Opex | E223: No
B224: PWC (Generation) Licecne | C224: This licence issued by the Utilities Commission grants PWC a licence to generate electricity at the electricity generating plants described in schedule 2 for sale as contemplated by paragraph (b) or in any retail licence held by the licensee; and sell and retail electricity to electricity entities holding a retail licence or a generation licence. | D224: Capex/Opex | E224: No
B225: PWC (Retail) Licence | C225: This licence issued by the Utilities Commission grants PWC a licence to trade in electricity; and sell and retail electricity to contestable customers; and sell and retail electricity to non-contestable customers, but only in respect of electrical installations or premisis which are located within the retail area. | D225: Capex/Opex | E225: No
B226: RULES
B227: National Electricity Rules as applied in Northern Territory | C227: The National Electricity Rules set out the detailed obligations of market participants. Key classes of obligations relate to system security, connection and planning, preparing a regulatory proposal and metering. | D227: Capex/Opex | E227: No
B228: Chapter 1 Introduction | C228: Applicable from 1 July 2017 wth exceptions: 1.11 (AEMO Rule Funds) has no effect | D228: N/A | E228: No
B229: Chapter 2 Registered Participants and Registration | C229: Not currently applicable but possible in the future | D229: N/A | E229: No
B230: Chapter 2A Regional Structures | C230: Not currently applicable but possible in the future | D230: N/A | E230: No
B231: Chapter 3 Market Rules | C231: Not currently applicable but possible in the future | D231: N/A | E231: No
B232: Chapter 4 Power System Security | C232: Not currently applicable but possible in the future | D232: N/A | E232: No
B233: Chapter 5 Network Connection, Planning and Expansion | C233: Applicable from 1 July 2019: r 5.0, 5.0A, 5.10.2, 5.11, 5.12 (other than clauses 5.12.1(b)(3), 5.12.2(c)(1), (5)(v), (6) and (8)), 5.13, 5.13A, Schedule 5.7, S5.8(except (b)(5)(iii), (h) and (i)), S5.9 except para (h) Applicable from 1 July 2018: Part B and C Not currently applicable but possible in the future: r 5.1 through to 5.9 clauses 5.10.1, 5.10.3, 5.12, 5.12.1(b)(3), 5.12.2(c)(1), (5)(v), (6) and (8), r 5.14 through to 5.22, Schedules S5.1a through to S5.6, S5.8 ((b)(5)(iii), (h) and (i)), S5.9 (h) | D233: Capex/Opex | E233: No
B234: Chapter 5A Electricity connection for retail customers | C234: Applicable from 1 July 2017: Part A (Preliminary only), Part E (except 5.A.E.2 and 5A.E.4(c) Applicable from 1 July 2019: 5A.A.2, Part B, Part C (except cl 5A.C.1(c) and (d)), Part D (except 5A.D.1(a)(7) and (b) and 5A.D.1A), 5A.E.2, 5A.E.4 except (c), Part F (except 5A.F.5(b)(2)), Schedule 5A.1 Applicable once NERL implemented in NT: Part C (5A.C.1(c) and (d)), 5A.E.4(c), 5A.F.5(b)(2) Not currently applicable but possible in the future: 5.A.A.3, 5A.D.1(a)(7) and (b), 5A.D.1A, Part G | D234: Capex/Opex | E234: No
B235: Chapter 6 Economic Regulation of Distribution Services | C235: Applicable from 1 July 2017 with some exceptions. Applicable from 1 July 2019: 6.18.9(a)(3), Parts J to N, Schedule 6.2.2B(b) and (c) Expiring on 1 July 2024: 6.4.3, 6.6.1(1AB), modifications to 6.6.1(7A), 6.6.1AA, 6.6.1AB, 6.11.1(ba), 6.18.5(ha), modifications to 6.2.5(c) Applicable once NERL implemented in NT: 6.6.1(a1)(4), (c)(6)(iii), (l) and (m) Not currently applicable but possible in the future clauses S6.2.1(d) and S6.2.2 | D235: Capex/Opex | E235: No
B236: Chapter 6A Economic Regulation of Transmission Services | C236: Not currently applicable but possible in the future | D236: Capex/Opex | E236: No
B237: Chapter 6B Retail Markets | C237: Not currently applicable but possible in the future | D237: Capex/Opex | E237: No
B238: Chapter 7 Metering | C238: Not applicable, Ch 7A applies as a substitute for Ch 7 taking effect at an unspecificed time in the future | D238: Capex/Opex | E238: No
B239: Chapter 7A Metering | C239: Applicable from 1 July 2019 | D239: Capex/Opex | E239: No
B240: Chapter 8 Administrative Function | C240: Applicable from 1 July 2017 except the following: 8.1.3(b)(5) and (7), 8.6.1(d) and (e), 8.6.2(1), 8.6.6, 8.6.7, 8.7.2(a)(2) and (4) and (b)(2), 8.7.6, Part E, Part G Applicable from 1 July 2019: Part B, Part H | D240: Capex/Opex | E240: No
B241: Chapter 8A | C241: Applicable from 1 July 2017: 8A.14, 8A.15 | D241: Capex/Opex | E241: No
B242: Chapter 9 Jurisdictional derogations & transitional arrangements | C242: Not applicable (applies to other jurisdictions) | D242: Capex/Opex | E242: No
B243: Chapter 10 Glossary | C243: Applicable, some definitions to change on 1 July 2017, some definitions to expire on 1 July 2029 | D243: Capex/Opex | E243: No
B244: Chapter 11 Savings and Transitional Rules | C244: Not applicable (applies to other jurisdictions) No effect for: Parts A to ZZI, ZZK, ZZL, ZZN (except for clause 11.86.8), ZZO to ZZT, ZZV and ZZX | D244: Capex/Opex | E244: No
B245: Chapter 11A NT Savings and Transitional Rules | C245: Applicable from 1 July 2019 | D245: Capex/Opex | E245: No
B246: ORDERS
B247: Electricity Pricing Order 1 July 2022 - 30 June 2023 | C247: Electricity retail prices charged to residential and commercial customers (those consuming less than 750 megawatt hours of electricity per year) are regulated by the NT Government through a pricing order made by the Treasurer under the Electricity Reform Act 2000. The Pricing Order sets the retail prices that customers may be charged for electricity and related services. Compliance with the Electricity Pricing Order is enforced by the Commission. | D247: Capex/Opex | E247: No
B248: System Control Charges – from 1 July 2022 | C248: The Power System Controller (a standalone business unit within Power and Water Corporation) is licensed by the Commission to manage the day-to-day operation of the power system. While the Commission is responsible for the regulation of the NT electricity supply industry, the function of monitoring and controlling the power system lays with the Power System Controller, with broad oversight by the Commission. Under the Electricity Reform Act 2000, a system controller is entitled to impose and recover charges relating to the operations of system control. The schedule of charges is approved by the Commission. | D248: Capex/Opex | E248: No
B249: Ancillary services charges | C249: Ancillary services are defined in the System Control Technical Code and include: voltage control, reactive power control, frequency control and black start capability. The Utilities Commission Regulations authorise the Commission to make determinations relating to prices for providing ancillary services in the electricity supply industry. The price for ancillary services provided by Territory Generation in the Darwin‑Katherine system is covered by the System Control Technical Code. | D249: Capex/Opex | E249: No
B250: CODES
B251: AS/NZ 3000:2007 Electrical installations Standard (required to be complied with under the Electricity Reform (Safety and Technical) Regulations 2016 made under the Electricity Reform Act 2000 (NT)) | C251: • This standard sets out requirements for the design, construction and verification of electrical installations, including selection of equipment. • Intended to protect persons, livestock and property from electric shock, fire, and physical injury hazards. • This standard may be applied through legislative requirements, made in each State or Territory of Australia and New Zealand. | D251: Business As Usual | E251: No
B252: Commonwealth Model Work Health and Safety Codes of Practice | C252: National Harmonisation of Work Health and Safety Code of Practice | D252: Business As Usual | E252: No
B253: Electricity Industry Performance Code and Gudielines | C253: The Electricity Industry Performance Code sets out: guaranteed service levels performance indicators and payment levels, generation service performance indicators for reporting purposes, network service performance indicators for reporting and network target standards and retail service performance indicators for reporting purposes, which includes retail performance for customers taking, or likely to take less than 160 megawatt hours of electricity during the reporting period, and hardship indicators for residential customers. | D253: Capex/Opex | E253: No
B254: Electricity Reform (System Control and Market Operator Functions Code) Regulations | C254: The Electricity Reform (System Control and Market Operator Functions Code) Regulations requires an electricity entity to comply with the Code, as set out in the Schedule which covers out-of-balance energy services. | D254: Capex/Opex | E254: No
B255: Electricity Retail Supply Code (NT) | C255: Sets out the rules governing the processes for transferring customers, the obligations of retailers and network providers, retailer of last resort and dispute resolution procedures. | D255: Capex/Opex | E255: No
B256: National Construction Code (including Building Code of Australia) | C256: NCC and Building Code of Australia published by the Australian Building Codes Board as in force from time to time (adopted by States and Territories on 1 May 2016) | D256: Business As Usual | E256: No
B257: Network Technical Code and Network Planning Criteria (NT) | C257: The Network Technical Code and Network Planning Criteria sets out the requirements that apply to all facets of the electricity network. The Network Technical Code is applicable to all connected equipment but particularly generators and large loads. The Network Planning Criteria documents the criteria that are applied to ensure that PWC's networks meet safety standards, provide reliable supply, meet environmental standards, and optimise equipment utilisation. | D257: Capex/Opex | E257: No
B258: Northern Territory Electricity Ring-fencing Code | C258: A key aspect of PWC's licence conditions is the requirement that certain business units be ring-fenced to ensure against anti-competitive market behaviour. The objective of the Ring-fencing Code is to create an enfironment where the price, quantity and quality of electricity sold to end-use consumers is not biased as a result of PWC's vertical integration. | D258: Business As Usual | E258: No
B259: System Control Technical Code (NT) | C259: Power and Water Corporation is required to prepare a System Control Technical Code and submit it for approval to the Commission under section 38 of the Electricity Reform Act. The Code sets out Power and Water Corporation's competitively neutral operating protocols, arrangements for system security and system dispatch, as well as arrangements for the interruption of supply. Power and Water Corporation is also required to monitor and enforce the Code on system participants to ensure that the power system is operated in a manner that is safe and secure. | D259: Capex/Opex | E259: No
B266: GUIDELINES
B267: AER Consumer engagement guideline for network service providers (1 Aug 2013) | C267: Sets out framework for engaging consumers and integrating the long-term interests of consumers into expenditure plans | D267: Opex | E267: No
B268: AER Cost Allocation Guideline (Distribution) (1 Jan 2008) | C268: These Guidelines set out arrangements to manage the attribution of direct costs and the allocation of shared costs by DNSPs between different categories of distribution services. Specifically the guidelines relate to the preparation by a DNSP of its Cost Allocation Method. | D268: Business As Usual | E268: No
B269: AER Distribution Confidentiality Guidelines (19 Nov 2013) | C269: Clause 16.4A(b) of the NER requires these guidelines specify the manner in which the DNSP may make confidentiality claims in its regulatory proposal, which may include categories of confidential information by reference to which the DNSP must calssify any claims of confidentiality in their regulatory porposals. (d) The guidelines are binding on the AER and each DNSP to which they apply. | D269: Confidentiality template | E269: No
B270: AER Expenditure forecast assessment guideline - Regulatory information notices for category analysis (7 Mar 2014) | C270: Clause 6.4.5(a) of the NER requires these guidelines specify the approach the AER proposes to use to assess the foreceasts of operating expendutiure and capital expenditure that form part of DNSP's regulatory proposals and the info the AER requires for the purposes of the assessment. | D270: Capex and Opex | E270: No
B271: AER Expenditure forecast assessment guideline - Regulatory information notices for economic benchmarking (28 Feb 2014) | C271: The Guideline specifies the information required by the AER to assess expenditure and colected by way of RINs. | D271: Capex and Opex | E271: No
B272: AER Expenditure incentives guideline (29 Nov 2013) | C272: Establishes incentives to spend capex efficiently | D272: Capex and Opex | E272: No
B273: AER National Electricity Connection Charge Guideline (1 July 2012) | C273: Clause 5A.E.3 of the NER requires the AER to publish these guidelines to ensure that connection charges are reasonable; to provide a user-pays signal to reflect the efficient cost of proivinging the connection services; and limit cross-subsidisation of connection costs between different classes of retail customer. Rule 5A.E.3(ga) - Connection charge guidelines in force in the other participating jurisdictions on 1 July 2017 are taken to be those in force in this jurisdiction (NT). | D273: Customer capex | E273: No
B274: AER Rate of Return Guideline (17 Dec 2013) | C274: Establishes the AER's approach to determining the rate of return on regulated assets | D274: Rate of Return | E274: No
B275: AER Ring-fencing Guideline (electricity distribution) | C275: Applies from 1 July 2019- Rule 6.17.1.1A, with amendments specified in 6.17.1B. Deal with the accounting and functional separation of the provision of direct control services from the provision of other services. | D275: Cost Allocation | E275: No
B276: AER Shared Asset Guideline (29 November 2013) | C276: Establishes a cost reduction approach in situations where unregulated revenues are earned from regulated assets. | D276: Rate of Return | E276: No
B277: Corporate Governance and Reporting Framework - Government Owned Corporations | C277: The framework provides direction and advice as to the processes, timeframes, content and controls associated with the governance relationships between GOCs, ministers and the Department of Treasury and Finance (DTF). | D277: Business As Usual | E277: No
B278: Utilities Commission Compliance Framework and Reporting Guidelines | C278: The key features of the guidelines are the requirement for annual compliance reporting, additional information on the reporting of material compliance breaches and an annual declaration from the Board of Directors. | D278: Business As Usual | E278: No
B305: DEFAULT AGREEMENTS
B306: Nil
B309: OTHER
B310: AER Regulatory Information Notice for PWC dated 9 November 2017 | C310: Regulatory Information Notice issued to PWC on 9 November 2017 under Division 4 of Part 3 of the National Electricity (Northern Territory) Law | D310: Capex/Opex | E310: No
B311: Approved Target Standards Determination 2014-2019 (NT) | C311: Ceases to apply on 1 July 2019 | D311: 0 | E311: No
B312: Business-to-Business Process Service Order Procedure (NT) | C312: This document defines the procedure and data requirements which apply to PWC in relation to service orders received from Retailers. | D312: Business as usual | E312: No
B313: Easement Guidelines (NT) | C313: This procedure provides guidelines covering the management of electricity easements. It is applicable to all electricity easements covering Power and Water underground and overhead power lines. | D313: Business as usual | E313: No
B314: Northern Territory Emergency Management Plan | C314: PWC is identified as the controlling authority and hazard management authority primarily responsible for controlling a response to a major power outage, and to lead the Public Utilities functional group | D314: Business as usual | E314: No

Sheet 7.4 Shared Assets
B1: =INDEX(dms_Worksheet_List,MATCH(dms_Model,dms_Model_List)) -> REGULATORY REPORTING STATEMENT
B2: =INDEX(dms_TradingNameFull_List,MATCH(dms_TradingName,dms_TradingName_List)) -> Power and Water Corporation
B3: =CONCATENATE("REGULATORY PERIOD FROM ", FRCP_y1," TO ",dms_MultiYear_FinalYear_Result) -> REGULATORY PERIOD FROM 2024-25 TO 2028-29
B4: 7.4 SHARED ASSETS
B6: 7.4.1 - TOTAL UNREGULATED REVENUE EARNED WITH SHARED ASSETS
B7: Name of shared asset unregulated service | C7: Description of shared assets used to provide the service | D7: =CONCATENATE("Shared asset unregulated revenue ($0's, real ", dms_DollarReal,")") -> Shared asset unregulated revenue ($0's, real June 2024)
D8: =CRCP_y4 -> 2022-23 | E8: =CRCP_y5 -> 2023-24 | F8: =FRCP_y1 -> 2024-25 | G8: =FRCP_y2 -> 2025-26 | H8: =FRCP_y3 -> 2026-27 | I8: =FRCP_y4 -> 2027-28 | J8: =FRCP_y5 -> 2028-29 | K8: =CONCATENATE("Total ",FRCP_y1," to ", FRCP_y5) -> Total 2024-25 to 2028-29
B9: Shared Asset | C9: Fibre optic cable used for PWC's communications network is also used by a third party | D9: 1099094.019 | E9: 1075651.47 | F9: 1069857.193 | G9: 1070692.546 | H9: 1071528.545 | I9: 1072365.195 | J9: 1073202.503 | K9: =SUM(F9:J9) -> 5357645.982
K10: 0
K11: 0
K12: 0
K13: 0
K14: 0
K15: 0
K16: 0
K17: 0
K18: 0
K19: 0
K20: 0
K21: 0
K22: 0
K23: 0
B25: 7.4.2 - SHARED ASSET UNREGULATED SERVICES - APPORTIONMENT METHODOLOGY
B26: Name of shared asset unregulated service for which revenues were apportioned | C26: Apportionment methodology
B27: Fibre optic cable | C27: Not applicable

Sheet 7.7 TSS-LRMC
B1: =INDEX(dms_Worksheet_List,MATCH(dms_Model,dms_Model_List)) -> REGULATORY REPORTING STATEMENT
B2: =INDEX(dms_TradingNameFull_List,MATCH(dms_TradingName,dms_TradingName_List)) -> Power and Water Corporation
B3: =CONCATENATE("REGULATORY PERIOD FROM ", FRCP_y1," TO ",dms_MultiYear_FinalYear_Result) -> REGULATORY PERIOD FROM 2024-25 TO 2028-29
B4: 7.7 - TARIFF STRUCTURE STATEMENT - INPUTS TO LRMC CALCULATION
D6: ="Is "&dms_TradingName&" using the 'Average Incremental Cost' approach?" -> Is Power and Water using the 'Average Incremental Cost' approach?
F7: YES
B9: 7.7.1 - INPUTS TO LRMC CALCULATION - STANDARD CONTROL SERVICES - CAPEX
B10: 7.7.1.1 - SERIES A
C11: =CONCATENATE("Forecast ($0's, real ", dms_DollarReal) -> Forecast ($0's, real June 2024
C12: =CRCP_y4 -> 2022-23 | D12: =IF(dms_RPT="financial",(VALUE(LEFT(C12,4)+1)&"-"&MID(C12,3,2)+2),VALUE(LEFT(C12,4)+1)) -> 2023-24 | E12: 2024-25 | F12: 2025-26 | G12: 2026-27 | H12: 2027-28 | I12: 2028-29 | J12: 2029-30 | K12: 2030-31 | L12: 2031-32 | M12: 2032-33 | N12: 2033-34 | O12: 2034-35 | P12: 2035-36 | Q12: 2036-37 | R12: 2037-38 | S12: 2038-39 | T12: 2039-40 | U12: 2040-41 | V12: 2041-42 | W12: 2042-43 | X12: 2043-44 | Y12: 2044-45
B13: Replacement expenditure | C13: 4346469.861 | D13: 6568653.106 | E13: 3973545.77 | F13: 4362908.529 | G13: 2518051.176 | H13: 1455943.302 | I13: 1427623.807 | J13: 3521885.079 | K13: 3521885.079 | L13: 2516367.8 | M13: 2519836.79 | N13: 2519836.79 | O13: 2519836.79 | P13: 2519836.79 | Q13: 2519836.79 | R13: 2519836.79 | S13: 2519836.79 | T13: 2519836.79 | U13: 2519836.79 | V13: 2519836.79 | W13: 2519836.79 | X13: 2519836.79 | Y13: 2519836.79
B14: Connections | C14: 0 | D14: 0 | E14: 0 | F14: 0 | G14: 0 | H14: 0 | I14: 0 | J14: 0 | K14: 0 | L14: 0 | M14: 0 | N14: 0 | O14: 0 | P14: 0 | Q14: 0 | R14: 0 | S14: 0 | T14: 0 | U14: 0 | V14: 0 | W14: 0 | X14: 0 | Y14: 0
B15: Augmentation Expenditure | C15: 1843205.05 | D15: 3471764.846 | E15: 1666077.386 | F15: 1647081.797 | G15: 2281188.572 | H15: 1748559.533 | I15: 1628570.641 | J15: 2040921.118 | K15: 2040921.118 | L15: 1458227.077 | M15: 1460237.346 | N15: 1460237.346 | O15: 1460237.346 | P15: 1460237.346 | Q15: 1460237.346 | R15: 1460237.346 | S15: 1460237.346 | T15: 1460237.346 | U15: 1460237.346 | V15: 1460237.346 | W15: 1460237.346 | X15: 1460237.346 | Y15: 1460237.346
B16: Non-network | C16: 0 | D16: 0 | E16: 0 | F16: 0 | G16: 0 | H16: 0 | I16: 0 | J16: 0 | K16: 0 | L16: 0 | M16: 0 | N16: 0 | O16: 0 | P16: 0 | Q16: 0 | R16: 0 | S16: 0 | T16: 0 | U16: 0 | V16: 0 | W16: 0 | X16: 0 | Y16: 0
B17: Export services | C17: 0 | D17: 0 | E17: 0 | F17: 0 | G17: 0 | H17: 0 | I17: 0 | J17: 0 | K17: 0 | L17: 0 | M17: 0 | N17: 0 | O17: 0 | P17: 0 | Q17: 0 | R17: 0 | S17: 0 | T17: 0 | U17: 0 | V17: 0 | W17: 0 | X17: 0 | Y17: 0
B18: Capitalised network overheads | C18: 0 | D18: 0 | E18: 0 | F18: 0 | G18: 0 | H18: 0 | I18: 0 | J18: 0 | K18: 0 | L18: 0 | M18: 0 | N18: 0 | O18: 0 | P18: 0 | Q18: 0 | R18: 0 | S18: 0 | T18: 0 | U18: 0 | V18: 0 | W18: 0 | X18: 0 | Y18: 0
B19: Capitalised corporate overheads | C19: 0 | D19: 0 | E19: 0 | F19: 0 | G19: 0 | H19: 0 | I19: 0 | J19: 0 | K19: 0 | L19: 0 | M19: 0 | N19: 0 | O19: 0 | P19: 0 | Q19: 0 | R19: 0 | S19: 0 | T19: 0 | U19: 0 | V19: 0 | W19: 0 | X19: 0 | Y19: 0
B20: Total capex | C20: =SUM(C13:C19) -> 6189674.911 | D20: =SUM(D13:D19) -> 10040417.95 | E20: 5639623.156 | F20: 6009990.326 | G20: 4799239.747 | H20: 3204502.835 | I20: 3056194.447 | J20: 5562806.197 | K20: 5562806.197 | L20: 3974594.876 | M20: 3980074.136 | N20: 3980074.136 | O20: 3980074.136 | P20: 3980074.136 | Q20: 3980074.136 | R20: 3980074.136 | S20: 3980074.136 | T20: 3980074.136 | U20: 3980074.136 | V20: 3980074.136 | W20: =SUM(W13:W19) -> 3980074.136 | X20: 3980074.136 | Y20: 3980074.136
B22: 7.7.1.2 - SERIES B
C23: =CONCATENATE("Forecast ($0's, real ", dms_DollarReal) -> Forecast ($0's, real June 2024
C24: =CRCP_y4 -> 2022-23 | D24: =IF(dms_RPT="financial",(VALUE(LEFT(C24,4)+1)&"-"&MID(C24,3,2)+2),VALUE(LEFT(C24,4)+1)) -> 2023-24 | E24: =IF(dms_RPT="financial",(VALUE(LEFT(D24,4)+1)&"-"&MID(D24,3,2)+2),VALUE(LEFT(D24,4)+1)) -> 2024-25 | F24: =IF(dms_RPT="financial",(VALUE(LEFT(E24,4)+1)&"-"&MID(E24,3,2)+2),VALUE(LEFT(E24,4)+1)) -> 2025-26 | G24: =IF(dms_RPT="financial",(VALUE(LEFT(F24,4)+1)&"-"&MID(F24,3,2)+2),VALUE(LEFT(F24,4)+1)) -> 2026-27 | H24: =IF(dms_RPT="financial",(VALUE(LEFT(G24,4)+1)&"-"&MID(G24,3,2)+2),VALUE(LEFT(G24,4)+1)) -> 2027-28 | I24: =IF(dms_RPT="financial",(VALUE(LEFT(H24,4)+1)&"-"&MID(H24,3,2)+2),VALUE(LEFT(H24,4)+1)) -> 2028-29 | J24: =IF(dms_RPT="financial",(VALUE(LEFT(I24,4)+1)&"-"&MID(I24,3,2)+2),VALUE(LEFT(I24,4)+1)) -> 2029-30 | K24: =IF(dms_RPT="financial",(VALUE(LEFT(J24,4)+1)&"-"&MID(J24,3,2)+2),VALUE(LEFT(J24,4)+1)) -> 2030-31 | L24: =IF(dms_RPT="financial",(VALUE(LEFT(K24,4)+1)&"-"&MID(K24,3,2)+2),VALUE(LEFT(K24,4)+1)) -> 2031-32 | M24: =IF(dms_RPT="financial",(VALUE(LEFT(L24,4)+1)&"-"&MID(L24,3,2)+2),VALUE(LEFT(L24,4)+1)) -> 2032-33 | N24: =IF(dms_RPT="financial",(VALUE(LEFT(M24,4)+1)&"-"&MID(M24,3,2)+2),VALUE(LEFT(M24,4)+1)) -> 2033-34 | O24: =IF(dms_RPT="financial",(VALUE(LEFT(N24,4)+1)&"-"&MID(N24,3,2)+2),VALUE(LEFT(N24,4)+1)) -> 2034-35 | P24: =IF(dms_RPT="financial",(VALUE(LEFT(O24,4)+1)&"-"&MID(O24,3,2)+2),VALUE(LEFT(O24,4)+1)) -> 2035-36 | Q24: =IF(dms_RPT="financial",(VALUE(LEFT(P24,4)+1)&"-"&MID(P24,3,2)+2),VALUE(LEFT(P24,4)+1)) -> 2036-37 | R24: =IF(dms_RPT="financial",(VALUE(LEFT(Q24,4)+1)&"-"&MID(Q24,3,2)+2),VALUE(LEFT(Q24,4)+1)) -> 2037-38 | S24: =IF(dms_RPT="financial",(VALUE(LEFT(R24,4)+1)&"-"&MID(R24,3,2)+2),VALUE(LEFT(R24,4)+1)) -> 2038-39 | T24: =IF(dms_RPT="financial",(VALUE(LEFT(S24,4)+1)&"-"&MID(S24,3,2)+2),VALUE(LEFT(S24,4)+1)) -> 2039-40 | U24: =IF(dms_RPT="financial",(VALUE(LEFT(T24,4)+1)&"-"&MID(T24,3,2)+2),VALUE(LEFT(T24,4)+1)) -> 2040-41 | V24: =IF(dms_RPT="financial",(VALUE(LEFT(U24,4)+1)&"-"&MID(U24,3,2)+2),VALUE(LEFT(U24,4)+1)) -> 2041-42 | W24: =W$12 -> 2042-43 | X24: =X$12 -> 2043-44 | Y24: 2044-45
B25: Replacement expenditure | C25: 4943500.761 | D25: 5298592.172 | E25: 6501072.045 | F25: 5941074.216 | G25: 3712159.628 | H25: 3702881.276 | I25: 3655343.921 | J25: 4822089.146 | K25: 4822089.146 | L25: 3445356.558 | M25: 3450106.225 | N25: 3450106.225 | O25: 3450106.225 | P25: 3450106.225 | Q25: 3450106.225 | R25: 3450106.225 | S25: 3450106.225 | T25: 3450106.225 | U25: 3450106.225 | V25: 3450106.225 | W25: 3450106.225 | X25: 3450106.225 | Y25: 3450106.225
B26: Connections | C26: 0 | D26: 0 | E26: 0 | F26: 0 | G26: 0 | H26: 0 | I26: 0 | J26: 0 | K26: 0 | L26: 0 | M26: 0 | N26: 0 | O26: 0 | P26: 0 | Q26: 0 | R26: 0 | S26: 0 | T26: 0 | U26: 0 | V26: 0 | W26: 0 | X26: 0 | Y26: 0
B27: Augmentation Expenditure | C27: 3362578.714 | D27: 8789435.015 | E27: 6364609.891 | F27: 2978351.513 | G27: 3072889.944 | H27: 2131173.216 | I27: 1914421.473 | J27: 4087637.109 | K27: 4087637.109 | L27: 2920594.559 | M27: 2924620.805 | N27: 2924620.805 | O27: 2924620.805 | P27: 2924620.805 | Q27: 2924620.805 | R27: 2924620.805 | S27: 2924620.805 | T27: 2924620.805 | U27: 2924620.805 | V27: 2924620.805 | W27: 2924620.805 | X27: 2924620.805 | Y27: 2924620.805
B28: Non-network | C28: 0 | D28: 0 | E28: 0 | F28: 0 | G28: 0 | H28: 0 | I28: 0 | J28: 0 | K28: 0 | L28: 0 | M28: 0 | N28: 0 | O28: 0 | P28: 0 | Q28: 0 | R28: 0 | S28: 0 | T28: 0 | U28: 0 | V28: 0 | W28: 0 | X28: 0 | Y28: 0
B29: Export services | C29: 0 | D29: 0 | E29: 0 | F29: 0 | G29: 0 | H29: 0 | I29: 0 | J29: 0 | K29: 0 | L29: 0 | M29: 0 | N29: 0 | O29: 0 | P29: 0 | Q29: 0 | R29: 0 | S29: 0 | T29: 0 | U29: 0 | V29: 0 | W29: 0 | X29: 0 | Y29: 0
B30: Capitalised network overheads | C30: 0 | D30: 0 | E30: 0 | F30: 0 | G30: 0 | H30: 0 | I30: 0 | J30: 0 | K30: 0 | L30: 0 | M30: 0 | N30: 0 | O30: 0 | P30: 0 | Q30: 0 | R30: 0 | S30: 0 | T30: 0 | U30: 0 | V30: 0 | W30: 0 | X30: 0 | Y30: 0
B31: Capitalised corporate overheads | C31: 0 | D31: 0 | E31: 0 | F31: 0 | G31: 0 | H31: 0 | I31: 0 | J31: 0 | K31: 0 | L31: 0 | M31: 0 | N31: 0 | O31: 0 | P31: 0 | Q31: 0 | R31: 0 | S31: 0 | T31: 0 | U31: 0 | V31: 0 | W31: 0 | X31: 0 | Y31: 0
B32: Total capex | C32: =SUM(C25:C31) -> 8306079.475 | D32: =SUM(D25:D31) -> 14088027.19 | E32: 12865681.94 | F32: 8919425.729 | G32: 6785049.572 | H32: 5834054.492 | I32: 5569765.393 | J32: 8909726.255 | K32: 8909726.255 | L32: 6365951.117 | M32: 6374727.03 | N32: 6374727.03 | O32: 6374727.03 | P32: 6374727.03 | Q32: 6374727.03 | R32: 6374727.03 | S32: 6374727.03 | T32: 6374727.03 | U32: 6374727.03 | V32: 6374727.03 | W32: =SUM(W25:W31) -> 6374727.03 | X32: 6374727.03 | Y32: 6374727.03
B34: 7.7.1.3 - SERIES C
C35: =CONCATENATE("Forecast ($0's, real ", dms_DollarReal) -> Forecast ($0's, real June 2024
C36: =CRCP_y4 -> 2022-23 | D36: =IF(dms_RPT="financial",(VALUE(LEFT(C36,4)+1)&"-"&MID(C36,3,2)+2),VALUE(LEFT(C36,4)+1)) -> 2023-24 | E36: =IF(dms_RPT="financial",(VALUE(LEFT(D36,4)+1)&"-"&MID(D36,3,2)+2),VALUE(LEFT(D36,4)+1)) -> 2024-25 | F36: =IF(dms_RPT="financial",(VALUE(LEFT(E36,4)+1)&"-"&MID(E36,3,2)+2),VALUE(LEFT(E36,4)+1)) -> 2025-26 | G36: =IF(dms_RPT="financial",(VALUE(LEFT(F36,4)+1)&"-"&MID(F36,3,2)+2),VALUE(LEFT(F36,4)+1)) -> 2026-27 | H36: =IF(dms_RPT="financial",(VALUE(LEFT(G36,4)+1)&"-"&MID(G36,3,2)+2),VALUE(LEFT(G36,4)+1)) -> 2027-28 | I36: =IF(dms_RPT="financial",(VALUE(LEFT(H36,4)+1)&"-"&MID(H36,3,2)+2),VALUE(LEFT(H36,4)+1)) -> 2028-29 | J36: =IF(dms_RPT="financial",(VALUE(LEFT(I36,4)+1)&"-"&MID(I36,3,2)+2),VALUE(LEFT(I36,4)+1)) -> 2029-30 | K36: =IF(dms_RPT="financial",(VALUE(LEFT(J36,4)+1)&"-"&MID(J36,3,2)+2),VALUE(LEFT(J36,4)+1)) -> 2030-31 | L36: =IF(dms_RPT="financial",(VALUE(LEFT(K36,4)+1)&"-"&MID(K36,3,2)+2),VALUE(LEFT(K36,4)+1)) -> 2031-32 | M36: =IF(dms_RPT="financial",(VALUE(LEFT(L36,4)+1)&"-"&MID(L36,3,2)+2),VALUE(LEFT(L36,4)+1)) -> 2032-33 | N36: =IF(dms_RPT="financial",(VALUE(LEFT(M36,4)+1)&"-"&MID(M36,3,2)+2),VALUE(LEFT(M36,4)+1)) -> 2033-34 | O36: =IF(dms_RPT="financial",(VALUE(LEFT(N36,4)+1)&"-"&MID(N36,3,2)+2),VALUE(LEFT(N36,4)+1)) -> 2034-35 | P36: =IF(dms_RPT="financial",(VALUE(LEFT(O36,4)+1)&"-"&MID(O36,3,2)+2),VALUE(LEFT(O36,4)+1)) -> 2035-36 | Q36: =IF(dms_RPT="financial",(VALUE(LEFT(P36,4)+1)&"-"&MID(P36,3,2)+2),VALUE(LEFT(P36,4)+1)) -> 2036-37 | R36: =IF(dms_RPT="financial",(VALUE(LEFT(Q36,4)+1)&"-"&MID(Q36,3,2)+2),VALUE(LEFT(Q36,4)+1)) -> 2037-38 | S36: =IF(dms_RPT="financial",(VALUE(LEFT(R36,4)+1)&"-"&MID(R36,3,2)+2),VALUE(LEFT(R36,4)+1)) -> 2038-39 | T36: =IF(dms_RPT="financial",(VALUE(LEFT(S36,4)+1)&"-"&MID(S36,3,2)+2),VALUE(LEFT(S36,4)+1)) -> 2039-40 | U36: =IF(dms_RPT="financial",(VALUE(LEFT(T36,4)+1)&"-"&MID(T36,3,2)+2),VALUE(LEFT(T36,4)+1)) -> 2040-41 | V36: =IF(dms_RPT="financial",(VALUE(LEFT(U36,4)+1)&"-"&MID(U36,3,2)+2),VALUE(LEFT(U36,4)+1)) -> 2041-42 | W36: =W$12 -> 2042-43 | X36: =X$12 -> 2043-44 | Y36: 2044-45
B37: Replacement expenditure | C37: 4217530.297 | D37: 4772247.297 | E37: 6153672.864 | F37: 5104345.206 | G37: 4420680.822 | H37: 4448756.17 | I37: 4441586.786 | J37: 4794117.063 | K37: 4794117.063 | L37: 3425370.657 | M37: 3430092.772 | N37: 3430092.772 | O37: 3430092.772 | P37: 3430092.772 | Q37: 3430092.772 | R37: 3430092.772 | S37: 3430092.772 | T37: 3430092.772 | U37: 3430092.772 | V37: 3430092.772 | W37: 3430092.772 | X37: 3430092.772 | Y37: 3430092.772
B38: Connections | C38: 0 | D38: 0 | E38: 0 | F38: 0 | G38: 0 | H38: 0 | I38: 0 | J38: 0 | K38: 0 | L38: 0 | M38: 0 | N38: 0 | O38: 0 | P38: 0 | Q38: 0 | R38: 0 | S38: 0 | T38: 0 | U38: 0 | V38: 0 | W38: 0 | X38: 0 | Y38: 0
B39: Augmentation Expenditure | C39: 1174495.199 | D39: 1192734.855 | E39: 1454488.978 | F39: 1441627.336 | G39: 1934595.747 | H39: 1521803.366 | I39: 1429609.971 | J39: 1449907.922 | K39: 1449907.922 | L39: 1035951.351 | M39: 1037379.483 | N39: 1037379.483 | O39: 1037379.483 | P39: 1037379.483 | Q39: 1037379.483 | R39: 1037379.483 | S39: 1037379.483 | T39: 1037379.483 | U39: 1037379.483 | V39: 1037379.483 | W39: 1037379.483 | X39: 1037379.483 | Y39: 1037379.483
B40: Non-network | C40: 0 | D40: 0 | E40: 0 | F40: 0 | G40: 0 | H40: 0 | I40: 0 | J40: 0 | K40: 0 | L40: 0 | M40: 0 | N40: 0 | O40: 0 | P40: 0 | Q40: 0 | R40: 0 | S40: 0 | T40: 0 | U40: 0 | V40: 0 | W40: 0 | X40: 0 | Y40: 0
